Local authority department which incurred the expenditure,Service Division,Cost Centre,Summary of the Purpose of Expenditure,Expense Type,Expense Code,Detailed Expense Type,Date of Transaction,Transaction Number,Beneficiary,Merchant Category Number,Merchant Category,Gross Amount,VAT,Net Amount
Resources BK0010,Business Support,052986,CYPS - Locality and Operational Support,Supplies and Services,328041,Clothing uniforms and laundry E328,01-Apr-2020,000009050817621,WWW.THEWORKS.CO.UK,5310,Clothing uniforms and laundry,-31.49,0.00,-31.49
"Regeneration, Economy and Growth",Business Durham CL0850,030689,Inward Investment and Aftercare,Third Party Payments,430100,Rendered by Private Contractors,01-Apr-2020,000009052965821,BLS monday.com,7399,Payments to sub-contractors,148.80,24.80,124.00
Children and Young Peoples Services,Head of Childrens Social Care,085501,Child Care Cases Legal Expenses,Supplies and Services,304403,Equipment and Materials,01-Apr-2020,000009052966047,MY.NORFOLK.GOV.UK,9399,Other consumables,11.00,0.00,11.00
"Regeneration, Economy and Growth",Development and Housing,031500,Housing Solutions - Core Team,Supplies and Services,352001,Conference Expenses,01-Apr-2020,000009052966079,GRAINGER HOTEL,7011,Conferencesseminars fees etc,40.00,0.00,40.00
Children and Young Peoples Services,Head of Education and Skills,075021,Youth Employment Initiative,Supplies and Services,364301,Grants to Voluntary Organisations,01-Apr-2020,000009052966111,SCREWFIX DIRECT,5200,Hardship,22.99,3.83,19.16
Neighbourhoods and Climate Change,Partnerships & Community Engagement Div.,060473,COVID19 Shopping Community Hub,Supplies and Services,342506,Provisions E324,01-Apr-2020,000009052966449,ALDI 32 774,5411,Shopping Provision COVID19,16.68,0.00,16.68
Neighbourhoods and Climate Change,Partnerships & Community Engagement Div.,060473,COVID19 Shopping Community Hub,Supplies and Services,342506,Provisions E324,01-Apr-2020,000009052966457,WM MORRISONS STORE,5411,Shopping Provision COVID19,15.88,0.00,15.88
Children and Young Peoples Services,Head of Childrens Social Care,085380,Operations Manager LAC Resources,Supplies and Services,328041,Clothing uniforms and laundry E328,01-Apr-2020,000009052966547,ARGOS LTD,5310,Clothing uniforms and laundry,50.94,0.00,50.94
Neighbourhoods and Climate Change,Partnerships & Community Engagement Div.,060473,COVID19 Shopping Community Hub,Supplies and Services,342506,Provisions E324,01-Apr-2020,000009052966567,LIDL GB CROOK,5411,Shopping Provision COVID19,5.20,0.00,5.20
Neighbourhoods and Climate Change,Partnerships & Community Engagement Div.,060473,COVID19 Shopping Community Hub,Supplies and Services,342506,Provisions E324,01-Apr-2020,000009052966573,ASDA STORES,5411,Shopping Provision COVID19,42.54,7.09,35.45
Neighbourhoods and Climate Change,Partnerships & Community Engagement Div.,060473,COVID19 Shopping Community Hub,Supplies and Services,342506,Provisions E324,01-Apr-2020,000009052966573 - 1,ASDA STORES,5411,Shopping Provision COVID19,0.03,,0.03
Neighbourhoods and Climate Change,Partnerships & Community Engagement Div.,060473,COVID19 Shopping Community Hub,Supplies and Services,342506,Provisions E324,01-Apr-2020,000009052966579,774 026,5411,Shopping Provision COVID19,4.43,0.74,3.69
Neighbourhoods and Climate Change,Partnerships & Community Engagement Div.,060473,COVID19 Shopping Community Hub,Supplies and Services,342506,Provisions E324,01-Apr-2020,000009052966627,POUNDSTRETCHER 318,5331,Shopping Provision COVID19,0.89,0.00,0.89
Neighbourhoods and Climate Change,Partnerships & Community Engagement Div.,060473,COVID19 Shopping Community Hub,Supplies and Services,342506,Provisions E324,01-Apr-2020,000009052966639,HERON FOODS LTD,5499,Shopping Provision COVID19,2.75,0.00,2.75
Neighbourhoods and Climate Change,Partnerships & Community Engagement Div.,060473,COVID19 Shopping Community Hub,Supplies and Services,342506,Provisions E324,01-Apr-2020,000009052966651,ICELAND,5411,Shopping Provision COVID19,21.26,0.00,21.26
Neighbourhoods and Climate Change,Partnerships & Community Engagement Div.,060473,COVID19 Shopping Community Hub,Supplies and Services,342506,Provisions E324,01-Apr-2020,000009052966657,CO-OP GROUP 310029,5411,Shopping Provision COVID19,1.55,0.00,1.55
"Regeneration, Economy and Growth",Development and Housing,031576,B& B - Temp Accom,Supplies and Services,352001,Conference Expenses,01-Apr-2020,000009052966687,AYCLIFFE BIZ,7011,Conferencesseminars fees etc,76.00,0.00,76.00
"Regeneration, Economy and Growth",Development and Housing,031576,B& B - Temp Accom,Supplies and Services,352001,Conference Expenses,01-Apr-2020,000009052966699,BUDGET H EXPRESS HOTEL,7011,Conferencesseminars fees etc,100.00,16.67,83.33
Children and Young Peoples Services,Head of Early Help Inclusion & Vulnerable Children.,085961,Themed Week Activity,Supplies and Services,304403,Equipment and Materials,01-Apr-2020,000009052966733,AMZNMKTPLACE AMAZON.CO,5999,Other consumables,89.07,0.00,89.07
Children and Young Peoples Services,Head of Early Help Inclusion & Vulnerable Children.,085961,Themed Week Activity,Supplies and Services,304403,Equipment and Materials,01-Apr-2020,000009052966739,AMZNMktplace,5999,Other consumables,4.95,0.83,4.12
Neighbourhoods and Climate Change,Partnerships & Community Engagement Div.,060473,COVID19 Shopping Community Hub,Supplies and Services,342506,Provisions E324,01-Apr-2020,000009052966807,TESCO STORES 2916,5411,Shopping Provision COVID19,28.32,0.00,28.32
Neighbourhoods and Climate Change,Partnerships & Community Engagement Div.,060473,COVID19 Shopping Community Hub,Supplies and Services,342506,Provisions E324,01-Apr-2020,000009052966817,TESCO STORES 2916,5411,Shopping Provision COVID19,18.10,0.00,18.10
Neighbourhoods and Climate Change,Partnerships & Community Engagement Div.,060473,COVID19 Shopping Community Hub,Supplies and Services,342506,Provisions E324,01-Apr-2020,000009052966825,LIDL GB BSHP AUCKLAND,5411,Shopping Provision COVID19,16.51,0.00,16.51
"Regeneration, Economy and Growth",Development and Housing,031576,B& B - Temp Accom,Supplies and Services,352001,Conference Expenses,01-Apr-2020,000009052966945,GRAINGER HOTEL,7011,Conferencesseminars fees etc,100.00,16.67,83.33
"Regeneration, Economy and Growth",Development and Housing,031576,B& B - Temp Accom,Supplies and Services,352001,Conference Expenses,01-Apr-2020,000009052966955,BUDGET H EXPRESS HOTEL,7011,Conferencesseminars fees etc,89.00,0.00,89.00
Neighbourhoods and Climate Change,Partnerships & Community Engagement Div.,060473,COVID19 Shopping Community Hub,Supplies and Services,342506,Provisions E324,01-Apr-2020,000009052967075,LIDL GB SPENNYMOOR,5411,Shopping Provision COVID19,17.01,0.00,17.01
Neighbourhoods and Climate Change,Partnerships & Community Engagement Div.,060473,COVID19 Shopping Community Hub,Supplies and Services,342506,Provisions E324,01-Apr-2020,000009052967139,LIDL GB DURHAM,5411,Shopping Provision COVID19,7.44,0.00,7.44
Neighbourhoods and Climate Change,Partnerships & Community Engagement Div.,060473,COVID19 Shopping Community Hub,Supplies and Services,342506,Provisions E324,01-Apr-2020,000009052967149,MARTIN MCCOLL,5499,Shopping Provision COVID19,21.07,0.00,21.07
Neighbourhoods and Climate Change,Partnerships & Community Engagement Div.,060473,COVID19 Shopping Community Hub,Supplies and Services,342506,Provisions E324,01-Apr-2020,000009052967157,CO-OP GROUP 010830,5411,Shopping Provision COVID19,3.00,0.00,3.00
Neighbourhoods and Climate Change,Partnerships & Community Engagement Div.,060473,COVID19 Shopping Community Hub,Supplies and Services,342506,Provisions E324,01-Apr-2020,000009052967163,FAMILY SHOPPER,5441,Shopping Provision COVID19,4.99,0.00,4.99
Children and Young Peoples Services,Head of Childrens Social Care,085332,Middlestone Moor CU,Supplies and Services,324117,Provisions E324,01-Apr-2020,000009052967263,CO-OP GROUP 010695,5411,Catering costs - provisions,3.50,0.00,3.50
"Regeneration, Economy and Growth",Development and Housing,031500,Housing Solutions - Core Team,Supplies and Services,352001,Conference Expenses,01-Apr-2020,000009052967367,BUDGET H EXPRESS HOTEL,7011,Conferencesseminars fees etc,448.00,74.67,373.33
Neighbourhoods and Climate Change,Partnerships & Community Engagement Div.,060473,COVID19 Shopping Community Hub,Supplies and Services,342506,Provisions E324,01-Apr-2020,000009052967411,TESCO STORES 2916,5411,Shopping Provision COVID19,77.31,0.00,77.31
Neighbourhoods and Climate Change,Partnerships & Community Engagement Div.,060473,COVID19 Shopping Community Hub,Supplies and Services,342506,Provisions E324,01-Apr-2020,000009052967419,TESCO STORES 2916,5411,Shopping Provision COVID19,11.38,0.00,11.38
Neighbourhoods and Climate Change,Partnerships & Community Engagement Div.,060473,COVID19 Shopping Community Hub,Supplies and Services,342506,Provisions E324,01-Apr-2020,000009052967425,TESCO STORES 6329,5411,Shopping Provision COVID19,35.21,0.00,35.21
Neighbourhoods and Climate Change,Partnerships & Community Engagement Div.,060473,COVID19 Shopping Community Hub,Supplies and Services,342506,Provisions E324,01-Apr-2020,000009052967433,TESCO STORES 6329,5411,Shopping Provision COVID19,22.35,0.00,22.35
Neighbourhoods and Climate Change,Partnerships & Community Engagement Div.,060473,COVID19 Shopping Community Hub,Supplies and Services,342506,Provisions E324,01-Apr-2020,000009052967443,TESCO STORES 6329,5411,Shopping Provision COVID19,3.56,0.00,3.56
Adult and Health Services,COVID19 - Adults and Health Services,091001,COVID19 - Adults and Health Services,Premises,145037,Cleaning and Domestic Supplies,01-Apr-2020,000009052968067,ALLIANCE DISPOSABLES,5811,Disposable medical supplies,"9,000.00","1,500.00",7500.00
Adult and Health Services,COVID19 - Adults and Health Services,091001,COVID19 - Adults and Health Services,Premises,145037,Cleaning and Domestic Supplies,01-Apr-2020,000009052968075,ALLIANCE DISPOSABLES,5811,Disposable medical supplies,"9,000.00","1,500.00",7500.00
Adult and Health Services,COVID19 - Adults and Health Services,091001,COVID19 - Adults and Health Services,Premises,145037,Cleaning and Domestic Supplies,01-Apr-2020,000009052968083,ALLIANCE DISPOSABLES,5811,Disposable medical supplies,"1,050.00",175.00,875.00
Children and Young Peoples Services,Head of Early Help Inclusion & Vulnerable Children.,088108,Spennymoor & Shildon 0-19 Targeted Family Support,Supplies and Services,304259,Equipment and Materials,01-Apr-2020,000009052968129,AMZNMktplace,5999,Equipment-purchase and rental,3.95,0.66,3.29
Children and Young Peoples Services,Head of Early Help Inclusion & Vulnerable Children.,088108,Spennymoor & Shildon 0-19 Targeted Family Support,Supplies and Services,304259,Equipment and Materials,01-Apr-2020,000009052968143,AMZNMktplace,5999,Equipment-purchase and rental,7.11,1.19,5.92
Children and Young Peoples Services,Head of Early Help Inclusion & Vulnerable Children.,088116,South Area - Teenage Parent Programme,Supplies and Services,304259,Equipment and Materials,01-Apr-2020,000009052968151,Amazon.co.uk WV0CC8ZA5,5969,Equipment-purchase and rental,15.80,2.63,13.17
Children and Young Peoples Services,Head of Early Help Inclusion & Vulnerable Children.,088108,Spennymoor & Shildon 0-19 Targeted Family Support,Supplies and Services,304403,Equipment and Materials,01-Apr-2020,000009052968161,AMZNMktplace,5999,Other consumables,8.88,1.48,7.40
Children and Young Peoples Services,Head of Early Help Inclusion & Vulnerable Children.,088108,Spennymoor & Shildon 0-19 Targeted Family Support,Supplies and Services,304259,Equipment and Materials,01-Apr-2020,000009052968161 - 1,AMZNMktplace,5999,Equipment-purchase and rental,0.04,,0.04
Children and Young Peoples Services,Head of Early Help Inclusion & Vulnerable Children.,088108,Spennymoor & Shildon 0-19 Targeted Family Support,Supplies and Services,304259,Equipment and Materials,01-Apr-2020,000009052968181,AMZNMktplace,5999,Equipment-purchase and rental,9.99,1.67,8.32
Neighbourhoods and Climate Change,Environmental Services,010367,C&G - South Grounds Maintenance,Supplies and Services,304403,Equipment and Materials,01-Apr-2020,000009052968515,WWW.NORTTHERNARBSUPPLI,5999,Other consumables,275.40,45.90,229.50
Neighbourhoods and Climate Change,Environmental Services,010301,C&G - North Grounds Maintenance,Supplies and Services,304259,Equipment and Materials,01-Apr-2020,000009052968953,MACHINE MART LTD,5722,Equipment-purchase and rental,329.99,55.00,274.99
Children and Young Peoples Services,Head of Early Help Inclusion & Vulnerable Children.,088102,Consett & Stanley 0-19 Targeted Family Support,Supplies and Services,304403,Equipment and Materials,01-Apr-2020,000009052968981,AMZNMKTPLACE AMAZON.CO,5999,Other consumables,41.65,0.00,41.65
Children and Young Peoples Services,Head of Early Help Inclusion & Vulnerable Children.,085954,Walworth,Supplies and Services,328041,Clothing uniforms and laundry E328,01-Apr-2020,000009052969139,FOOTASYLUM PLC,5691,Clothing uniforms and laundry,203.96,0.00,203.96
Neighbourhoods and Climate Change,Partnerships & Community Engagement Div.,060473,COVID19 Shopping Community Hub,Supplies and Services,342506,Provisions E324,01-Apr-2020,000009052969153,TESCO STORES 2371,5411,Shopping Provision COVID19,10.34,0.00,10.34
Neighbourhoods and Climate Change,Partnerships & Community Engagement Div.,060473,COVID19 Shopping Community Hub,Supplies and Services,342506,Provisions E324,01-Apr-2020,000009052969225,TESCO STORES 2371,5411,Shopping Provision COVID19,41.53,0.00,41.53
"Regeneration, Economy and Growth",Development and Housing,031576,B& B - Temp Accom,Supplies and Services,364320,Grants to Voluntary Organisations,01-Apr-2020,000009052969315,BUDGET H EXPRESS HOTEL,7011,Accommodation assistance,89.00,0.00,89.00
"Regeneration, Economy and Growth",Development and Housing,031576,B& B - Temp Accom,Supplies and Services,364320,Grants to Voluntary Organisations,01-Apr-2020,000009052969325,BUDGET H EXPRESS HOTEL,7011,Accommodation assistance,50.00,0.00,50.00
Neighbourhoods and Climate Change,Partnerships & Community Engagement Div.,060473,COVID19 Shopping Community Hub,Supplies and Services,342506,Provisions E324,01-Apr-2020,000009052969349,CO-OP GROUP 010981,5411,Shopping Provision COVID19,14.65,0.00,14.65
Children and Young Peoples Services,Head of Childrens Social Care,085333,Coxhoe Satelite Home,Supplies and Services,324117,Provisions E324,01-Apr-2020,000009052969399,TESCO STORES 2916,5411,Catering costs - provisions,115.74,0.00,115.74
Resources BK0010,Corporate Finance & Commercial Services,069800,Corporate Procurement 069800,Employees,040149,Recruitment Instruction and Training,01-Apr-2020,000009052969467,WWW.CIPS.ORG,8699,Training-all costs,137.00,0.00,137.00
Children and Young Peoples Services,Head of Education and Skills,076001,Music Service,Supplies and Services,304403,Equipment and Materials,01-Apr-2020,000009052969895,WS SOFTWARE UK,5734,Other consumables,48.46,8.08,40.38
Children and Young Peoples Services,Head of Education and Skills,076001,Music Service,Supplies and Services,304403,Equipment and Materials,01-Apr-2020,000009052969917,WS SOFTWARE UK,5734,Other consumables,48.46,8.08,40.38
"Regeneration, Economy and Growth",Corporate Property and Land,020043,Bldg Serv - Compliance,Supplies and Services,352001,Conference Expenses,01-Apr-2020,000009055116459,THE CELTIC MANOR,7011,Conferencesseminars fees etc,810.00,135.00,675.00
Children and Young Peoples Services,Head of Education and Skills,078554,Adult Skills-Main,Supplies and Services,308011,Furniture,01-Apr-2020,000009055116497,PAYPAL BUTTERCREAM EB,5719,Furniture repair and replacement,-99.72,0.00,-99.72
"Regeneration, Economy and Growth",Business Durham CL0850,030689,Inward Investment and Aftercare,Supplies and Services,304403,Equipment and Materials,02-Apr-2020,000009055115431,ADOBE CREATIVE CLOUD,5734,Other consumables,49.94,8.32,41.62
"Regeneration, Economy and Growth",Business Durham CL0850,030689,Inward Investment and Aftercare,Supplies and Services,342222,Computers and Communications,02-Apr-2020,000009055115443,FASTHOSTS INTERNET,4816,Comp hardware purch-network servers,67.20,11.20,56.00
"Regeneration, Economy and Growth",Business Durham CL0850,030689,Inward Investment and Aftercare,Supplies and Services,342222,Computers and Communications,02-Apr-2020,000009055115449,FASTHOSTS INTERNET,4816,Comp hardware purch-network servers,72.66,12.11,60.55
"Regeneration, Economy and Growth",Development and Housing,031500,Housing Solutions - Core Team,Supplies and Services,352001,Conference Expenses,02-Apr-2020,000009055115483,GRAINGER HOTEL,7011,Conferencesseminars fees etc,50.00,0.00,50.00
"Regeneration, Economy and Growth",Development and Housing,031500,Housing Solutions - Core Team,Supplies and Services,352001,Conference Expenses,02-Apr-2020,000009055115487,GRAINGER HOTEL,7011,Conferencesseminars fees etc,20.00,0.00,20.00
"Regeneration, Economy and Growth",Culture Sport and Tourism,030708,VCD - Marketing & Information,Supplies and Services,384199,Miscellaneous Expenses,02-Apr-2020,000009055115497,MAILCHIMP MONTHLY,5968,Other hired and contracted services,263.84,0.00,263.84
Children and Young Peoples Services,Head of Childrens Social Care,085332,Middlestone Moor CU,Supplies and Services,328041,Clothing uniforms and laundry E328,02-Apr-2020,000009055115503,PAYPAL NGAIEVA EBAY N,5641,Clothing uniforms and laundry,1.89,0.00,1.89
Children and Young Peoples Services,Head of Childrens Social Care,085332,Middlestone Moor CU,Supplies and Services,328041,Clothing uniforms and laundry E328,02-Apr-2020,000009055115509,PAYPAL DIGG DESIGN EB,5661,Clothing uniforms and laundry,2.25,0.00,2.25
Children and Young Peoples Services,Head of Childrens Social Care,085332,Middlestone Moor CU,Supplies and Services,304403,Equipment and Materials,02-Apr-2020,000009055115515,PAYPAL CARDS EBAY CAR,5947,Other consumables,3.99,0.00,3.99
Children and Young Peoples Services,Head of Childrens Social Care,085332,Middlestone Moor CU,Supplies and Services,328041,Clothing uniforms and laundry E328,02-Apr-2020,000009055115523,PAYPAL JOANNELEWIS EB,5992,Clothing uniforms and laundry,1.94,0.00,1.94
Children and Young Peoples Services,Head of Childrens Social Care,085332,Middlestone Moor CU,Supplies and Services,304403,Equipment and Materials,02-Apr-2020,000009055115529,PAYPAL HUNTR4 EBAY HU,5999,Other consumables,1.60,0.00,1.60
Children and Young Peoples Services,Head of Childrens Social Care,085332,Middlestone Moor CU,Supplies and Services,304403,Equipment and Materials,02-Apr-2020,000009055115535,PAYPAL THEFAIRY1 EBAY,5999,Other consumables,1.97,0.00,1.97
Children and Young Peoples Services,Head of Childrens Social Care,085332,Middlestone Moor CU,Supplies and Services,304403,Equipment and Materials,02-Apr-2020,000009055115543,PAYPAL WHITEYCLARE EB,5999,Other consumables,2.95,0.00,2.95
Children and Young Peoples Services,Head of Childrens Social Care,085341,High Etherley Satelite Home,Supplies and Services,324117,Provisions E324,02-Apr-2020,000009055115565,SAINSBURYS 2199,5411,Catering costs - provisions,16.25,0.00,16.25
Children and Young Peoples Services,Head of Childrens Social Care,085352,Tow Law CU,Supplies and Services,324117,Provisions E324,02-Apr-2020,000009055115581,HERON FOODS,5499,Catering costs - provisions,29.70,0.00,29.70
Neighbourhoods and Climate Change,Partnerships & Community Engagement Div.,060473,COVID19 Shopping Community Hub,Supplies and Services,342506,Provisions E324,02-Apr-2020,000009055115683,TESCO STORES 2278,5411,Shopping Provision COVID19,10.48,0.00,10.48
Children and Young Peoples Services,Head of Childrens Social Care,085624,Families First Crook,Supplies and Services,338045,Services,02-Apr-2020,000009055115695,DARLINGTON BC INTERNET,9399,Legal expenses 338045,11.00,0.00,11.00
Neighbourhoods and Climate Change,Partnerships & Community Engagement Div.,060473,COVID19 Shopping Community Hub,Supplies and Services,342506,Provisions E324,02-Apr-2020,000009055115703,SAINSBURYS LOC4658,5411,Shopping Provision COVID19,23.20,0.00,23.20
Neighbourhoods and Climate Change,Partnerships & Community Engagement Div.,060473,COVID19 Shopping Community Hub,Supplies and Services,342506,Provisions E324,02-Apr-2020,000009055115709,SAINSBURYS LOC4658,5411,Shopping Provision COVID19,10.25,0.00,10.25
Neighbourhoods and Climate Change,Partnerships & Community Engagement Div.,060473,COVID19 Shopping Community Hub,Supplies and Services,342506,Provisions E324,02-Apr-2020,000009055115717,ASDA STORES,5411,Shopping Provision COVID19,14.55,0.00,14.55
Children and Young Peoples Services,Head of Childrens Social Care,085332,Middlestone Moor CU,Supplies and Services,304999,Equipment and Materials,02-Apr-2020,000009055115725,HOME BARGAINS SPENNYMO,5251,Misc equipment tools and materials,10.65,0.00,10.65
Children and Young Peoples Services,Head of Early Help Inclusion & Vulnerable Children.,085961,Themed Week Activity,Supplies and Services,304403,Equipment and Materials,02-Apr-2020,000009055115735,AMZNMKTPLACE AMAZON.CO,5999,Other consumables,3.99,0.67,3.32
Children and Young Peoples Services,Head of Early Help Inclusion & Vulnerable Children.,085957,Secure Management,Supplies and Services,304403,Equipment and Materials,02-Apr-2020,000009055115751,AMZNMktplace,5999,Other consumables,99.99,16.67,83.32
Children and Young Peoples Services,Head of Early Help Inclusion & Vulnerable Children.,085957,Secure Management,Supplies and Services,304403,Equipment and Materials,02-Apr-2020,000009055115757,AMZNMktplace,5999,Other consumables,5.99,1.00,4.99
Neighbourhoods and Climate Change,Partnerships & Community Engagement Div.,060473,COVID19 Shopping Community Hub,Supplies and Services,342506,Provisions E324,02-Apr-2020,000009055115793,TESCO STORES 2916,5411,Shopping Provision COVID19,13.68,0.00,13.68
Neighbourhoods and Climate Change,Partnerships & Community Engagement Div.,060473,COVID19 Shopping Community Hub,Supplies and Services,342506,Provisions E324,02-Apr-2020,000009055115801,TESCO STORES 2916,5411,Shopping Provision COVID19,4.00,0.00,4.00
Neighbourhoods and Climate Change,Partnerships & Community Engagement Div.,060473,COVID19 Shopping Community Hub,Supplies and Services,342506,Provisions E324,02-Apr-2020,000009055115829,HOME BARGAINS SPENNYMO,5251,Shopping Provision COVID19,2.27,0.00,2.27
Neighbourhoods and Climate Change,Partnerships & Community Engagement Div.,060473,COVID19 Shopping Community Hub,Supplies and Services,342506,Provisions E324,02-Apr-2020,000009055115833,ICELAND,5411,Shopping Provision COVID19,22.05,0.00,22.05
Children and Young Peoples Services,Head of Childrens Social Care,085342,16 Hickstead Rise (previously 9 Cedar Ave),Supplies and Services,304403,Equipment and Materials,02-Apr-2020,000009055115839,AMZNMKTPLACE AMAZON.CO,5999,Other consumables,32.69,0.00,32.69
Children and Young Peoples Services,Head of Education and Skills,071732,Dean Bank Childcare,Supplies and Services,304403,Equipment and Materials,02-Apr-2020,000009055115857,AMZNMktplace,5999,Other consumables,17.99,0.00,17.99
Neighbourhoods and Climate Change,Partnerships & Community Engagement Div.,060473,COVID19 Shopping Community Hub,Supplies and Services,342506,Provisions E324,02-Apr-2020,000009055115867,SAINSBURYS 0776,5411,Shopping Provision COVID19,41.89,0.00,41.89
Neighbourhoods and Climate Change,Partnerships & Community Engagement Div.,060473,COVID19 Shopping Community Hub,Supplies and Services,342506,Provisions E324,02-Apr-2020,000009055115877,SAINSBURYS 0776,5411,Shopping Provision COVID19,32.34,0.00,32.34
Children and Young Peoples Services,Head of Childrens Social Care,085332,Middlestone Moor CU,Supplies and Services,324117,Provisions E324,02-Apr-2020,000009055115929,IZ Thames fruit and v,5499,Catering costs - provisions,33.00,0.00,33.00
Neighbourhoods and Climate Change,Partnerships & Community Engagement Div.,060473,COVID19 Shopping Community Hub,Supplies and Services,342506,Provisions E324,02-Apr-2020,000009055115945,TESCO STORES 6329,5411,Shopping Provision COVID19,29.13,0.00,29.13
Neighbourhoods and Climate Change,Partnerships & Community Engagement Div.,060473,COVID19 Shopping Community Hub,Supplies and Services,342506,Provisions E324,02-Apr-2020,000009055115959,TESCO STORES 6329,5411,Shopping Provision COVID19,29.11,0.00,29.11
Neighbourhoods and Climate Change,Partnerships & Community Engagement Div.,060473,COVID19 Shopping Community Hub,Supplies and Services,342506,Provisions E324,02-Apr-2020,000009055115965,TESCO STORES 6329,5411,Shopping Provision COVID19,25.46,0.00,25.46
Neighbourhoods and Climate Change,Partnerships & Community Engagement Div.,060473,COVID19 Shopping Community Hub,Supplies and Services,342506,Provisions E324,02-Apr-2020,000009055115967,TESCO STORES 6329,5411,Shopping Provision COVID19,10.57,0.00,10.57
Neighbourhoods and Climate Change,Partnerships & Community Engagement Div.,060473,COVID19 Shopping Community Hub,Supplies and Services,342506,Provisions E324,02-Apr-2020,000009055115971,TESCO STORES 6329,5411,Shopping Provision COVID19,5.03,0.00,5.03
Neighbourhoods and Climate Change,Partnerships & Community Engagement Div.,060473,COVID19 Shopping Community Hub,Supplies and Services,342506,Provisions E324,02-Apr-2020,000009055115973,TESCO STORES 6329,5411,Shopping Provision COVID19,3.25,0.00,3.25
Neighbourhoods and Climate Change,Partnerships & Community Engagement Div.,060473,COVID19 Shopping Community Hub,Supplies and Services,342506,Provisions E324,02-Apr-2020,000009055115983,TESCO STORES 6329,5411,Shopping Provision COVID19,1.95,0.00,1.95
Neighbourhoods and Climate Change,Partnerships & Community Engagement Div.,060473,COVID19 Shopping Community Hub,Supplies and Services,342506,Provisions E324,02-Apr-2020,000009055115989,LIDL GB SPENNYMOOR,5411,Shopping Provision COVID19,7.24,0.00,7.24
Neighbourhoods and Climate Change,Partnerships & Community Engagement Div.,060473,COVID19 Shopping Community Hub,Supplies and Services,342506,Provisions E324,02-Apr-2020,000009055116039,LIDL GB SPENNYMOOR,5411,Shopping Provision COVID19,18.19,0.00,18.19
Neighbourhoods and Climate Change,Partnerships & Community Engagement Div.,060473,COVID19 Shopping Community Hub,Supplies and Services,342506,Provisions E324,02-Apr-2020,000009055116049,ASDA STORES,5411,Shopping Provision COVID19,23.40,0.00,23.40
Neighbourhoods and Climate Change,Partnerships & Community Engagement Div.,060473,COVID19 Shopping Community Hub,Supplies and Services,342506,Provisions E324,02-Apr-2020,000009055116057,ASDA STORES,5411,Shopping Provision COVID19,8.92,0.00,8.92
Resources BK0010,Business Support,052986,CYPS - Locality and Operational Support,Supplies and Services,304403,Equipment and Materials,02-Apr-2020,000009055116113,AMZNMktplace,5999,Other consumables,182.14,0.00,182.14
"Regeneration, Economy and Growth",Development and Housing,031500,Housing Solutions - Core Team,Supplies and Services,328041,Clothing uniforms and laundry E328,02-Apr-2020,000009055116151,ARGOS LTD,5310,Clothing uniforms and laundry,79.92,0.00,79.92
"Regeneration, Economy and Growth",Development and Housing,031500,Housing Solutions - Core Team,Supplies and Services,328041,Clothing uniforms and laundry E328,02-Apr-2020,000009055116157,ARGOS LTD,5310,Clothing uniforms and laundry,134.97,0.00,134.97
"Regeneration, Economy and Growth",Development and Housing,031500,Housing Solutions - Core Team,Supplies and Services,328041,Clothing uniforms and laundry E328,02-Apr-2020,000009055116159,ARGOS LTD,5310,Clothing uniforms and laundry,119.88,0.00,119.88
Children and Young Peoples Services,Head of Early Help Inclusion & Vulnerable Children.,088119,Durham 0-19 Community Family Hub,Supplies and Services,324117,Provisions E324,02-Apr-2020,000009055116167,LIDL GB LANGLEY MOOR,5411,Catering costs - provisions,60.21,0.00,60.21
Children and Young Peoples Services,Head of Early Help Inclusion & Vulnerable Children.,088119,Durham 0-19 Community Family Hub,Supplies and Services,324117,Provisions E324,02-Apr-2020,000009055116171,CO-OP GROUP 010460,5411,Catering costs - provisions,2.80,0.00,2.80
"Regeneration, Economy and Growth",Development and Housing,031576,B& B - Temp Accom,Supplies and Services,364320,Grants to Voluntary Organisations,02-Apr-2020,000009055116195,BUDGET H EXPRESS HOTEL,7011,Accommodation assistance,500.00,83.33,416.67
"Regeneration, Economy and Growth",Development and Housing,031576,B& B - Temp Accom,Supplies and Services,364320,Grants to Voluntary Organisations,02-Apr-2020,000009055116197,BUDGET H EXPRESS HOTEL,7011,Accommodation assistance,123.00,20.50,102.50
Children and Young Peoples Services,Head of Childrens Social Care,085613,Families First Durham Central,Supplies and Services,364320,Grants to Voluntary Organisations,02-Apr-2020,000009055116217,ARGOS LTD,5310,Accommodation assistance,319.98,0.00,319.98
Children and Young Peoples Services,Head of Childrens Social Care,085613,Families First Durham Central,Supplies and Services,364320,Grants to Voluntary Organisations,02-Apr-2020,000009055116221,ARGOS LTD,5310,Accommodation assistance,82.95,0.00,82.95
Neighbourhoods and Climate Change,Partnerships & Community Engagement Div.,060473,COVID19 Shopping Community Hub,Supplies and Services,342506,Provisions E324,02-Apr-2020,000009055116225,NISA LOCAL,5411,Shopping Provision COVID19,6.86,0.00,6.86
Neighbourhoods and Climate Change,Partnerships & Community Engagement Div.,060473,COVID19 Shopping Community Hub,Supplies and Services,342506,Provisions E324,02-Apr-2020,000009055116229,CO-OP GROUP 010989,5411,Shopping Provision COVID19,16.50,0.00,16.50
Children and Young Peoples Services,Head of Childrens Social Care,085334,West Rainton Satelite Home,Third Party Payments,430100,Rendered by Private Contractors,02-Apr-2020,000009055116417,THE ELECTRICAL SHOWROO,1731,Payments to sub-contractors,53.70,0.00,53.70
Adult and Health Services,Head of Adults,055643,Hawthorn House LD Respite Unit,Supplies and Services,304403,Equipment and Materials,02-Apr-2020,000009055116427,AMZNMKTPLACE AMAZON.CO,5999,Other consumables,57.15,0.00,57.15
Adult and Health Services,Head of Adults,055643,Hawthorn House LD Respite Unit,Supplies and Services,324117,Provisions E324,02-Apr-2020,000009055116435,ASDA GEORGE COM LEEDS,5411,Catering costs - provisions,24.95,0.00,24.95
Adult and Health Services,Head of Adults,055643,Hawthorn House LD Respite Unit,Supplies and Services,324117,Provisions E324,02-Apr-2020,000009055116443,CO-OP GROUP 010465,5411,Catering costs - provisions,15.30,0.00,15.30
Children and Young Peoples Services,Head of Childrens Social Care,085333,Coxhoe Satelite Home,Supplies and Services,304403,Equipment and Materials,02-Apr-2020,000009055116467,AMZNMktplace,5999,Other consumables,14.00,2.33,11.67
Children and Young Peoples Services,Head of Childrens Social Care,085333,Coxhoe Satelite Home,Supplies and Services,324117,Provisions E324,02-Apr-2020,000009055116473,CO-OP GROUP 310016,5411,Catering costs - provisions,6.20,0.00,6.20
Neighbourhoods and Climate Change,Environmental Services,010367,C&G - South Grounds Maintenance,Supplies and Services,304999,Equipment and Materials,02-Apr-2020,000009055116485,RADMORETUCKER.CO.UK,763,Misc equipment tools and materials,34.92,0.00,34.92
Children and Young Peoples Services,Head of Education and Skills,078554,Adult Skills-Main,Employees,040149,Recruitment Instruction and Training,02-Apr-2020,000009055116491,PEARSON ED LTD,8299,Training-all costs,111.31,0.00,111.31
Children and Young Peoples Services,Head of Childrens Social Care,085352,Tow Law CU,Supplies and Services,324117,Provisions E324,02-Apr-2020,000009055116501,ASDA GEORGE COM LEEDS,5411,Catering costs - provisions,112.45,0.00,112.45
Children and Young Peoples Services,Head of Childrens Social Care,085352,Tow Law CU,Supplies and Services,328041,Clothing uniforms and laundry E328,02-Apr-2020,000009055116507,ARGOS LTD,5310,Clothing uniforms and laundry,35.95,0.00,35.95
Children and Young Peoples Services,Head of Childrens Social Care,085352,Tow Law CU,Supplies and Services,328041,Clothing uniforms and laundry E328,02-Apr-2020,000009055116513,ARGOS LTD,5310,Clothing uniforms and laundry,255.95,0.00,255.95
"Regeneration, Economy and Growth",Development and Housing,031576,B& B - Temp Accom,Supplies and Services,364320,Grants to Voluntary Organisations,02-Apr-2020,000009055116529,GRAINGER HOTEL,7011,Accommodation assistance,55.00,0.00,55.00
Neighbourhoods and Climate Change,Partnerships & Community Engagement Div.,060473,COVID19 Shopping Community Hub,Supplies and Services,342506,Provisions E324,02-Apr-2020,000009055116547,LIDL GB HOUGHTON LE S,5411,Shopping Provision COVID19,7.42,0.00,7.42
Children and Young Peoples Services,Head of Early Help Inclusion & Vulnerable Children.,071693,Brandon Childrens Centre,Supplies and Services,324117,Provisions E324,02-Apr-2020,000009055116557,BESTWAY WHOLESALE,5451,Catering costs - provisions,5.00,0.00,5.00
Children and Young Peoples Services,Head of Early Help Inclusion & Vulnerable Children.,071693,Brandon Childrens Centre,Supplies and Services,324117,Provisions E324,02-Apr-2020,000009055116561,BESTWAY WHOLESALE,5451,Catering costs - provisions,34.56,0.00,34.56
Children and Young Peoples Services,Head of Early Help Inclusion & Vulnerable Children.,074000,TTF-Attachment and Results,Transfer Payments,525033,Other,02-Apr-2020,000009055116565,Amazon.co.uk EK76W68B5,5969,Grants to individuals,27.99,4.67,23.32
Children and Young Peoples Services,Head of Early Help Inclusion & Vulnerable Children.,074000,TTF-Attachment and Results,Transfer Payments,525033,Other,02-Apr-2020,000009055116569,Amazon.co.uk EZ74291Z5,5969,Grants to individuals,27.99,4.67,23.32
Children and Young Peoples Services,Head of Early Help Inclusion & Vulnerable Children.,074000,TTF-Attachment and Results,Transfer Payments,525033,Other,02-Apr-2020,000009055116571,Amazon.co.uk I96RL2GL5,5969,Grants to individuals,27.99,4.67,23.32
Children and Young Peoples Services,Head of Early Help Inclusion & Vulnerable Children.,074000,TTF-Attachment and Results,Transfer Payments,525033,Other,02-Apr-2020,000009055116577,Amazon.co.uk L648C9WU5,5969,Grants to individuals,27.99,4.67,23.32
Children and Young Peoples Services,Head of Early Help Inclusion & Vulnerable Children.,074000,TTF-Attachment and Results,Transfer Payments,525033,Other,02-Apr-2020,000009055116587,Amazon.co.uk L79AH5UY5,5969,Grants to individuals,27.99,4.67,23.32
Children and Young Peoples Services,Head of Early Help Inclusion & Vulnerable Children.,074000,TTF-Attachment and Results,Transfer Payments,525033,Other,02-Apr-2020,000009055116591,Amazon.co.uk MX8XY1334,5969,Grants to individuals,27.99,4.67,23.32
Children and Young Peoples Services,Head of Early Help Inclusion & Vulnerable Children.,074000,TTF-Attachment and Results,Transfer Payments,525033,Other,02-Apr-2020,000009055116595,Amazon.co.uk RV6553CS5,5969,Grants to individuals,27.99,4.67,23.32
Children and Young Peoples Services,Head of Early Help Inclusion & Vulnerable Children.,074000,TTF-Attachment and Results,Transfer Payments,525033,Other,02-Apr-2020,000009055116601,Amazon.co.uk R25FD5X55,5969,Grants to individuals,27.99,4.67,23.32
Children and Young Peoples Services,Head of Early Help Inclusion & Vulnerable Children.,074000,TTF-Attachment and Results,Transfer Payments,525033,Other,02-Apr-2020,000009055116607,Amazon.co.uk UD2D52675,5969,Grants to individuals,27.99,4.67,23.32
Children and Young Peoples Services,Head of Early Help Inclusion & Vulnerable Children.,074000,TTF-Attachment and Results,Transfer Payments,525033,Other,02-Apr-2020,000009055116611,Amazon.co.uk UD4KJ7455,5969,Grants to individuals,27.99,4.67,23.32
Children and Young Peoples Services,Head of Early Help Inclusion & Vulnerable Children.,074000,TTF-Attachment and Results,Transfer Payments,525033,Other,02-Apr-2020,000009055116617,Amazon.co.uk YC2KN4YF5,5969,Grants to individuals,27.99,4.67,23.32
Children and Young Peoples Services,Head of Early Help Inclusion & Vulnerable Children.,074000,TTF-Attachment and Results,Transfer Payments,525033,Other,02-Apr-2020,000009055116623,Amazon.co.uk 0G6M66L95,5969,Grants to individuals,27.99,4.67,23.32
Children and Young Peoples Services,Head of Early Help Inclusion & Vulnerable Children.,074000,TTF-Attachment and Results,Transfer Payments,525033,Other,02-Apr-2020,000009055116629,Amazon.co.uk 1T1D80IA5,5969,Grants to individuals,27.99,4.67,23.32
Children and Young Peoples Services,Head of Early Help Inclusion & Vulnerable Children.,074000,TTF-Attachment and Results,Transfer Payments,525033,Other,02-Apr-2020,000009055116635,Amazon.co.uk 3N6MP3DO5,5969,Grants to individuals,27.99,4.67,23.32
Children and Young Peoples Services,Head of Early Help Inclusion & Vulnerable Children.,074000,TTF-Attachment and Results,Transfer Payments,525033,Other,02-Apr-2020,000009055116645,Amazon.co.uk 358SW6MB5,5969,Grants to individuals,27.99,4.67,23.32
Children and Young Peoples Services,Head of Early Help Inclusion & Vulnerable Children.,074000,TTF-Attachment and Results,Transfer Payments,525033,Other,02-Apr-2020,000009055116655,Amazon.co.uk 7K1OA3GA5,5969,Grants to individuals,27.99,4.67,23.32
Children and Young Peoples Services,Head of Early Help Inclusion & Vulnerable Children.,074000,TTF-Attachment and Results,Transfer Payments,525033,Other,02-Apr-2020,000009055116665,Amazon.co.uk 7W2LI2B15,5969,Grants to individuals,27.99,4.67,23.32
Children and Young Peoples Services,Head of Early Help Inclusion & Vulnerable Children.,074000,TTF-Attachment and Results,Transfer Payments,525033,Other,02-Apr-2020,000009055116677,Amazon.co.uk 8P8FR5FZ5,5969,Grants to individuals,27.99,4.67,23.32
Children and Young Peoples Services,Head of Early Help Inclusion & Vulnerable Children.,074000,TTF-Attachment and Results,Transfer Payments,525033,Other,02-Apr-2020,000009055116685,Amazon.co.uk 855X64PX5,5969,Grants to individuals,27.99,4.67,23.32
Children and Young Peoples Services,Head of Early Help Inclusion & Vulnerable Children.,074000,TTF-Attachment and Results,Transfer Payments,525033,Other,02-Apr-2020,000009055116695,Amazon.co.uk 9D7CH3L05,5969,Grants to individuals,27.99,4.67,23.32
Children and Young Peoples Services,Head of Childrens Social Care,085342,16 Hickstead Rise (previously 9 Cedar Ave),Supplies and Services,384984,Miscellaneous Expenses,02-Apr-2020,000009055116705,AMZNMktplace,5999,Other school expenses,20.98,0.00,20.98
Resources BK0010,Business Support,052986,CYPS - Locality and Operational Support,Supplies and Services,324117,Provisions E324,02-Apr-2020,000009055116711,WILKO.COM,5399,Catering costs - provisions,87.15,14.53,72.62
Children and Young Peoples Services,Head of Childrens Social Care,085334,West Rainton Satelite Home,Supplies and Services,324117,Provisions E324,02-Apr-2020,000009055116725,TESCO STORES 2371,5411,Catering costs - provisions,120.82,0.00,120.82
Children and Young Peoples Services,Head of Childrens Social Care,085334,West Rainton Satelite Home,Supplies and Services,304999,Equipment and Materials,02-Apr-2020,000009055116737,HOME BARGAINS,5251,Misc equipment tools and materials,30.47,0.00,30.47
Children and Young Peoples Services,Head of Childrens Social Care,085334,West Rainton Satelite Home,Supplies and Services,304999,Equipment and Materials,02-Apr-2020,000009055116749,HOME BARGAINS,5251,Misc equipment tools and materials,17.94,0.00,17.94
Children and Young Peoples Services,COVID19 - Children and Young Peoples Services,091002,COVID19 - Children and Young Peoples Services,Supplies and Services,304403,Equipment and Materials,02-Apr-2020,000009055116759,AMZNMktplace,5999,Other consumables,34.98,5.83,29.15
Children and Young Peoples Services,COVID19 - Children and Young Peoples Services,091002,COVID19 - Children and Young Peoples Services,Supplies and Services,304403,Equipment and Materials,02-Apr-2020,000009055116759 - 1,AMZNMktplace,5999,Other consumables,16.01,,16.01
Neighbourhoods and Climate Change,Partnerships & Community Engagement Div.,060473,COVID19 Shopping Community Hub,Supplies and Services,342506,Provisions E324,02-Apr-2020,000009055116787,TESCO STORES 2371,5411,Shopping Provision COVID19,5.49,0.00,5.49
Neighbourhoods and Climate Change,Partnerships & Community Engagement Div.,060473,COVID19 Shopping Community Hub,Supplies and Services,342506,Provisions E324,02-Apr-2020,000009055116807,LIDL GB LANGLEY MOOR,5411,Shopping Provision COVID19,34.49,0.00,34.49
Adult and Health Services,Head of Adults,055301,Stanley Pathways,Supplies and Services,304259,Equipment and Materials,02-Apr-2020,000009055116855,MORRISON BUSTY,9399,Equipment-purchase and rental,99.00,0.00,99.00
"Regeneration, Economy and Growth",Development and Housing,031576,B& B - Temp Accom,Supplies and Services,364320,Grants to Voluntary Organisations,02-Apr-2020,000009055116869,BUDGET H EXPRESS HOTEL,7011,Accommodation assistance,89.00,0.00,89.00
"Regeneration, Economy and Growth",Development and Housing,031576,B& B - Temp Accom,Supplies and Services,364320,Grants to Voluntary Organisations,02-Apr-2020,000009055116877,BUDGET H EXPRESS HOTEL,7011,Accommodation assistance,50.00,0.00,50.00
Children and Young Peoples Services,Head of Early Help Inclusion & Vulnerable Children.,088107,Ferryhill & Newton Aycliffe 0-19 Community Family Hub,Supplies and Services,324117,Provisions E324,02-Apr-2020,000009055116895,SAINSBURYS SACAT 0776,5411,Catering costs - provisions,30.30,0.00,30.30
Resources BK0010,COVID19 - Resources,091007,COVID19 - Resources,Supplies and Services,304403,Equipment and Materials,02-Apr-2020,000009055116919,AMZNMktplace,5999,Other consumables,74.95,12.50,62.45
Children and Young Peoples Services,Head of Childrens Social Care,085341,High Etherley Satelite Home,Supplies and Services,324117,Provisions E324,02-Apr-2020,000009055116921,TESCO STORES 2916,5411,Catering costs - provisions,16.55,0.00,16.55
Neighbourhoods and Climate Change,Partnerships & Community Engagement Div.,060473,COVID19 Shopping Community Hub,Supplies and Services,342506,Provisions E324,02-Apr-2020,000009055116929,SAINSBURYS SACAT 0776,5411,Shopping Provision COVID19,12.25,0.00,12.25
Children and Young Peoples Services,Head of Childrens Social Care,085333,Coxhoe Satelite Home,Employees,040149,Recruitment Instruction and Training,02-Apr-2020,000009057718647,PAYPAL DIMEXSPORTS EB,8999,Training-all costs,13.99,0.00,13.99
"Regeneration, Economy and Growth",Development and Housing,031500,Housing Solutions - Core Team,Supplies and Services,352001,Conference Expenses,02-Apr-2020,000009057719007,AYCLIFFE BIZ,7011,Conferencesseminars fees etc,50.00,0.00,50.00
"Regeneration, Economy and Growth",Development and Housing,031500,Housing Solutions - Core Team,Supplies and Services,352001,Conference Expenses,02-Apr-2020,000009057719015,AYCLIFFE BIZ,7011,Conferencesseminars fees etc,100.00,0.00,100.00
Children and Young Peoples Services,Head of Education and Skills,078100,Curric and Professional Development 078100,Third Party Payments,430100,Rendered by Private Contractors,02-Apr-2020,000009057719461,WWW.ARCHER-YATES.CO.UK,7399,Payments to sub-contractors,99.00,0.00,99.00
Resources BK0010,Business Support,052986,CYPS - Locality and Operational Support,Supplies and Services,304999,Equipment and Materials,02-Apr-2020,000009057719501,BOOTS.COM,5912,Misc equipment tools and materials,97.92,16.32,81.60
Resources BK0010,Business Support,052986,CYPS - Locality and Operational Support,Supplies and Services,304999,Equipment and Materials,02-Apr-2020,000009057719501 - 1,BOOTS.COM,5912,Misc equipment tools and materials,0.03,,0.03
Resources BK0010,Digital and Customer Services,065481,Technical Services 065481,Supplies and Services,372009,Subscriptions E372,03-Apr-2020,000007176717316,AWS EMEA,7399,Subscriptions 372009,-1.64,0.00,-1.64
Children and Young Peoples Services,Head of Childrens Social Care,085332,Middlestone Moor CU,Supplies and Services,324117,Provisions E324,03-Apr-2020,000009055115547,TESCO STORE 3539,5411,Catering costs - provisions,-3.50,0.00,-3.50
"Regeneration, Economy and Growth",Development and Housing,031617,Project Beta Sustainability Fund,Supplies and Services,324117,Provisions E324,03-Apr-2020,000009057718563,B&M 147 - FERRYHILL,5399,Catering costs - provisions,24.27,0.00,24.27
"Regeneration, Economy and Growth",Development and Housing,031617,Project Beta Sustainability Fund,Supplies and Services,352001,Conference Expenses,03-Apr-2020,000009057718565,BUDGET H EXPRESS HOTEL,7011,Conferencesseminars fees etc,445.00,0.00,445.00
"Regeneration, Economy and Growth",Development and Housing,031576,B& B - Temp Accom,Supplies and Services,364320,Grants to Voluntary Organisations,03-Apr-2020,000009057718577,AYCLIFFE BIZ,7011,Accommodation assistance,114.00,0.00,114.00
"Regeneration, Economy and Growth",Development and Housing,031576,B& B - Temp Accom,Supplies and Services,364320,Grants to Voluntary Organisations,03-Apr-2020,000009057718581,HI NEWCASTLE WASHI,7011,Accommodation assistance,260.00,0.00,260.00
Children and Young Peoples Services,Head of Education and Skills,075021,Youth Employment Initiative,Supplies and Services,364301,Grants to Voluntary Organisations,03-Apr-2020,000009057718591,SCREWFIX DIRECT,5200,Hardship,19.99,3.33,16.66
Children and Young Peoples Services,Head of Childrens Social Care,085332,Middlestone Moor CU,Supplies and Services,324117,Provisions E324,03-Apr-2020,000009057718601,TESCO STORES 2371,5411,Catering costs - provisions,158.96,0.00,158.96
Children and Young Peoples Services,Head of Childrens Social Care,085341,High Etherley Satelite Home,Supplies and Services,324117,Provisions E324,03-Apr-2020,000009057718625,SAINSBURYS 2199,5411,Catering costs - provisions,37.39,0.00,37.39
Children and Young Peoples Services,Head of Childrens Social Care,085333,Coxhoe Satelite Home,Supplies and Services,304403,Equipment and Materials,03-Apr-2020,000009057718651,AMZNMktplace,5999,Other consumables,33.98,0.00,33.98
Neighbourhoods and Climate Change,Partnerships & Community Engagement Div.,060473,COVID19 Shopping Community Hub,Supplies and Services,342506,Provisions E324,03-Apr-2020,000009057718673,ALDI STORES,5411,Shopping Provision COVID19,23.03,0.00,23.03
Neighbourhoods and Climate Change,Partnerships & Community Engagement Div.,060473,COVID19 Shopping Community Hub,Supplies and Services,342506,Provisions E324,03-Apr-2020,000009057718679,WM MORRISONS STORE,5411,Shopping Provision COVID19,21.19,0.00,21.19
Children and Young Peoples Services,Head of Childrens Social Care,085352,Tow Law CU,Supplies and Services,324117,Provisions E324,03-Apr-2020,000009057718687,CO-OP GROUP 010670,5411,Catering costs - provisions,30.17,0.00,30.17
Resources BK0010,Digital and Customer Services,065487,ICT Telephony Recharges,Supplies and Services,372009,Subscriptions E372,03-Apr-2020,000009057718725,AWS EMEA,7399,Subscriptions 372009,1.64,0.00,1.64
Neighbourhoods and Climate Change,Partnerships & Community Engagement Div.,060473,COVID19 Shopping Community Hub,Supplies and Services,342506,Provisions E324,03-Apr-2020,000009057718733,TESCO PFS 5340,5541,Shopping Provision COVID19,2.10,0.00,2.10
Neighbourhoods and Climate Change,Partnerships & Community Engagement Div.,060473,COVID19 Shopping Community Hub,Supplies and Services,342506,Provisions E324,03-Apr-2020,000009057718737,ASDA SUPERSTORE,5411,Shopping Provision COVID19,19.60,0.00,19.60
Children and Young Peoples Services,Head of Early Help Inclusion & Vulnerable Children.,085957,Secure Management,Supplies and Services,304259,Equipment and Materials,03-Apr-2020,000009057718755,M and M Direct Ltd,5941,Equipment-purchase and rental,59.95,0.00,59.95
Children and Young Peoples Services,Head of Early Help Inclusion & Vulnerable Children.,085957,Secure Management,Supplies and Services,304403,Equipment and Materials,03-Apr-2020,000009057718759,AMZNMKTPLACE AMAZON.CO,5999,Other consumables,22.95,3.83,19.12
Neighbourhoods and Climate Change,Partnerships & Community Engagement Div.,060473,COVID19 Shopping Community Hub,Supplies and Services,342506,Provisions E324,03-Apr-2020,000009057718773,TESCO STORES 2916,5411,Shopping Provision COVID19,32.94,0.00,32.94
Neighbourhoods and Climate Change,Partnerships & Community Engagement Div.,060473,COVID19 Shopping Community Hub,Supplies and Services,342506,Provisions E324,03-Apr-2020,000009057718777,TESCO STORES 2916,5411,Shopping Provision COVID19,29.78,0.00,29.78
Neighbourhoods and Climate Change,Partnerships & Community Engagement Div.,060473,COVID19 Shopping Community Hub,Supplies and Services,342506,Provisions E324,03-Apr-2020,000009057718801,TESCO STORES 6329,5411,Shopping Provision COVID19,73.17,0.00,73.17
Neighbourhoods and Climate Change,Partnerships & Community Engagement Div.,060473,COVID19 Shopping Community Hub,Supplies and Services,342506,Provisions E324,03-Apr-2020,000009057718817,SAINSBURYS LOC (4590),5411,Shopping Provision COVID19,46.20,0.00,46.20
Neighbourhoods and Climate Change,Partnerships & Community Engagement Div.,060473,COVID19 Shopping Community Hub,Supplies and Services,342506,Provisions E324,03-Apr-2020,000009057718825,SAINSBURYS LOC (4590),5411,Shopping Provision COVID19,16.77,0.00,16.77
Neighbourhoods and Climate Change,Partnerships & Community Engagement Div.,060473,COVID19 Shopping Community Hub,Supplies and Services,342506,Provisions E324,03-Apr-2020,000009057718829,SAINSBURYS LOC (4590),5411,Shopping Provision COVID19,15.55,0.00,15.55
Neighbourhoods and Climate Change,Partnerships & Community Engagement Div.,060473,COVID19 Shopping Community Hub,Supplies and Services,342506,Provisions E324,03-Apr-2020,000009057718835,BELMONT EXPRESS,5411,Shopping Provision COVID19,3.49,0.00,3.49
Neighbourhoods and Climate Change,Partnerships & Community Engagement Div.,060473,COVID19 Shopping Community Hub,Supplies and Services,342506,Provisions E324,03-Apr-2020,000009057718839,CO-OP GROUP FOOD,5411,Shopping Provision COVID19,16.94,0.00,16.94
Neighbourhoods and Climate Change,Partnerships & Community Engagement Div.,060473,COVID19 Shopping Community Hub,Supplies and Services,342506,Provisions E324,03-Apr-2020,000009057718843,FAMILY SHOPPER,5441,Shopping Provision COVID19,3.50,0.00,3.50
Children and Young Peoples Services,Head of Childrens Social Care,085334,West Rainton Satelite Home,Supplies and Services,324117,Provisions E324,03-Apr-2020,000009057718867,TESCO STORES 2371,5411,Catering costs - provisions,8.85,0.00,8.85
Children and Young Peoples Services,Head of Childrens Social Care,085332,Middlestone Moor CU,Supplies and Services,324117,Provisions E324,03-Apr-2020,000009057718925,TESCO STORES 2916,5411,Catering costs - provisions,54.30,0.00,54.30
Children and Young Peoples Services,Head of Childrens Social Care,085332,Middlestone Moor CU,Supplies and Services,304221,Equipment and Materials,03-Apr-2020,000009057718927,HOLLAND REED,5211,Direct materials,40.00,0.00,40.00
Neighbourhoods and Climate Change,Partnerships & Community Engagement Div.,060473,COVID19 Shopping Community Hub,Supplies and Services,342506,Provisions E324,03-Apr-2020,000009057718931,TESCO STORES 6329,5411,Shopping Provision COVID19,16.84,0.00,16.84
Neighbourhoods and Climate Change,Partnerships & Community Engagement Div.,060473,COVID19 Shopping Community Hub,Supplies and Services,342506,Provisions E324,03-Apr-2020,000009057718933,TESCO STORES 6329,5411,Shopping Provision COVID19,9.64,0.00,9.64
Neighbourhoods and Climate Change,Partnerships & Community Engagement Div.,060473,COVID19 Shopping Community Hub,Supplies and Services,342506,Provisions E324,03-Apr-2020,000009057718989,ALDI 59 774,5411,Shopping Provision COVID19,14.69,0.00,14.69
Neighbourhoods and Climate Change,Partnerships & Community Engagement Div.,060473,COVID19 Shopping Community Hub,Supplies and Services,342506,Provisions E324,03-Apr-2020,000009057718993,ALDI 59 774,5411,Shopping Provision COVID19,6.30,0.00,6.30
Neighbourhoods and Climate Change,Partnerships & Community Engagement Div.,060473,COVID19 Shopping Community Hub,Supplies and Services,342506,Provisions E324,03-Apr-2020,000009057718995,WM MORRISONS STORE,5411,Shopping Provision COVID19,23.44,0.00,23.44
"Regeneration, Economy and Growth",Development and Housing,031500,Housing Solutions - Core Team,Supplies and Services,352001,Conference Expenses,03-Apr-2020,000009057719003,AYCLIFFE BIZ,7011,Conferencesseminars fees etc,42.00,0.00,42.00
"Regeneration, Economy and Growth",Development and Housing,031500,Housing Solutions - Core Team,Supplies and Services,352001,Conference Expenses,03-Apr-2020,000009057719011,AYCLIFFE BIZ,7011,Conferencesseminars fees etc,100.00,0.00,100.00
"Regeneration, Economy and Growth",Development and Housing,031500,Housing Solutions - Core Team,Supplies and Services,352001,Conference Expenses,03-Apr-2020,000009057719017,AYCLIFFE BIZ,7011,Conferencesseminars fees etc,50.00,0.00,50.00
Neighbourhoods and Climate Change,Environmental Services,010367,C&G - South Grounds Maintenance,Supplies and Services,304999,Equipment and Materials,03-Apr-2020,000009057719153,GUSTHARTS,5072,Misc equipment tools and materials,21.61,3.60,18.01
"Regeneration, Economy and Growth",Development and Housing,031500,Housing Solutions - Core Team,Supplies and Services,352001,Conference Expenses,03-Apr-2020,000009057719165,AYCLIFFE BIZ,7011,Conferencesseminars fees etc,212.00,0.00,212.00
"Regeneration, Economy and Growth",Development and Housing,031500,Housing Solutions - Core Team,Supplies and Services,328041,Clothing uniforms and laundry E328,03-Apr-2020,000009057719169,ARGOS LTD,5310,Clothing uniforms and laundry,59.98,0.00,59.98
"Regeneration, Economy and Growth",Development and Housing,031576,B& B - Temp Accom,Supplies and Services,364320,Grants to Voluntary Organisations,03-Apr-2020,000009057719209,GRAINGER HOTEL,7011,Accommodation assistance,150.00,25.00,125.00
"Regeneration, Economy and Growth",Development and Housing,031576,B& B - Temp Accom,Supplies and Services,364320,Grants to Voluntary Organisations,03-Apr-2020,000009057719215,GRAINGER HOTEL,7011,Accommodation assistance,105.00,17.50,87.50
Children and Young Peoples Services,Head of Early Help Inclusion & Vulnerable Children.,088108,Spennymoor & Shildon 0-19 Targeted Family Support,Supplies and Services,304259,Equipment and Materials,03-Apr-2020,000009057719245,AMZNMktplace,5999,Equipment-purchase and rental,9.99,1.67,8.32
Children and Young Peoples Services,Head of Early Help Inclusion & Vulnerable Children.,088108,Spennymoor & Shildon 0-19 Targeted Family Support,Supplies and Services,304259,Equipment and Materials,03-Apr-2020,000009057719255,AMZNMktplace,5999,Equipment-purchase and rental,23.22,3.90,19.32
Children and Young Peoples Services,Head of Childrens Social Care,085341,High Etherley Satelite Home,Supplies and Services,324117,Provisions E324,03-Apr-2020,000009057719291,ALDI STORES,5411,Catering costs - provisions,25.12,0.00,25.12
Children and Young Peoples Services,Head of Early Help Inclusion & Vulnerable Children.,085355,12 Brough Close Aycliffe,Supplies and Services,328041,Clothing uniforms and laundry E328,03-Apr-2020,000009057719301,SP GYMKING,5691,Clothing uniforms and laundry,53.50,0.00,53.50
Children and Young Peoples Services,COVID19 - Children and Young Peoples Services,091002,COVID19 - Children and Young Peoples Services,Premises,145023,Cleaning and Domestic Supplies,03-Apr-2020,000009057719335,HOME BARGAINS,5251,Cleaning and domestic materials,19.19,3.20,15.99
Children and Young Peoples Services,Head of Education and Skills,071802,Louisa Cent Nursery,Supplies and Services,304999,Equipment and Materials,03-Apr-2020,000009057719337,HOME BARGAINS,5251,Misc equipment tools and materials,5.46,0.91,4.55
Children and Young Peoples Services,Head of Education and Skills,071802,Louisa Cent Nursery,Supplies and Services,304999,Equipment and Materials,03-Apr-2020,000009057719337 - 1,HOME BARGAINS,5251,Misc equipment tools and materials,2.55,,2.55
Children and Young Peoples Services,Head of Childrens Social Care,085333,Coxhoe Satelite Home,Supplies and Services,324117,Provisions E324,03-Apr-2020,000009057719353,TESCO STORES 6329,5411,Catering costs - provisions,104.65,0.00,104.65
Children and Young Peoples Services,Head of Childrens Social Care,085342,16 Hickstead Rise (previously 9 Cedar Ave),Supplies and Services,324117,Provisions E324,03-Apr-2020,000009057719363,LIDL GB BSHP AUCKLAND,5411,Catering costs - provisions,91.02,0.00,91.02
Children and Young Peoples Services,Head of Childrens Social Care,085342,16 Hickstead Rise (previously 9 Cedar Ave),Supplies and Services,324117,Provisions E324,03-Apr-2020,000009057719369,LIDL GB BSHP AUCKLAND,5411,Catering costs - provisions,7.98,0.00,7.98
"Regeneration, Economy and Growth",Development and Housing,031576,B& B - Temp Accom,Supplies and Services,364320,Grants to Voluntary Organisations,03-Apr-2020,000009057719417,GRAINGER HOTEL,7011,Accommodation assistance,55.00,0.00,55.00
"Regeneration, Economy and Growth",Development and Housing,031576,B& B - Temp Accom,Supplies and Services,364320,Grants to Voluntary Organisations,03-Apr-2020,000009057719419,GRAINGER HOTEL,7011,Accommodation assistance,195.00,0.00,195.00
"Regeneration, Economy and Growth",Development and Housing,031576,B& B - Temp Accom,Supplies and Services,364320,Grants to Voluntary Organisations,03-Apr-2020,000009057719425,BUDGET H EXPRESS HOTEL,7011,Accommodation assistance,356.00,0.00,356.00
Resources BK0010,Business Support,052986,CYPS - Locality and Operational Support,Supplies and Services,324117,Provisions E324,03-Apr-2020,000009057719497,BESTWAY WHOLESALE,5451,Catering costs - provisions,455.78,75.96,379.82
Children and Young Peoples Services,Head of Early Help Inclusion & Vulnerable Children.,085962,Aycliffe Secure - Durham,Supplies and Services,304649,Equipment and Materials,03-Apr-2020,000009057719539,Amazon.co.uk HR3898TW5,5969,Toys,34.99,5.83,29.16
Neighbourhoods and Climate Change,Partnerships & Community Engagement Div.,060473,COVID19 Shopping Community Hub,Supplies and Services,342506,Provisions E324,03-Apr-2020,000009057719551,CO-OP GROUP 310016,5411,Shopping Provision COVID19,11.12,0.00,11.12
Resources BK0010,Business Support,052986,CYPS - Locality and Operational Support,Supplies and Services,328041,Clothing uniforms and laundry E328,03-Apr-2020,000009057719571,ARGOS LTD,5310,Clothing uniforms and laundry,281.95,0.00,281.95
Resources BK0010,Business Support,052986,CYPS - Locality and Operational Support,Supplies and Services,328041,Clothing uniforms and laundry E328,03-Apr-2020,000009057719577,ARGOS LTD,5310,Clothing uniforms and laundry,83.48,0.00,83.48
Resources BK0010,Business Support,052986,CYPS - Locality and Operational Support,Supplies and Services,328041,Clothing uniforms and laundry E328,03-Apr-2020,000009057719581,ARGOS LTD,5310,Clothing uniforms and laundry,162.95,0.00,162.95
"Regeneration, Economy and Growth",Development and Housing,031576,B& B - Temp Accom,Supplies and Services,364320,Grants to Voluntary Organisations,03-Apr-2020,000009057719599,BUDGET H EXPRESS HOTEL,7011,Accommodation assistance,150.00,0.00,150.00
"Regeneration, Economy and Growth",Development and Housing,031576,B& B - Temp Accom,Supplies and Services,364320,Grants to Voluntary Organisations,03-Apr-2020,000009057719603,BUDGET H EXPRESS HOTEL,7011,Accommodation assistance,267.00,0.00,267.00
Children and Young Peoples Services,Head of Childrens Social Care,085352,Tow Law CU,Supplies and Services,304403,Equipment and Materials,03-Apr-2020,000009057719673,AMZNMKTPLACE AMAZON.CO,5999,Other consumables,7.29,1.22,6.07
Children and Young Peoples Services,Head of Childrens Social Care,085352,Tow Law CU,Supplies and Services,328041,Clothing uniforms and laundry E328,03-Apr-2020,000009057719681,ARGOS LTD,5310,Clothing uniforms and laundry,349.99,0.00,349.99
Adult and Health Services,Head of Adults,056601,Substance Misuse,Supplies and Services,338048,Services,03-Apr-2020,000009057719801,HMCOURTS-SERVICE.G,9222,Court costs 338048,75.00,0.00,75.00
Resources BK0010,Legal & Democratic Services,067801,Registrars,Supplies and Services,340001,Postages E340,03-Apr-2020,000009057719805,ROYAL MAIL ONLINE SHOP,9402,Postages,137.81,0.00,137.81
Children and Young Peoples Services,Head of Childrens Social Care,085341,High Etherley Satelite Home,Supplies and Services,348037,Subsistence E348,03-Apr-2020,000009057719817,Just Eat,5814,Subsistence,38.40,0.00,38.40
Neighbourhoods and Climate Change,Partnerships & Community Engagement Div.,060473,COVID19 Shopping Community Hub,Supplies and Services,342506,Provisions E324,03-Apr-2020,000009057719821,SAINSBURYS SACAT 0776,5411,Shopping Provision COVID19,16.20,0.00,16.20
Adult and Health Services,Head of Adults,055643,Hawthorn House LD Respite Unit,Supplies and Services,324117,Provisions E324,03-Apr-2020,000009060735829,BATLEYS PERTH,5300,Catering costs - provisions,24.24,4.04,20.20
Adult and Health Services,Head of Adults,055643,Hawthorn House LD Respite Unit,Supplies and Services,324117,Provisions E324,03-Apr-2020,000009060735829 - 1,BATLEYS PERTH,5300,Catering costs - provisions,121.02,,121.02
Adult and Health Services,Head of Adults,055643,Hawthorn House LD Respite Unit,Supplies and Services,324117,Provisions E324,03-Apr-2020,000009060735835,BATLEYS PERTH,5300,Catering costs - provisions,17.35,0.00,17.35
"Regeneration, Economy and Growth",Business Durham CL0850,030689,Inward Investment and Aftercare,Supplies and Services,342033,Computers and Communications,04-Apr-2020,000009057718547,STK Shutterstock,7333,Computer hardware,19.00,0.00,19.00
"Regeneration, Economy and Growth",Business Durham CL0850,030689,Inward Investment and Aftercare,Supplies and Services,342222,Computers and Communications,04-Apr-2020,000009057718551,FASTHOSTS INTERNET,4816,Comp hardware purch-network servers,6.34,1.06,5.28
Children and Young Peoples Services,Head of Childrens Social Care,085341,High Etherley Satelite Home,Supplies and Services,324117,Provisions E324,04-Apr-2020,000009057718555,TESCO STORES 6329,5411,Catering costs - provisions,33.16,0.00,33.16
Children and Young Peoples Services,Head of Childrens Social Care,085341,High Etherley Satelite Home,Supplies and Services,304403,Equipment and Materials,04-Apr-2020,000009057718559,TESCO STORES 6329,5411,Other consumables,4.00,0.00,4.00
Children and Young Peoples Services,Head of Childrens Social Care,085352,Tow Law CU,Supplies and Services,324117,Provisions E324,04-Apr-2020,000009057718627,TESCO STORES 6329,5411,Catering costs - provisions,140.79,0.00,140.79
Children and Young Peoples Services,Head of Childrens Social Care,085352,Tow Law CU,Supplies and Services,324117,Provisions E324,04-Apr-2020,000009057718697,NISA LOCAL,5411,Catering costs - provisions,15.18,0.00,15.18
Children and Young Peoples Services,Head of Childrens Social Care,085352,Tow Law CU,Supplies and Services,324117,Provisions E324,04-Apr-2020,000009057718705,CO-OP GROUP 010989,5411,Catering costs - provisions,1.76,0.00,1.76
Children and Young Peoples Services,Head of Childrens Social Care,085352,Tow Law CU,Supplies and Services,348037,Subsistence E348,04-Apr-2020,000009057718793,Just Eat,5814,Subsistence,34.75,0.00,34.75
"Regeneration, Economy and Growth",Development and Housing,031500,Housing Solutions - Core Team,Premises,120037,Energy Costs,04-Apr-2020,000009057719021,WWW.E.ORG,4900,Other fuels,20.00,0.00,20.00
"Regeneration, Economy and Growth",Development and Housing,031500,Housing Solutions - Core Team,Supplies and Services,324117,Provisions E324,04-Apr-2020,000009057719025,CO-OP GROUP 010487,5411,Catering costs - provisions,10.00,0.00,10.00
"Regeneration, Economy and Growth",Development and Housing,031500,Housing Solutions - Core Team,Premises,120037,Energy Costs,04-Apr-2020,000009057719029,WWW.E.ORG,4900,Other fuels,20.00,0.00,20.00
Children and Young Peoples Services,Head of Childrens Social Care,085331,New Lea Childrens Home,Supplies and Services,348037,Subsistence E348,04-Apr-2020,000009057719177,TANFIELD CHIPPY,5814,Subsistence,51.40,0.00,51.40
Children and Young Peoples Services,Head of Early Help Inclusion & Vulnerable Children.,088108,Spennymoor & Shildon 0-19 Targeted Family Support,Supplies and Services,304259,Equipment and Materials,04-Apr-2020,000009057719263,AMZNMktplace,5999,Equipment-purchase and rental,30.96,5.16,25.80
Children and Young Peoples Services,Head of Early Help Inclusion & Vulnerable Children.,088108,Spennymoor & Shildon 0-19 Targeted Family Support,Supplies and Services,304259,Equipment and Materials,04-Apr-2020,000009057719263 - 1,AMZNMktplace,5999,Equipment-purchase and rental,0.04,,0.04
Children and Young Peoples Services,Head of Education and Skills,071802,Louisa Cent Nursery,Supplies and Services,324117,Provisions E324,04-Apr-2020,000009057719339,ASDA SUPERSTORE,5411,Catering costs - provisions,33.59,0.00,33.59
Children and Young Peoples Services,Head of Childrens Social Care,085352,Tow Law CU,Supplies and Services,384999,Miscellaneous Expenses,04-Apr-2020,000009057719689,Amazon.co.uk T48YP6VA5,5969,Other expenses,15.98,2.66,13.32
Children and Young Peoples Services,Head of Early Help Inclusion & Vulnerable Children.,088107,Ferryhill & Newton Aycliffe 0-19 Community Family Hub,Supplies and Services,304403,Equipment and Materials,04-Apr-2020,000009057719777,AMZNMktplace,5999,Other consumables,41.05,0.00,41.05
Children and Young Peoples Services,Head of Education and Skills,075021,Youth Employment Initiative,Supplies and Services,336005,Advertising E336,05-Apr-2020,000009057718595,FACEBK 7CJEURWSS2,7311,Advertising other than for staff,8.65,0.00,8.65
Children and Young Peoples Services,Head of Childrens Social Care,085332,Middlestone Moor CU,Supplies and Services,324117,Provisions E324,05-Apr-2020,000009057718603,ASDA GROCERIES ONLINE,5411,Catering costs - provisions,126.96,0.00,126.96
Children and Young Peoples Services,Head of Childrens Social Care,085352,Tow Law CU,Supplies and Services,324117,Provisions E324,05-Apr-2020,000009057718631,LIDL GB CROOK,5411,Catering costs - provisions,8.92,0.00,8.92
Children and Young Peoples Services,Head of Childrens Social Care,085352,Tow Law CU,Supplies and Services,324117,Provisions E324,05-Apr-2020,000009057718691,CO-OP GROUP 010670,5411,Catering costs - provisions,19.39,0.00,19.39
Children and Young Peoples Services,Head of Early Help Inclusion & Vulnerable Children.,085961,Themed Week Activity,Supplies and Services,304403,Equipment and Materials,05-Apr-2020,000009057718763,AMZNMKTPLACE AMAZON.CO,5999,Other consumables,17.82,2.97,14.85
Children and Young Peoples Services,Head of Early Help Inclusion & Vulnerable Children.,085961,Themed Week Activity,Supplies and Services,304403,Equipment and Materials,05-Apr-2020,000009057718763 - 1,AMZNMKTPLACE AMAZON.CO,5999,Other consumables,0.09,,0.09
Children and Young Peoples Services,Head of Childrens Social Care,085352,Tow Law CU,Supplies and Services,344033,Telephones,05-Apr-2020,000009057718797,TESCO MOBILE TOPUP,4814,Telephones general-all costs,10.00,0.00,10.00
Children and Young Peoples Services,Head of Childrens Social Care,085334,West Rainton Satelite Home,Supplies and Services,324117,Provisions E324,05-Apr-2020,000009057718869,ALDI 12 774,5411,Catering costs - provisions,18.77,0.00,18.77
Resources BK0010,Business Support,052986,CYPS - Locality and Operational Support,Supplies and Services,304403,Equipment and Materials,05-Apr-2020,000009057719143,AMZNMktplace,5999,Other consumables,232.71,0.00,232.71
Resources BK0010,Business Support,052986,CYPS - Locality and Operational Support,Supplies and Services,304403,Equipment and Materials,05-Apr-2020,000009057719147,AMZNMktplace,5999,Other consumables,159.18,0.00,159.18
Resources BK0010,Business Support,052986,CYPS - Locality and Operational Support,Supplies and Services,304403,Equipment and Materials,05-Apr-2020,000009057719149,AMZNMKTPLACE AMAZON.CO,5999,Other consumables,159.67,0.00,159.67
Children and Young Peoples Services,Head of Childrens Social Care,085331,New Lea Childrens Home,Supplies and Services,324117,Provisions E324,05-Apr-2020,000009057719183,ASDA SUPERSTORE,5411,Catering costs - provisions,114.17,0.00,114.17
"Regeneration, Economy and Growth",Development and Housing,031576,B& B - Temp Accom,Supplies and Services,364320,Grants to Voluntary Organisations,05-Apr-2020,000009057719287,HI NEWCASTLE WASHI,7011,Accommodation assistance,75.00,12.50,62.50
Children and Young Peoples Services,Head of Childrens Social Care,085342,16 Hickstead Rise (previously 9 Cedar Ave),Supplies and Services,348037,Subsistence E348,05-Apr-2020,000009057719371,ShakeNCake,5812,Subsistence,21.25,0.00,21.25
Children and Young Peoples Services,Head of Childrens Social Care,085342,16 Hickstead Rise (previously 9 Cedar Ave),Employees,040149,Recruitment Instruction and Training,05-Apr-2020,000009057719375,PP 9324CODE,8999,Training-all costs,-1.00,0.00,-1.00
Resources BK0010,Digital and Customer Services,070207,School Services - Shared Engineer Service,Supplies and Services,304639,Equipment and Materials,05-Apr-2020,000009057719485,Amazon.co.uk 473A50J45,5969,Technicians-supplies,62.40,10.40,52.00
Children and Young Peoples Services,Head of Early Help Inclusion & Vulnerable Children.,085962,Aycliffe Secure - Durham,Supplies and Services,304649,Equipment and Materials,05-Apr-2020,000009057719545,AMZNMKTPLACE AMAZON.CO,5999,Toys,44.08,0.00,44.08
Neighbourhoods and Climate Change,Partnerships & Community Engagement Div.,060473,COVID19 Shopping Community Hub,Supplies and Services,342506,Provisions E324,05-Apr-2020,000009057719557,SAINSBURYS LOC (4590),5411,Shopping Provision COVID19,3.20,0.00,3.20
Neighbourhoods and Climate Change,Partnerships & Community Engagement Div.,060473,COVID19 Shopping Community Hub,Supplies and Services,342506,Provisions E324,05-Apr-2020,000009057719559,TESCO STORES 6029,5411,Shopping Provision COVID19,6.75,0.00,6.75
Neighbourhoods and Climate Change,Partnerships & Community Engagement Div.,060473,COVID19 Shopping Community Hub,Supplies and Services,342506,Provisions E324,05-Apr-2020,000009057719565,ICELAND,5411,Shopping Provision COVID19,12.83,0.00,12.83
Children and Young Peoples Services,Head of Childrens Social Care,085352,Tow Law CU,Supplies and Services,304259,Equipment and Materials,05-Apr-2020,000009057719693,M and M Direct Ltd,5941,Equipment-purchase and rental,83.96,0.00,83.96
Children and Young Peoples Services,Head of Childrens Social Care,085352,Tow Law CU,Supplies and Services,304259,Equipment and Materials,05-Apr-2020,000009057719701,JD SPORTS INTERNET,5941,Equipment-purchase and rental,70.00,0.00,70.00
Children and Young Peoples Services,Head of Childrens Social Care,085332,Middlestone Moor CU,Supplies and Services,348037,Subsistence E348,05-Apr-2020,000009057719759,WWW.DOMINOS.CO.UK,5812,Subsistence,13.13,0.00,13.13
Children and Young Peoples Services,Head of Early Help Inclusion & Vulnerable Children.,085954,Walworth,Supplies and Services,304649,Equipment and Materials,05-Apr-2020,000009060735907,AMZNMKTPLACE AMAZON.CO,5999,Toys,26.99,0.00,26.99
Children and Young Peoples Services,Head of Early Help Inclusion & Vulnerable Children.,085954,Walworth,Supplies and Services,304649,Equipment and Materials,05-Apr-2020,000009060735911,AMZNMKTPLACE AMAZON.CO,5999,Toys,26.99,0.00,26.99
Resources BK0010,Digital and Customer Services,065487,ICT Telephony Recharges,Supplies and Services,372009,Subscriptions E372,06-Apr-2020,000009057718727,AWS EMEA,7399,Subscriptions 372009,0.05,0.00,0.05
"Regeneration, Economy and Growth",Business Durham CL0850,030689,Inward Investment and Aftercare,Supplies and Services,304999,Equipment and Materials,06-Apr-2020,000009060735259,MAILCHIMP,5968,Misc equipment tools and materials,-3.14,0.00,-3.14
Resources BK0010,Corporate Finance & Commercial Services,069387,Procurement Team A Staff,Supplies and Services,336005,Advertising E336,06-Apr-2020,000009060735305,GOOGLE ADS8772529636,5968,Advertising other than for staff,160.47,0.00,160.47
Resources BK0010,Corporate Finance & Commercial Services,069387,Procurement Team A Staff,Supplies and Services,336005,Advertising E336,06-Apr-2020,000009060735315,GOOGLE ADS8772529636,5968,Advertising other than for staff,160.47,0.00,160.47
Resources BK0010,Digital and Customer Services,065432,Web Development Group,Supplies and Services,342053,Computers and Communications,06-Apr-2020,000009060735339,UKFAST.NET LTD,4816,Computer software,500.00,83.33,416.67
Resources BK0010,Digital and Customer Services,065432,Web Development Group,Supplies and Services,342053,Computers and Communications,06-Apr-2020,000009060735343,UKFAST.NET LTD,4816,Computer software,63.01,10.50,52.51
Children and Young Peoples Services,Head of Childrens Social Care,085352,Tow Law CU,Supplies and Services,348037,Subsistence E348,06-Apr-2020,000009060735387,Pizza Home,5812,Subsistence,32.95,0.00,32.95
Children and Young Peoples Services,Head of Early Help Inclusion & Vulnerable Children.,085957,Secure Management,Supplies and Services,324117,Provisions E324,06-Apr-2020,000009060735419,TESCO STORES 6329,5411,Catering costs - provisions,116.86,0.00,116.86
Children and Young Peoples Services,Head of Early Help Inclusion & Vulnerable Children.,085957,Secure Management,Supplies and Services,304403,Equipment and Materials,06-Apr-2020,000009060735429,AMZNMktplace,5999,Other consumables,6.75,1.13,5.62
Children and Young Peoples Services,Head of Childrens Social Care,085341,High Etherley Satelite Home,Supplies and Services,324117,Provisions E324,06-Apr-2020,000009060735459,SAINSBURYS 2199,5411,Catering costs - provisions,57.05,0.00,57.05
"Regeneration, Economy and Growth",Development and Housing,031576,B& B - Temp Accom,Supplies and Services,352001,Conference Expenses,06-Apr-2020,000009060735471,AYCLIFFE BIZ,7011,Conferencesseminars fees etc,38.00,0.00,38.00
"Regeneration, Economy and Growth",Development and Housing,031576,B& B - Temp Accom,Supplies and Services,352001,Conference Expenses,06-Apr-2020,000009060735475,GRAINGER HOTEL,7011,Conferencesseminars fees etc,100.00,0.00,100.00
"Regeneration, Economy and Growth",Development and Housing,031576,B& B - Temp Accom,Supplies and Services,352001,Conference Expenses,06-Apr-2020,000009060735479,HI NEWCASTLE WASHI,7011,Conferencesseminars fees etc,130.00,0.00,130.00
Children and Young Peoples Services,Head of Childrens Social Care,085332,Middlestone Moor CU,Supplies and Services,324117,Provisions E324,06-Apr-2020,000009060735603,IZ Thames fruit and v,5499,Catering costs - provisions,10.00,0.00,10.00
"Regeneration, Economy and Growth",Business Durham CL0850,030671,Business Space 030671,Supplies and Services,332047,Printing Stationery and Gen Off Exps,06-Apr-2020,000009060735641,EMERGE (NE) LTD,5943,Stationery,232.08,38.68,193.40
Neighbourhoods and Climate Change,Environmental Services,010301,C&G - North Grounds Maintenance,Supplies and Services,304221,Equipment and Materials,06-Apr-2020,000009060735647,AZTEC CHEMICALS LTD,5169,Direct materials,225.00,37.50,187.50
Neighbourhoods and Climate Change,Environmental Services,010301,C&G - North Grounds Maintenance,Supplies and Services,304221,Equipment and Materials,06-Apr-2020,000009060735655,AZTEC CHEMICALS LTD,5169,Direct materials,478.80,79.80,399.00
"Regeneration, Economy and Growth",Development and Housing,031500,Housing Solutions - Core Team,Supplies and Services,352001,Conference Expenses,06-Apr-2020,000009060735661,AYCLIFFE BIZ,7011,Conferencesseminars fees etc,190.00,0.00,190.00
"Regeneration, Economy and Growth",Development and Housing,031500,Housing Solutions - Core Team,Supplies and Services,352001,Conference Expenses,06-Apr-2020,000009060735711,AYCLIFFE BIZ,7011,Conferencesseminars fees etc,132.00,0.00,132.00
Children and Young Peoples Services,Head of Childrens Social Care,085331,New Lea Childrens Home,Supplies and Services,324117,Provisions E324,06-Apr-2020,000009060735725,ASDA SUPERSTORE,5411,Catering costs - provisions,64.15,0.00,64.15
"Regeneration, Economy and Growth",Development and Housing,031576,B& B - Temp Accom,Supplies and Services,364320,Grants to Voluntary Organisations,06-Apr-2020,000009060735757,GRAINGER HOTEL,7011,Accommodation assistance,55.00,9.17,45.83
Regeneration and Local Services,COVID19 - Regeneration Economy and Growth,091004,COVID19 - Regeneration Economy and Growth,Supplies and Services,364320,Grants to Voluntary Organisations,06-Apr-2020,000009060735761,GRAINGER HOTEL,7011,Accommodation assistance,55.00,9.17,45.83
"Regeneration, Economy and Growth",Development and Housing,031500,Housing Solutions - Core Team,Supplies and Services,372009,Subscriptions E372,06-Apr-2020,000009060735785,HF RESOLUTION LTD,8999,Subscriptions 372009,238.80,39.80,199.00
Children and Young Peoples Services,Head of Childrens Social Care,085333,Coxhoe Satelite Home,Supplies and Services,324117,Provisions E324,06-Apr-2020,000009060735793,CO-OP GROUP 310016,5411,Catering costs - provisions,23.17,0.00,23.17
Children and Young Peoples Services,Head of Childrens Social Care,085342,16 Hickstead Rise (previously 9 Cedar Ave),Supplies and Services,384999,Miscellaneous Expenses,06-Apr-2020,000009060735801,PAYPAL BARKERS EBAY B,5977,Other expenses,-9.99,0.00,-9.99
Adult and Health Services,Head of Adults,055643,Hawthorn House LD Respite Unit,Supplies and Services,324117,Provisions E324,06-Apr-2020,000009060735841,FREEMAN CATERING BUTCH,5422,Catering costs - provisions,26.56,0.00,26.56
Children and Young Peoples Services,Head of Childrens Social Care,085334,West Rainton Satelite Home,Supplies and Services,324117,Provisions E324,06-Apr-2020,000009060735849,TESCO STORES 2371,5411,Catering costs - provisions,11.73,0.00,11.73
Neighbourhoods and Climate Change,Environmental Services,010301,C&G - North Grounds Maintenance,Supplies and Services,304999,Equipment and Materials,06-Apr-2020,000009060735853,TURFCARE SPECIALISTS L,780,Misc equipment tools and materials,360.00,0.00,360.00
Neighbourhoods and Climate Change,Environmental Services,010301,C&G - North Grounds Maintenance,Supplies and Services,304999,Equipment and Materials,06-Apr-2020,000009060735859,GRALANDS WOODWORK SUPP,5251,Misc equipment tools and materials,121.50,0.00,121.50
Children and Young Peoples Services,Head of Early Help Inclusion & Vulnerable Children.,085965,Barnard,Supplies and Services,384999,Miscellaneous Expenses,06-Apr-2020,000009060735901,AMZNMktplace,5999,Other expenses,77.91,12.99,64.92
Resources BK0010,Digital and Customer Services,065321,Operations - Digital & Customer Services,Supplies and Services,304403,Equipment and Materials,06-Apr-2020,000009060735923,SP MEVO-STORE-UK,5734,Other consumables,649.96,0.00,649.96
Resources BK0010,Digital and Customer Services,065321,Operations - Digital & Customer Services,Supplies and Services,342053,Computers and Communications,06-Apr-2020,000009060735927,WORDFENCE,5045,Computer software,60.81,0.00,60.81
Resources BK0010,Digital and Customer Services,065432,Web Development Group,Supplies and Services,342053,Computers and Communications,06-Apr-2020,000009060735931,WORDFENCE,5045,Computer software,"1,155.31",0.00,1155.31
"Regeneration, Economy and Growth",Development and Housing,031576,B& B - Temp Accom,Supplies and Services,364320,Grants to Voluntary Organisations,06-Apr-2020,000009060735969,GRAINGER HOTEL,7011,Accommodation assistance,110.00,0.00,110.00
"Regeneration, Economy and Growth",Development and Housing,031576,B& B - Temp Accom,Supplies and Services,364320,Grants to Voluntary Organisations,06-Apr-2020,000009060735973,BUDGET H EXPRESS HOTEL,7011,Accommodation assistance,50.00,0.00,50.00
Children and Young Peoples Services,Head of Childrens Social Care,085352,Tow Law CU,Supplies and Services,304403,Equipment and Materials,06-Apr-2020,000009060735979,AMZNMKTPLACE AMAZON.CO,5999,Other consumables,39.25,6.54,32.71
Children and Young Peoples Services,Head of Early Help Inclusion & Vulnerable Children.,088107,Ferryhill & Newton Aycliffe 0-19 Community Family Hub,Supplies and Services,304403,Equipment and Materials,06-Apr-2020,000009060736009,AMZNMktplace,5999,Other consumables,25.98,4.34,21.64
Resources BK0010,Legal & Democratic Services,066564,Lord Lieutenancy 066564,Supplies and Services,312009,Newspapers books and periodicals E312,06-Apr-2020,000009060736021,STATIONERY OFFICE BOOK,5942,Newspapers books and periodicals,166.80,0.00,166.80
Resources BK0010,Legal & Democratic Services,066564,Lord Lieutenancy 066564,Supplies and Services,312009,Newspapers books and periodicals E312,06-Apr-2020,000009060736031,STATIONERY OFFICE BOOK,5942,Newspapers books and periodicals,54.36,0.00,54.36
Children and Young Peoples Services,Head of Childrens Social Care,085341,High Etherley Satelite Home,Supplies and Services,328041,Clothing uniforms and laundry E328,06-Apr-2020,000009060736037,ARGOS LTD,5310,Clothing uniforms and laundry,99.98,0.00,99.98
"Regeneration, Economy and Growth",Business Durham CL0850,030689,Inward Investment and Aftercare,Supplies and Services,304999,Equipment and Materials,07-Apr-2020,000009060735263,MAILCHIMP,5968,Misc equipment tools and materials,-0.09,0.00,-0.09
Resources BK0010,Digital and Customer Services,065432,Web Development Group,Supplies and Services,342053,Computers and Communications,07-Apr-2020,000009060735935,WORDFENCE,5045,Computer software,1.67,0.00,1.67
Resources BK0010,Digital and Customer Services,065432,Web Development Group,Supplies and Services,342053,Computers and Communications,07-Apr-2020,000009060735937,WORDFENCE,5045,Computer software,31.77,0.00,31.77
Children and Young Peoples Services,Head of Education and Skills,071801,Selby Cottage Childcare Centre,Supplies and Services,384999,Miscellaneous Expenses,07-Apr-2020,000009062627399,UNITED HYGIENE AND CAT,5046,Other expenses,125.00,0.00,125.00
Resources BK0010,Digital and Customer Services,070110,School Services - Man Info System (MIS) Support Team,Supplies and Services,342053,Computers and Communications,07-Apr-2020,000009062627407,WPMU DEV INCSUBFEE.COM,7372,Computer software,15.61,0.00,15.61
Adult and Health Services,Commissioning inc Supporting People,052100,Supporting the Provider Market,Supplies and Services,338057,Services,07-Apr-2020,000009062627411,PCWB TELESALES,5734,Medical fees 338057,446.97,74.50,372.47
Dedicated Schools Grant BG0015,DSG High Needs Block,077099,Special General,Supplies and Services,328041,Clothing uniforms and laundry E328,07-Apr-2020,000009062627423,ARGOS LTD,5310,Clothing uniforms and laundry,349.00,0.00,349.00
"Regeneration, Economy and Growth",Development and Housing,031500,Housing Solutions - Core Team,Supplies and Services,352001,Conference Expenses,07-Apr-2020,000009062627429,GRAINGER HOTEL,7011,Conferencesseminars fees etc,70.00,11.67,58.33
"Regeneration, Economy and Growth",Development and Housing,031500,Housing Solutions - Core Team,Supplies and Services,352001,Conference Expenses,07-Apr-2020,000009062627435,BUDGET H EXPRESS HOTEL,7011,Conferencesseminars fees etc,384.00,64.00,320.00
"Regeneration, Economy and Growth",Development and Housing,031500,Housing Solutions - Core Team,Supplies and Services,352001,Conference Expenses,07-Apr-2020,000009062627439,BUDGET H EXPRESS HOTEL,7011,Conferencesseminars fees etc,320.00,53.33,266.67
Children and Young Peoples Services,Head of Childrens Social Care,085332,Middlestone Moor CU,Supplies and Services,324117,Provisions E324,07-Apr-2020,000009062627447,ALDI 59 774,5411,Catering costs - provisions,36.37,0.00,36.37
Children and Young Peoples Services,Head of Childrens Social Care,085551,Short Break Services-Park Hse Sher,Supplies and Services,324117,Provisions E324,07-Apr-2020,000009062627463,CO-OP GROUP 010486,5411,Catering costs - provisions,7.50,0.00,7.50
"Regeneration, Economy and Growth",Development and Housing,031576,B& B - Temp Accom,Supplies and Services,352001,Conference Expenses,07-Apr-2020,000009062627519,GRAINGER HOTEL,7011,Conferencesseminars fees etc,70.00,11.67,58.33
"Regeneration, Economy and Growth",Development and Housing,031576,B& B - Temp Accom,Supplies and Services,352001,Conference Expenses,07-Apr-2020,000009062627523,GRAINGER HOTEL,7011,Conferencesseminars fees etc,70.00,11.67,58.33
"Regeneration, Economy and Growth",Development and Housing,031576,B& B - Temp Accom,Supplies and Services,352001,Conference Expenses,07-Apr-2020,000009062627527,BUDGET H EXPRESS HOTEL,7011,Conferencesseminars fees etc,267.00,44.50,222.50
"Regeneration, Economy and Growth",Development and Housing,031576,B& B - Temp Accom,Supplies and Services,352001,Conference Expenses,07-Apr-2020,000009062627533,HI NEWCASTLE WASHI,7011,Conferencesseminars fees etc,130.00,0.00,130.00
Children and Young Peoples Services,Head of Childrens Social Care,085352,Tow Law CU,Supplies and Services,304403,Equipment and Materials,07-Apr-2020,000009062627541,AMZNMktplace,5999,Other consumables,20.99,9.34,11.65
Children and Young Peoples Services,Head of Childrens Social Care,085352,Tow Law CU,Supplies and Services,304403,Equipment and Materials,07-Apr-2020,000009062627545,AMZNMktplace,5999,Other consumables,34.98,9.34,25.64
Children and Young Peoples Services,Head of Childrens Social Care,085352,Tow Law CU,Supplies and Services,324117,Provisions E324,07-Apr-2020,000009062627549,SAINSBURYS 0776,5411,Catering costs - provisions,367.35,0.00,367.35
"Regeneration, Economy and Growth",Development and Housing,031500,Housing Solutions - Core Team,Supplies and Services,352001,Conference Expenses,07-Apr-2020,000009062627575,GRAINGER HOTEL,7011,Conferencesseminars fees etc,150.00,0.00,150.00
Children and Young Peoples Services,Head of Early Help Inclusion & Vulnerable Children.,071445,Chester le Street One Point Hub,Supplies and Services,304259,Equipment and Materials,07-Apr-2020,000009062627581,Durham County CNCL,9399,Equipment-purchase and rental,22.00,0.00,22.00
Resources BK0010,Business Support,052986,CYPS - Locality and Operational Support,Supplies and Services,304403,Equipment and Materials,07-Apr-2020,000009062627641,AMZNMktplace,5999,Other consumables,14.45,0.00,14.45
"Regeneration, Economy and Growth",Development and Housing,031500,Housing Solutions - Core Team,Supplies and Services,352001,Conference Expenses,07-Apr-2020,000009062627643,GRAINGER HOTEL,7011,Conferencesseminars fees etc,140.00,0.00,140.00
Children and Young Peoples Services,Head of Childrens Social Care,085331,New Lea Childrens Home,Supplies and Services,324117,Provisions E324,07-Apr-2020,000009062627653,ALDI STORES,5411,Catering costs - provisions,1.72,0.00,1.72
Children and Young Peoples Services,Head of Early Help Inclusion & Vulnerable Children.,088108,Spennymoor & Shildon 0-19 Targeted Family Support,Supplies and Services,304259,Equipment and Materials,07-Apr-2020,000009062627667,AMZNMktplace,5999,Equipment-purchase and rental,6.99,1.17,5.82
"Regeneration, Economy and Growth",Development and Housing,031576,B& B - Temp Accom,Supplies and Services,364320,Grants to Voluntary Organisations,07-Apr-2020,000009062627683,HI NEWCASTLE WASHI,7011,Accommodation assistance,75.00,12.50,62.50
Children and Young Peoples Services,Head of Education and Skills,071802,Louisa Cent Nursery,Supplies and Services,304999,Equipment and Materials,07-Apr-2020,000009062627703,HOME BARGAINS,5251,Misc equipment tools and materials,3.56,0.59,2.97
Children and Young Peoples Services,Head of Education and Skills,071802,Louisa Cent Nursery,Supplies and Services,324117,Provisions E324,07-Apr-2020,000009062627707,ASDA SUPERSTORE,5411,Catering costs - provisions,5.89,0.00,5.89
Children and Young Peoples Services,Head of Childrens Social Care,085333,Coxhoe Satelite Home,Supplies and Services,324117,Provisions E324,07-Apr-2020,000009062627713,SAINSBURYS 2142,5411,Catering costs - provisions,12.00,0.00,12.00
Neighbourhoods and Climate Change,Environmental Services,010367,C&G - South Grounds Maintenance,Supplies and Services,304221,Equipment and Materials,07-Apr-2020,000009062627721,MACHINE MART WEB,7394,Direct materials,172.89,0.00,172.89
Children and Young Peoples Services,Head of Childrens Social Care,085342,16 Hickstead Rise (previously 9 Cedar Ave),Supplies and Services,344033,Telephones,07-Apr-2020,000009062627727,giffgaff,4814,Telephones general-all costs,10.00,0.00,10.00
Children and Young Peoples Services,Head of Education and Skills,078554,Adult Skills-Main,Third Party Payments,430100,Rendered by Private Contractors,07-Apr-2020,000009062627755,EB WEBINAR APPRENTICE,7399,Payments to sub-contractors,150.00,25.00,125.00
Children and Young Peoples Services,Head of Childrens Social Care,085342,16 Hickstead Rise (previously 9 Cedar Ave),Supplies and Services,304403,Equipment and Materials,07-Apr-2020,000009062627765,AMZNMktplace,5999,Other consumables,29.99,0.00,29.99
Children and Young Peoples Services,Head of Early Help Inclusion & Vulnerable Children.,085954,Walworth,Supplies and Services,304649,Equipment and Materials,07-Apr-2020,000009062627783,AMZNMKTPLACE AMAZON.CO,5999,Toys,14.99,2.50,12.49
Children and Young Peoples Services,Head of Early Help Inclusion & Vulnerable Children.,085954,Walworth,Supplies and Services,384999,Miscellaneous Expenses,07-Apr-2020,000009062627787,AMZNMktplace,5999,Other expenses,49.00,8.17,40.83
Children and Young Peoples Services,Head of Early Help Inclusion & Vulnerable Children.,085957,Secure Management,Supplies and Services,304403,Equipment and Materials,07-Apr-2020,000009062627791,AMZNMktplace,5999,Other consumables,49.99,8.33,41.66
Children and Young Peoples Services,Head of Early Help Inclusion & Vulnerable Children.,085965,Barnard,Supplies and Services,304403,Equipment and Materials,07-Apr-2020,000009062627793,AMZNMktplace,5999,Other consumables,6.95,0.00,6.95
Children and Young Peoples Services,Head of Early Help Inclusion & Vulnerable Children.,085965,Barnard,Supplies and Services,304403,Equipment and Materials,07-Apr-2020,000009062627797,AMZNMktplace,5999,Other consumables,6.95,0.00,6.95
Children and Young Peoples Services,Head of Early Help Inclusion & Vulnerable Children.,085965,Barnard,Supplies and Services,304403,Equipment and Materials,07-Apr-2020,000009062627801,AMZNMktplace,5999,Other consumables,6.95,0.00,6.95
Children and Young Peoples Services,Head of Early Help Inclusion & Vulnerable Children.,085965,Barnard,Supplies and Services,304403,Equipment and Materials,07-Apr-2020,000009062627805,AMZNMktplace,5999,Other consumables,6.95,0.00,6.95
Children and Young Peoples Services,Head of Early Help Inclusion & Vulnerable Children.,085965,Barnard,Supplies and Services,304403,Equipment and Materials,07-Apr-2020,000009062627811,AMZNMktplace,5999,Other consumables,6.95,0.00,6.95
Children and Young Peoples Services,Head of Early Help Inclusion & Vulnerable Children.,085965,Barnard,Supplies and Services,304403,Equipment and Materials,07-Apr-2020,000009062627815,AMZNMktplace,5999,Other consumables,6.95,0.00,6.95
Resources BK0010,Business Support,052986,CYPS - Locality and Operational Support,Supplies and Services,328041,Clothing uniforms and laundry E328,07-Apr-2020,000009062627829,ARGOS LTD,5310,Clothing uniforms and laundry,186.95,0.00,186.95
Resources BK0010,Business Support,052986,CYPS - Locality and Operational Support,Supplies and Services,328041,Clothing uniforms and laundry E328,07-Apr-2020,000009062627837,ARGOS LTD,5310,Clothing uniforms and laundry,79.00,0.00,79.00
Adult and Health Services,Head of Adults,055301,Stanley Pathways,Supplies and Services,324117,Provisions E324,07-Apr-2020,000009062627845,SAINSBURYS SACAT 0776,5411,Catering costs - provisions,23.10,0.00,23.10
"Regeneration, Economy and Growth",Development and Housing,031576,B& B - Temp Accom,Supplies and Services,364320,Grants to Voluntary Organisations,07-Apr-2020,000009062627853,GRAINGER HOTEL,7011,Accommodation assistance,70.00,0.00,70.00
"Regeneration, Economy and Growth",Development and Housing,031576,B& B - Temp Accom,Supplies and Services,364320,Grants to Voluntary Organisations,07-Apr-2020,000009062627859,GRAINGER HOTEL,7011,Accommodation assistance,70.00,0.00,70.00
"Regeneration, Economy and Growth",Development and Housing,031576,B& B - Temp Accom,Supplies and Services,364320,Grants to Voluntary Organisations,07-Apr-2020,000009062627863,BUDGET H EXPRESS HOTEL,7011,Accommodation assistance,50.00,0.00,50.00
"Regeneration, Economy and Growth",Development and Housing,031576,B& B - Temp Accom,Supplies and Services,364320,Grants to Voluntary Organisations,07-Apr-2020,000009062627869,HI NEWCASTLE WASHI,7011,Accommodation assistance,150.00,0.00,150.00
Children and Young Peoples Services,Head of Childrens Social Care,085352,Tow Law CU,Supplies and Services,328041,Clothing uniforms and laundry E328,07-Apr-2020,000009062627883,ARGOS LTD,5310,Clothing uniforms and laundry,50.00,0.00,50.00
Children and Young Peoples Services,Head of Childrens Social Care,085332,Middlestone Moor CU,Supplies and Services,324117,Provisions E324,07-Apr-2020,000009062627917,KEN WARNE LTD (O5),5411,Catering costs - provisions,21.32,0.00,21.32
Children and Young Peoples Services,Head of Early Help Inclusion & Vulnerable Children.,088107,Ferryhill & Newton Aycliffe 0-19 Community Family Hub,Supplies and Services,304403,Equipment and Materials,07-Apr-2020,000009062627925,AMZNMktplace,5999,Other consumables,17.47,2.92,14.55
Resources BK0010,Legal & Democratic Services,066564,Lord Lieutenancy 066564,Supplies and Services,312009,Newspapers books and periodicals E312,07-Apr-2020,000009062627943,STATIONERY OFFICE BOOK,5942,Newspapers books and periodicals,-166.80,0.00,-166.80
Children and Young Peoples Services,Head of Childrens Social Care,085333,Coxhoe Satelite Home,Supplies and Services,384999,Miscellaneous Expenses,07-Apr-2020,000009064527237,PAYPAL PLEASURABLE EB,5945,Other expenses,9.99,0.00,9.99
"Regeneration, Economy and Growth",Development and Housing,031576,B& B - Temp Accom,Supplies and Services,352001,Conference Expenses,07-Apr-2020,000009064527313,AYCLIFFE BIZ,7011,Conferencesseminars fees etc,38.00,0.00,38.00
Resources BK0010,Digital and Customer Services,070110,School Services - Man Info System (MIS) Support Team,Supplies and Services,342053,Computers and Communications,08-Apr-2020,000009062627415,WPMU DEV INCSUBFEE.COM,7372,Computer software,0.43,0.00,0.43
Children and Young Peoples Services,Head of Education and Skills,071801,Selby Cottage Childcare Centre,Supplies and Services,304999,Equipment and Materials,08-Apr-2020,000009064527193,Amazon Prime PL9AJ7IJ5,5968,Misc equipment tools and materials,7.99,0.00,7.99
"Regeneration, Economy and Growth",Development and Housing,031617,Project Beta Sustainability Fund,Supplies and Services,352001,Conference Expenses,08-Apr-2020,000009064527203,BUDGET H EXPRESS HOTEL,7011,Conferencesseminars fees etc,267.00,0.00,267.00
"Regeneration, Economy and Growth",Development and Housing,031576,B& B - Temp Accom,Supplies and Services,364320,Grants to Voluntary Organisations,08-Apr-2020,000009064527211,HI NEWCASTLE WASHI,7011,Accommodation assistance,65.00,0.00,65.00
Children and Young Peoples Services,Head of Early Help Inclusion & Vulnerable Children.,088105,BA/BC/Crook 0-19 Community Family Hub,Supplies and Services,304259,Equipment and Materials,08-Apr-2020,000009064527253,AMZNMktplace,5999,Equipment-purchase and rental,41.69,6.96,34.73
Children and Young Peoples Services,Head of Childrens Social Care,085332,Middlestone Moor CU,Supplies and Services,324117,Provisions E324,08-Apr-2020,000009064527257,CO-OP GROUP 108247,5411,Catering costs - provisions,9.09,0.00,9.09
Resources BK0010,Digital and Customer Services,065481,Technical Services 065481,Supplies and Services,372009,Subscriptions E372,08-Apr-2020,000009064527263,NOMINET UK,7392,Subscriptions 372009,32.76,5.46,27.30
Resources BK0010,Digital and Customer Services,070204,School Services - Systems,Supplies and Services,372009,Subscriptions E372,08-Apr-2020,000009064527267,NOMINET UK,7392,Subscriptions 372009,210.60,35.10,175.50
"Regeneration, Economy and Growth",Development and Housing,031576,B& B - Temp Accom,Supplies and Services,352001,Conference Expenses,08-Apr-2020,000009064527305,AYCLIFFE BIZ,7011,Conferencesseminars fees etc,38.00,0.00,38.00
"Regeneration, Economy and Growth",Development and Housing,031576,B& B - Temp Accom,Supplies and Services,352001,Conference Expenses,08-Apr-2020,000009064527315,GRAINGER HOTEL,7011,Conferencesseminars fees etc,70.00,11.67,58.33
"Regeneration, Economy and Growth",Development and Housing,031576,B& B - Temp Accom,Supplies and Services,352001,Conference Expenses,08-Apr-2020,000009064527319,GRAINGER HOTEL,7011,Conferencesseminars fees etc,70.00,11.67,58.33
"Regeneration, Economy and Growth",Development and Housing,031576,B& B - Temp Accom,Supplies and Services,352001,Conference Expenses,08-Apr-2020,000009064527321,GRAINGER HOTEL,7011,Conferencesseminars fees etc,70.00,11.67,58.33
"Regeneration, Economy and Growth",Development and Housing,031576,B& B - Temp Accom,Supplies and Services,352001,Conference Expenses,08-Apr-2020,000009064527325,HI NEWCASTLE WASHI,7011,Conferencesseminars fees etc,65.00,10.83,54.17
Neighbourhoods and Climate Change,Environmental Services,031221,North Pennines - Bowlees,Supplies and Services,384999,Miscellaneous Expenses,08-Apr-2020,000009064527333,Amazon.co.uk VM4RB07C5,5969,Other expenses,58.48,0.00,58.48
Neighbourhoods and Climate Change,Environmental Services,010314,Nei.Prot - Bereavement Services,Supplies and Services,304259,Equipment and Materials,08-Apr-2020,000009064527341,Durham County CNCL,9399,Equipment-purchase and rental,11.00,0.00,11.00
Children and Young Peoples Services,Head of Childrens Social Care,085332,Middlestone Moor CU,Supplies and Services,304221,Equipment and Materials,08-Apr-2020,000009064527391,HOLLAND REED,5211,Direct materials,20.00,0.00,20.00
Children and Young Peoples Services,Head of Childrens Social Care,085332,Middlestone Moor CU,Supplies and Services,324117,Provisions E324,08-Apr-2020,000009064527393,CO-OP GROUP 010669,5411,Catering costs - provisions,4.30,0.00,4.30
"Regeneration, Economy and Growth",Development and Housing,031500,Housing Solutions - Core Team,Supplies and Services,352001,Conference Expenses,08-Apr-2020,000009064527403,BUDGET H EXPRESS HOTEL,7011,Conferencesseminars fees etc,64.00,10.67,53.33
"Regeneration, Economy and Growth",Development and Housing,031500,Housing Solutions - Core Team,Supplies and Services,352001,Conference Expenses,08-Apr-2020,000009064527459,GRAINGER HOTEL,7011,Conferencesseminars fees etc,450.00,0.00,450.00
"Regeneration, Economy and Growth",Development and Housing,031500,Housing Solutions - Core Team,Supplies and Services,352001,Conference Expenses,08-Apr-2020,000009064527463,GRAINGER HOTEL,7011,Conferencesseminars fees etc,450.00,0.00,450.00
"Regeneration, Economy and Growth",Development and Housing,031576,B& B - Temp Accom,Supplies and Services,364320,Grants to Voluntary Organisations,08-Apr-2020,000009064527519,GRAINGER HOTEL,7011,Accommodation assistance,450.00,0.00,450.00
"Regeneration, Economy and Growth",Development and Housing,031576,B& B - Temp Accom,Supplies and Services,364320,Grants to Voluntary Organisations,08-Apr-2020,000009064527563,GRAINGER HOTEL,7011,Accommodation assistance,70.00,0.00,70.00
"Regeneration, Economy and Growth",Development and Housing,031576,B& B - Temp Accom,Supplies and Services,364320,Grants to Voluntary Organisations,08-Apr-2020,000009064527585,BUDGET H EXPRESS HOTEL,7011,Accommodation assistance,34.00,5.67,28.33
"Regeneration, Economy and Growth",Development and Housing,031576,B& B - Temp Accom,Supplies and Services,364320,Grants to Voluntary Organisations,08-Apr-2020,000009064527605,BUDGET H EXPRESS HOTEL,7011,Accommodation assistance,500.00,83.33,416.67
Children and Young Peoples Services,Head of Childrens Social Care,085331,New Lea Childrens Home,Supplies and Services,304999,Equipment and Materials,08-Apr-2020,000009064527615,WWW.GREENSTATIONERY.CO,5968,Misc equipment tools and materials,37.38,6.23,31.15
Children and Young Peoples Services,Head of Childrens Social Care,085333,Coxhoe Satelite Home,Supplies and Services,324001,Provisions E324,08-Apr-2020,000009064527631,COXHOE DISCOUNT STORE,5921,Bar supplies,6.16,0.00,6.16
Children and Young Peoples Services,Head of Childrens Social Care,085333,Coxhoe Satelite Home,Supplies and Services,324117,Provisions E324,08-Apr-2020,000009064527637,CO-OP GROUP 310016,5411,Catering costs - provisions,20.75,0.00,20.75
Children and Young Peoples Services,Head of Childrens Social Care,085342,16 Hickstead Rise (previously 9 Cedar Ave),Supplies and Services,324117,Provisions E324,08-Apr-2020,000009064527643,TESCO STORES 2916,5411,Catering costs - provisions,4.00,0.00,4.00
Children and Young Peoples Services,Head of Childrens Social Care,085342,16 Hickstead Rise (previously 9 Cedar Ave),Supplies and Services,324117,Provisions E324,08-Apr-2020,000009064527647,WILKO RETAIL LIMITED,5399,Catering costs - provisions,15.70,0.00,15.70
Children and Young Peoples Services,Head of Childrens Social Care,085342,16 Hickstead Rise (previously 9 Cedar Ave),Supplies and Services,344033,Telephones,08-Apr-2020,000009064527651,WWW.VOXI.CO.UK,4814,Telephones general-all costs,10.00,0.00,10.00
"Regeneration, Economy and Growth",Development and Housing,031576,B& B - Temp Accom,Supplies and Services,364320,Grants to Voluntary Organisations,08-Apr-2020,000009064527655,AYCLIFFE BIZ,7011,Accommodation assistance,114.00,0.00,114.00
"Regeneration, Economy and Growth",Development and Housing,031576,B& B - Temp Accom,Supplies and Services,364320,Grants to Voluntary Organisations,08-Apr-2020,000009064527657,GRAINGER HOTEL,7011,Accommodation assistance,70.00,0.00,70.00
Children and Young Peoples Services,Head of Childrens Social Care,085334,West Rainton Satelite Home,Supplies and Services,324117,Provisions E324,08-Apr-2020,000009064527663,SAINSBURYS 0774,5411,Catering costs - provisions,9.00,0.00,9.00
Children and Young Peoples Services,Head of Childrens Social Care,085334,West Rainton Satelite Home,Supplies and Services,328041,Clothing uniforms and laundry E328,08-Apr-2020,000009064527667,B&M RETAIL,5310,Clothing uniforms and laundry,64.49,0.00,64.49
Children and Young Peoples Services,Head of Early Help Inclusion & Vulnerable Children.,088103,Consett & Stanley 0-19 Community Family Hub,Supplies and Services,384999,Miscellaneous Expenses,08-Apr-2020,000009064527673,Amazon.co.uk VF9BB8Q65,5969,Other expenses,82.53,0.00,82.53
Children and Young Peoples Services,Head of Early Help Inclusion & Vulnerable Children.,088103,Consett & Stanley 0-19 Community Family Hub,Supplies and Services,384999,Miscellaneous Expenses,08-Apr-2020,000009064527675,Amazon.co.uk MR94G1MJ5,5969,Other expenses,18.63,0.00,18.63
Children and Young Peoples Services,Head of Early Help Inclusion & Vulnerable Children.,088103,Consett & Stanley 0-19 Community Family Hub,Supplies and Services,304403,Equipment and Materials,08-Apr-2020,000009064527679,WWW.THEWORKS.CO.UK,5310,Other consumables,90.00,0.00,90.00
Children and Young Peoples Services,Head of Childrens Social Care,085334,West Rainton Satelite Home,Supplies and Services,324117,Provisions E324,08-Apr-2020,000009064527681,TESCO STORES 2371,5411,Catering costs - provisions,150.99,0.00,150.99
Children and Young Peoples Services,Head of Early Help Inclusion & Vulnerable Children.,085965,Barnard,Supplies and Services,304403,Equipment and Materials,08-Apr-2020,000009064527693,AMZNMktplace,5999,Other consumables,17.99,3.00,14.99
Children and Young Peoples Services,Head of Early Help Inclusion & Vulnerable Children.,085965,Barnard,Supplies and Services,304403,Equipment and Materials,08-Apr-2020,000009064527695,AMZNMktplace,5999,Other consumables,6.95,0.00,6.95
Children and Young Peoples Services,Head of Early Help Inclusion & Vulnerable Children.,085965,Barnard,Supplies and Services,304403,Equipment and Materials,08-Apr-2020,000009064527701,AMZNMktplace,5999,Other consumables,6.95,0.00,6.95
Children and Young Peoples Services,Head of Early Help Inclusion & Vulnerable Children.,085965,Barnard,Supplies and Services,304403,Equipment and Materials,08-Apr-2020,000009064527705,AMZNMktplace,5999,Other consumables,12.90,2.15,10.75
Children and Young Peoples Services,Head of Early Help Inclusion & Vulnerable Children.,085956,Lumley,Supplies and Services,312009,Newspapers books and periodicals E312,08-Apr-2020,000009064527709,Amazon.co.uk P731P74T5,5969,Newspapers books and periodicals,29.88,0.00,29.88
"Regeneration, Economy and Growth",Development and Housing,031576,B& B - Temp Accom,Supplies and Services,364320,Grants to Voluntary Organisations,08-Apr-2020,000009064527713,GRAINGER HOTEL,7011,Accommodation assistance,70.00,0.00,70.00
"Regeneration, Economy and Growth",Development and Housing,031576,B& B - Temp Accom,Supplies and Services,364320,Grants to Voluntary Organisations,08-Apr-2020,000009064527717,BUDGET H EXPRESS HOTEL,7011,Accommodation assistance,300.00,0.00,300.00
"Regeneration, Economy and Growth",Development and Housing,031576,B& B - Temp Accom,Supplies and Services,364320,Grants to Voluntary Organisations,08-Apr-2020,000009064527721,HI NEWCASTLE WASHI,7011,Accommodation assistance,390.00,0.00,390.00
"Regeneration, Economy and Growth",Development and Housing,031576,B& B - Temp Accom,Supplies and Services,364320,Grants to Voluntary Organisations,08-Apr-2020,000009064527723,HI NEWCASTLE WASHI,7011,Accommodation assistance,65.00,0.00,65.00
Children and Young Peoples Services,Head of Early Help Inclusion & Vulnerable Children.,088107,Ferryhill & Newton Aycliffe 0-19 Community Family Hub,Supplies and Services,384999,Miscellaneous Expenses,08-Apr-2020,000009064527741,Amazon.co.uk H10NK6735,5969,Other expenses,2.00,0.34,1.66
Children and Young Peoples Services,Head of Early Help Inclusion & Vulnerable Children.,088107,Ferryhill & Newton Aycliffe 0-19 Community Family Hub,Supplies and Services,384999,Miscellaneous Expenses,08-Apr-2020,000009064527749,Amazon.co.uk LJ2154LG5,5969,Other expenses,2.00,0.34,1.66
Children and Young Peoples Services,Head of Early Help Inclusion & Vulnerable Children.,088107,Ferryhill & Newton Aycliffe 0-19 Community Family Hub,Supplies and Services,384999,Miscellaneous Expenses,08-Apr-2020,000009064527753,Amazon.co.uk NV55P0PG5,5969,Other expenses,2.00,0.34,1.66
Children and Young Peoples Services,Head of Early Help Inclusion & Vulnerable Children.,088107,Ferryhill & Newton Aycliffe 0-19 Community Family Hub,Supplies and Services,384999,Miscellaneous Expenses,08-Apr-2020,000009064527759,Amazon.co.uk OS1195XI5,5969,Other expenses,2.00,0.34,1.66
Children and Young Peoples Services,Head of Early Help Inclusion & Vulnerable Children.,088107,Ferryhill & Newton Aycliffe 0-19 Community Family Hub,Supplies and Services,384999,Miscellaneous Expenses,08-Apr-2020,000009064527761,Amazon.co.uk PY91623X5,5969,Other expenses,2.00,0.34,1.66
Children and Young Peoples Services,Head of Early Help Inclusion & Vulnerable Children.,088107,Ferryhill & Newton Aycliffe 0-19 Community Family Hub,Supplies and Services,384999,Miscellaneous Expenses,08-Apr-2020,000009064527765,Amazon.co.uk 1C2BN8XZ5,5969,Other expenses,2.00,0.34,1.66
Children and Young Peoples Services,Head of Early Help Inclusion & Vulnerable Children.,088107,Ferryhill & Newton Aycliffe 0-19 Community Family Hub,Supplies and Services,384999,Miscellaneous Expenses,08-Apr-2020,000009064527771,Amazon.co.uk 5D2GL5965,5969,Other expenses,2.00,0.34,1.66
Children and Young Peoples Services,Head of Early Help Inclusion & Vulnerable Children.,088107,Ferryhill & Newton Aycliffe 0-19 Community Family Hub,Supplies and Services,384999,Miscellaneous Expenses,08-Apr-2020,000009064527777,Amazon.co.uk 5Z9WH8Q95,5969,Other expenses,2.00,0.34,1.66
Children and Young Peoples Services,Head of Early Help Inclusion & Vulnerable Children.,088107,Ferryhill & Newton Aycliffe 0-19 Community Family Hub,Supplies and Services,384999,Miscellaneous Expenses,08-Apr-2020,000009064527779,Amazon.co.uk 8T00U8PX5,5969,Other expenses,2.00,0.34,1.66
Children and Young Peoples Services,Head of Early Help Inclusion & Vulnerable Children.,088107,Ferryhill & Newton Aycliffe 0-19 Community Family Hub,Supplies and Services,384999,Miscellaneous Expenses,08-Apr-2020,000009064527783,Amazon.co.uk 9F86610Q5,5969,Other expenses,2.00,0.34,1.66
"Regeneration, Economy and Growth",Business Durham CL0850,030689,Inward Investment and Aftercare,Supplies and Services,304999,Equipment and Materials,09-Apr-2020,000007142445104,MAILCHIMP MONTHLY,5968,Misc equipment tools and materials,82.50,0.00,82.50
"Regeneration, Economy and Growth",Development and Housing,031576,B& B - Temp Accom,Supplies and Services,364320,Grants to Voluntary Organisations,09-Apr-2020,000007142445248,AYCLIFFE BIZ,7011,Accommodation assistance,190.00,0.00,190.00
"Regeneration, Economy and Growth",Development and Housing,031576,B& B - Temp Accom,Supplies and Services,364320,Grants to Voluntary Organisations,09-Apr-2020,000007142445254,GRAINGER HOTEL,7011,Accommodation assistance,380.00,0.00,380.00
Children and Young Peoples Services,Head of Childrens Social Care,085501,Child Care Cases Legal Expenses,Supplies and Services,304403,Equipment and Materials,09-Apr-2020,000007142445284,WWW.EASTSUSSEXCC.GOV.U,9399,Other consumables,11.00,0.00,11.00
"Regeneration, Economy and Growth",Development and Housing,031500,Housing Solutions - Core Team,Supplies and Services,352001,Conference Expenses,09-Apr-2020,000007142445292,HI NEWCASTLE WASHI,7011,Conferencesseminars fees etc,325.00,0.00,325.00
Adult and Health Services,Head of Adults,055302,Durham Pathways,Supplies and Services,304999,Equipment and Materials,09-Apr-2020,000007142445346,HOME BARGAINS SPENNYMO,5251,Misc equipment tools and materials,8.00,0.00,8.00
Dedicated Schools Grant BG0015,DSG High Needs Block,079050,SENSS-Sensory,Supplies and Services,304403,Equipment and Materials,09-Apr-2020,000007142445370,AMZ Mutell,5999,Other consumables,-33.15,0.00,-33.15
Children and Young Peoples Services,Head of Childrens Social Care,085332,Middlestone Moor CU,Supplies and Services,304403,Equipment and Materials,09-Apr-2020,000007142445386,AMZNMKTPLACE AMAZON.CO,5999,Other consumables,10.47,0.00,10.47
Neighbourhoods and Climate Change,Environmental Services,011100,Depots - Meadowfield Depot,Supplies and Services,384956,Miscellaneous Expenses,09-Apr-2020,000007142445492,TVLICENSING.CO.UK,7392,Licences,157.50,0.00,157.50
"Regeneration, Economy and Growth",Corporate Property and Land,015016,Seaham CAP Library St Johns Square Seaham,Supplies and Services,384956,Miscellaneous Expenses,09-Apr-2020,000007142445496,TVLICENSING.CO.UK,7392,Licences,157.50,0.00,157.50
"Regeneration, Economy and Growth",Corporate Property and Land,015015,Spectrum 8 Seaham,Supplies and Services,384956,Miscellaneous Expenses,09-Apr-2020,000007142445502,TVLICENSING.CO.UK,7392,Licences,157.50,0.00,157.50
"Regeneration, Economy and Growth",Culture Sport and Tourism,010870,Chester-le-street Leisure Centre,Supplies and Services,372009,Subscriptions E372,09-Apr-2020,000007142445510,TVLICENSING.CO.UK,7392,Subscriptions 372009,157.50,0.00,157.50
"Regeneration, Economy and Growth",Culture Sport and Tourism,011263,Louisa Centre 011263,Supplies and Services,384956,Miscellaneous Expenses,09-Apr-2020,000007142445516,TVLICENSING.CO.UK,7392,Licences,157.50,0.00,157.50
"Regeneration, Economy and Growth",Culture Sport and Tourism,011264,Consett Leisure Centre,Supplies and Services,372009,Subscriptions E372,09-Apr-2020,000007142445522,TVLICENSING.CO.UK,7392,Subscriptions 372009,157.50,0.00,157.50
Neighbourhoods and Climate Change,Environmental Services,010367,C&G - South Grounds Maintenance,Supplies and Services,304999,Equipment and Materials,09-Apr-2020,000007142445554,R DEFTY,5251,Misc equipment tools and materials,62.85,0.00,62.85
"Regeneration, Economy and Growth",Development and Housing,031576,B& B - Temp Accom,Supplies and Services,352001,Conference Expenses,09-Apr-2020,000007142445678,GRAINGER HOTEL,7011,Conferencesseminars fees etc,380.00,63.33,316.67
"Regeneration, Economy and Growth",Development and Housing,031576,B& B - Temp Accom,Supplies and Services,352001,Conference Expenses,09-Apr-2020,000007142445688,GRAINGER HOTEL,7011,Conferencesseminars fees etc,380.00,0.00,380.00
Children and Young Peoples Services,Head of Childrens Social Care,085341,High Etherley Satelite Home,Supplies and Services,324117,Provisions E324,09-Apr-2020,000007142445836,SAINSBURYS 2199,5411,Catering costs - provisions,82.04,0.00,82.04
"Regeneration, Economy and Growth",Development and Housing,030771,Durham Advance Flexible Fund,Supplies and Services,304259,Equipment and Materials,09-Apr-2020,000007142445904,GEN REGISTER OFFICE,9399,Equipment-purchase and rental,14.00,0.00,14.00
"Regeneration, Economy and Growth",Development and Housing,031500,Housing Solutions - Core Team,Supplies and Services,352001,Conference Expenses,09-Apr-2020,000007142445930,HI NEWCASTLE WASHI,7011,Conferencesseminars fees etc,375.00,62.50,312.50
"Regeneration, Economy and Growth",Development and Housing,031500,Housing Solutions - Core Team,Supplies and Services,352001,Conference Expenses,09-Apr-2020,000007142445938,HI NEWCASTLE WASHI,7011,Conferencesseminars fees etc,325.00,54.17,270.83
"Regeneration, Economy and Growth",Development and Housing,031500,Housing Solutions - Core Team,Supplies and Services,352001,Conference Expenses,09-Apr-2020,000007142445940,HI NEWCASTLE WASHI,7011,Conferencesseminars fees etc,325.00,54.17,270.83
"Regeneration, Economy and Growth",Development and Housing,031500,Housing Solutions - Core Team,Supplies and Services,352001,Conference Expenses,09-Apr-2020,000007142445958,AYCLIFFE BIZ,7011,Conferencesseminars fees etc,266.00,0.00,266.00
"Regeneration, Economy and Growth",Development and Housing,031500,Housing Solutions - Core Team,Supplies and Services,352001,Conference Expenses,09-Apr-2020,000007142445970,GRAINGER HOTEL,7011,Conferencesseminars fees etc,310.00,0.00,310.00
"Regeneration, Economy and Growth",Development and Housing,031500,Housing Solutions - Core Team,Supplies and Services,352001,Conference Expenses,09-Apr-2020,000007142445976,GRAINGER HOTEL,7011,Conferencesseminars fees etc,380.00,0.00,380.00
Resources BK0010,Business Support,052986,CYPS - Locality and Operational Support,Supplies and Services,328041,Clothing uniforms and laundry E328,09-Apr-2020,000007142446214,ARGOS LTD,5310,Clothing uniforms and laundry,283.95,0.00,283.95
"Regeneration, Economy and Growth",Development and Housing,031500,Housing Solutions - Core Team,Supplies and Services,352001,Conference Expenses,09-Apr-2020,000007142446238,AYCLIFFE BIZ,7011,Conferencesseminars fees etc,220.00,0.00,220.00
"Regeneration, Economy and Growth",Development and Housing,031500,Housing Solutions - Core Team,Supplies and Services,352001,Conference Expenses,09-Apr-2020,000007142446240,BUDGET H EXPRESS HOTEL,7011,Conferencesseminars fees etc,445.00,0.00,445.00
Children and Young Peoples Services,Head of Childrens Social Care,085334,West Rainton Satelite Home,Supplies and Services,324117,Provisions E324,09-Apr-2020,000007142446376,WILKO RETAIL LIMITED,5399,Catering costs - provisions,18.25,0.00,18.25
Children and Young Peoples Services,Head of Childrens Social Care,085342,16 Hickstead Rise (previously 9 Cedar Ave),Supplies and Services,324117,Provisions E324,09-Apr-2020,000007142446520,TESCO STORES 2916,5411,Catering costs - provisions,247.14,0.00,247.14
Children and Young Peoples Services,Head of Childrens Social Care,085342,16 Hickstead Rise (previously 9 Cedar Ave),Supplies and Services,304403,Equipment and Materials,09-Apr-2020,000007142446528,AMZNMktplace,5999,Other consumables,20.33,0.00,20.33
Children and Young Peoples Services,Head of Childrens Social Care,085342,16 Hickstead Rise (previously 9 Cedar Ave),Supplies and Services,348037,Subsistence E348,09-Apr-2020,000007142446534,THE OLIVE GARDEN,5814,Subsistence,7.40,0.00,7.40
Children and Young Peoples Services,Head of Childrens Social Care,085342,16 Hickstead Rise (previously 9 Cedar Ave),Supplies and Services,324117,Provisions E324,09-Apr-2020,000007142446544,MARTIN MCCOLL,5499,Catering costs - provisions,5.79,0.00,5.79
Children and Young Peoples Services,Head of Childrens Social Care,085342,16 Hickstead Rise (previously 9 Cedar Ave),Supplies and Services,324117,Provisions E324,09-Apr-2020,000007142446546,MARTIN MCCOLL,5499,Catering costs - provisions,10.29,0.00,10.29
Neighbourhoods and Climate Change,Environmental Services,019100,Fleet - Strategic Fleet,Employees,040149,Recruitment Instruction and Training,09-Apr-2020,000007142446582,JAUPT,9399,Training-all costs,252.00,0.00,252.00
"Regeneration, Economy and Growth",Development and Housing,031576,B& B - Temp Accom,Supplies and Services,364320,Grants to Voluntary Organisations,09-Apr-2020,000007142446606,AYCLIFFE BIZ,7011,Accommodation assistance,190.00,0.00,190.00
"Regeneration, Economy and Growth",Development and Housing,031576,B& B - Temp Accom,Supplies and Services,364320,Grants to Voluntary Organisations,09-Apr-2020,000007142446616,GRAINGER HOTEL,7011,Accommodation assistance,380.00,0.00,380.00
"Regeneration, Economy and Growth",Development and Housing,031576,B& B - Temp Accom,Supplies and Services,364320,Grants to Voluntary Organisations,09-Apr-2020,000007142446620,HI NEWCASTLE WASHI,7011,Accommodation assistance,425.00,0.00,425.00
Adult and Health Services,Head of Adults,055643,Hawthorn House LD Respite Unit,Supplies and Services,324117,Provisions E324,09-Apr-2020,000007142446632,JR HOLLAND FOODSERVICE,5499,Catering costs - provisions,16.83,0.00,16.83
Adult and Health Services,Head of Adults,055643,Hawthorn House LD Respite Unit,Supplies and Services,324117,Provisions E324,09-Apr-2020,000007142446638,JR HOLLAND FOODSERVICE,5499,Catering costs - provisions,2.32,0.00,2.32
Adult and Health Services,Head of Adults,055643,Hawthorn House LD Respite Unit,Supplies and Services,324117,Provisions E324,09-Apr-2020,000007142446644,JR HOLLAND FOODSERVICE,5499,Catering costs - provisions,14.64,0.00,14.64
Adult and Health Services,Head of Adults,055643,Hawthorn House LD Respite Unit,Supplies and Services,324117,Provisions E324,09-Apr-2020,000007142446652,JR HOLLAND FOODSERVICE,5499,Catering costs - provisions,6.78,0.00,6.78
Adult and Health Services,Head of Adults,055643,Hawthorn House LD Respite Unit,Supplies and Services,324117,Provisions E324,09-Apr-2020,000007142446656,JR HOLLAND FOODSERVICE,5499,Catering costs - provisions,6.78,0.00,6.78
Adult and Health Services,Head of Adults,055643,Hawthorn House LD Respite Unit,Supplies and Services,324117,Provisions E324,09-Apr-2020,000007142446664,JR HOLLAND FOODSERVICE,5499,Catering costs - provisions,13.79,0.00,13.79
Children and Young Peoples Services,Head of Early Help Inclusion & Vulnerable Children.,085962,Aycliffe Secure - Durham,Supplies and Services,304649,Equipment and Materials,09-Apr-2020,000007142446824,AMZNMktplace,5999,Toys,59.99,0.00,59.99
Children and Young Peoples Services,Head of Early Help Inclusion & Vulnerable Children.,085962,Aycliffe Secure - Durham,Supplies and Services,304690,Equipment and Materials,09-Apr-2020,000007142446828,AMZNMktplace,5999,Video and DVD,4.50,0.75,3.75
Children and Young Peoples Services,Head of Early Help Inclusion & Vulnerable Children.,085956,Lumley,Supplies and Services,328041,Clothing uniforms and laundry E328,09-Apr-2020,000007142446834,M and M Direct Ltd,5941,Clothing uniforms and laundry,84.92,0.00,84.92
Children and Young Peoples Services,Head of Early Help Inclusion & Vulnerable Children.,085962,Aycliffe Secure - Durham,Supplies and Services,304649,Equipment and Materials,09-Apr-2020,000007142446838,AMZNMktplace,5999,Toys,39.12,6.52,32.60
Children and Young Peoples Services,Head of Early Help Inclusion & Vulnerable Children.,085962,Aycliffe Secure - Durham,Supplies and Services,304649,Equipment and Materials,09-Apr-2020,000007142446846,AMZNMktplace,5999,Toys,119.99,20.00,99.99
Children and Young Peoples Services,Head of Early Help Inclusion & Vulnerable Children.,085962,Aycliffe Secure - Durham,Supplies and Services,304649,Equipment and Materials,09-Apr-2020,000007142446848,AMZNMktplace,5999,Toys,18.97,3.16,15.81
Children and Young Peoples Services,Head of Early Help Inclusion & Vulnerable Children.,085918,Price Training 75 Proudfoot Drive,Supplies and Services,304245,Equipment and Materials,09-Apr-2020,000007142446860,SCREWFIX DIRECT,5200,Materials,53.91,8.99,44.92
Children and Young Peoples Services,Head of Childrens Social Care,085352,Tow Law CU,Supplies and Services,324117,Provisions E324,09-Apr-2020,000007142446944,TESCO STORES 2371,5411,Catering costs - provisions,157.77,0.00,157.77
Resources BK0010,Corporate Finance & Commercial Services,069800,Corporate Procurement 069800,Employees,040149,Recruitment Instruction and Training,09-Apr-2020,000007142447000,WWW.CIPS.ORG,8699,Training-all costs,20.00,0.00,20.00
Children and Young Peoples Services,Head of Early Help Inclusion & Vulnerable Children.,088107,Ferryhill & Newton Aycliffe 0-19 Community Family Hub,Supplies and Services,304403,Equipment and Materials,09-Apr-2020,000007142447076,AMZNMktplace,5999,Other consumables,17.48,2.92,14.56
Children and Young Peoples Services,Head of Early Help Inclusion & Vulnerable Children.,088107,Ferryhill & Newton Aycliffe 0-19 Community Family Hub,Supplies and Services,304403,Equipment and Materials,09-Apr-2020,000007142447086,AMZNMktplace,5999,Other consumables,18.75,0.00,18.75
Children and Young Peoples Services,Head of Early Help Inclusion & Vulnerable Children.,088107,Ferryhill & Newton Aycliffe 0-19 Community Family Hub,Supplies and Services,304403,Equipment and Materials,09-Apr-2020,000007142447094,AMZNMktplace,5999,Other consumables,24.90,4.20,20.70
Children and Young Peoples Services,Head of Early Help Inclusion & Vulnerable Children.,088107,Ferryhill & Newton Aycliffe 0-19 Community Family Hub,Supplies and Services,304403,Equipment and Materials,09-Apr-2020,000007142447098,AMZNMktplace,5999,Other consumables,10.41,1.74,8.67
"Regeneration, Economy and Growth",Development and Housing,030770,Durham Advance,Supplies and Services,324117,Provisions E324,09-Apr-2020,000007142447230,MARKS&SPENCER PLC,5411,Catering costs - provisions,42.99,0.00,42.99
"Regeneration, Economy and Growth",Business Durham CL0850,030689,Inward Investment and Aftercare,Third Party Payments,430100,Rendered by Private Contractors,10-Apr-2020,000007142445118,BLS monday.com,7399,Payments to sub-contractors,148.80,24.80,124.00
Resources BK0010,Digital and Customer Services,070204,School Services - Systems,Supplies and Services,336005,Advertising E336,10-Apr-2020,000007142445206,GOOGLE ADS9041811843,7311,Advertising other than for staff,80.79,0.00,80.79
"Regeneration, Economy and Growth",Development and Housing,031576,B& B - Temp Accom,Supplies and Services,364320,Grants to Voluntary Organisations,10-Apr-2020,000007142445260,GRAINGER HOTEL,7011,Accommodation assistance,380.00,0.00,380.00
Children and Young Peoples Services,Head of Childrens Social Care,085332,Middlestone Moor CU,Supplies and Services,324117,Provisions E324,10-Apr-2020,000007142445392,TESCO STORES 2371,5411,Catering costs - provisions,141.25,0.00,141.25
Children and Young Peoples Services,Head of Childrens Social Care,085341,High Etherley Satelite Home,Supplies and Services,324117,Provisions E324,10-Apr-2020,000007142445412,TESCO STORES 6329,5411,Catering costs - provisions,39.72,0.00,39.72
Children and Young Peoples Services,Head of Childrens Social Care,085341,High Etherley Satelite Home,Supplies and Services,304999,Equipment and Materials,10-Apr-2020,000007142445422,SUPERDRUG STORES PLC,5912,Misc equipment tools and materials,30.03,0.00,30.03
Children and Young Peoples Services,Head of Childrens Social Care,085334,West Rainton Satelite Home,Supplies and Services,304221,Equipment and Materials,10-Apr-2020,000007142445808,B&Q DIRECT,5200,Direct materials,79.98,13.33,66.65
Children and Young Peoples Services,Head of Childrens Social Care,085334,West Rainton Satelite Home,Supplies and Services,304221,Equipment and Materials,10-Apr-2020,000007142445808 - 1,B&Q DIRECT,5200,Direct materials,22.02,,22.02
Children and Young Peoples Services,Head of Childrens Social Care,085332,Middlestone Moor CU,Supplies and Services,324117,Provisions E324,10-Apr-2020,000007142445842,KEN WARNE LTD (O5),5411,Catering costs - provisions,5.35,0.00,5.35
Children and Young Peoples Services,Head of Childrens Social Care,085332,Middlestone Moor CU,Supplies and Services,324117,Provisions E324,10-Apr-2020,000007142445850,KEN WARNE LTD (O5),5411,Catering costs - provisions,2.45,0.00,2.45
Children and Young Peoples Services,Head of Childrens Social Care,085332,Middlestone Moor CU,Supplies and Services,324117,Provisions E324,10-Apr-2020,000007142445858,IZ Thames fruit and v,5499,Catering costs - provisions,20.00,0.00,20.00
Children and Young Peoples Services,Head of Childrens Social Care,085331,New Lea Childrens Home,Supplies and Services,324117,Provisions E324,10-Apr-2020,000007142446254,ALDI STORES,5411,Catering costs - provisions,4.50,0.00,4.50
Regeneration and Local Services,COVID19 - Regeneration Economy and Growth,091004,COVID19 - Regeneration Economy and Growth,Supplies and Services,364320,Grants to Voluntary Organisations,10-Apr-2020,000007142446340,BUDGET H EXPRESS HOTEL,7011,Accommodation assistance,448.00,74.67,373.33
Children and Young Peoples Services,Head of Childrens Social Care,085334,West Rainton Satelite Home,Supplies and Services,324117,Provisions E324,10-Apr-2020,000007142446386,WILKO RETAIL LIMITED,5399,Catering costs - provisions,61.80,0.00,61.80
Children and Young Peoples Services,Head of Childrens Social Care,085333,Coxhoe Satelite Home,Supplies and Services,324117,Provisions E324,10-Apr-2020,000007142446444,ICELAND,5411,Catering costs - provisions,76.00,0.00,76.00
Children and Young Peoples Services,Head of Childrens Social Care,085333,Coxhoe Satelite Home,Supplies and Services,324117,Provisions E324,10-Apr-2020,000007142446454,CO-OP GROUP FOOD,5411,Catering costs - provisions,25.00,0.00,25.00
Children and Young Peoples Services,Head of Childrens Social Care,085342,16 Hickstead Rise (previously 9 Cedar Ave),Supplies and Services,348037,Subsistence E348,10-Apr-2020,000007142446550,Just Eat,5814,Subsistence,31.50,0.00,31.50
Children and Young Peoples Services,Head of Early Help Inclusion & Vulnerable Children.,085957,Secure Management,Supplies and Services,328041,Clothing uniforms and laundry E328,10-Apr-2020,000007142446594,FOOTASYLUM PLC,5691,Clothing uniforms and laundry,-59.98,0.00,-59.98
Children and Young Peoples Services,Head of Childrens Social Care,085342,16 Hickstead Rise (previously 9 Cedar Ave),Supplies and Services,324117,Provisions E324,10-Apr-2020,000007142446794,AMZNMktplace,5999,Catering costs - provisions,36.99,0.00,36.99
Children and Young Peoples Services,Head of Early Help Inclusion & Vulnerable Children.,088107,Ferryhill & Newton Aycliffe 0-19 Community Family Hub,Supplies and Services,304403,Equipment and Materials,10-Apr-2020,000007142447106,AMZNMktplace,5999,Other consumables,3.92,0.66,3.26
Adult and Health Services,Head of Adults,055643,Hawthorn House LD Respite Unit,Supplies and Services,324117,Provisions E324,10-Apr-2020,000007143913614,BATLEYS PERTH,5300,Catering costs - provisions,64.74,10.79,53.95
Adult and Health Services,Head of Adults,055643,Hawthorn House LD Respite Unit,Supplies and Services,324117,Provisions E324,10-Apr-2020,000007143913614 - 1,BATLEYS PERTH,5300,Catering costs - provisions,45.36,,45.36
Adult and Health Services,Head of Adults,055643,Hawthorn House LD Respite Unit,Supplies and Services,324117,Provisions E324,10-Apr-2020,000007143913618,BATLEYS PERTH,5300,Catering costs - provisions,16.18,2.70,13.48
Resources BK0010,COVID19 - Resources,091007,COVID19 - Resources,Supplies and Services,344033,Telephones,10-Apr-2020,000007145765530,Premier Farnell,5065,Telephones general-all costs,163.74,0.00,163.74
Children and Young Peoples Services,Head of Childrens Social Care,085352,Tow Law CU,Supplies and Services,324117,Provisions E324,11-Apr-2020,000007142445424,MARKS&SPENCER PLC SF,5411,Catering costs - provisions,12.03,2.01,10.02
Children and Young Peoples Services,Head of Childrens Social Care,085352,Tow Law CU,Supplies and Services,304403,Equipment and Materials,11-Apr-2020,000007142445716,AMZNMKTPLACE AMAZON.CO,5999,Other consumables,17.89,2.98,14.91
Children and Young Peoples Services,Head of Childrens Social Care,085334,West Rainton Satelite Home,Supplies and Services,324117,Provisions E324,11-Apr-2020,000007142445814,SPAR,5411,Catering costs - provisions,25.98,4.33,21.65
Children and Young Peoples Services,Head of Childrens Social Care,085334,West Rainton Satelite Home,Supplies and Services,324117,Provisions E324,11-Apr-2020,000007142445814 - 1,SPAR,5411,Catering costs - provisions,6.46,,6.46
Children and Young Peoples Services,Head of Childrens Social Care,085332,Middlestone Moor CU,Supplies and Services,324117,Provisions E324,11-Apr-2020,000007142445866,SAINSBURYS SACAT (2303,5411,Catering costs - provisions,0.80,0.00,0.80
Children and Young Peoples Services,Head of Childrens Social Care,085332,Middlestone Moor CU,Supplies and Services,304403,Equipment and Materials,11-Apr-2020,000007142445870,IZ Everydaynews,5999,Other consumables,2.00,0.00,2.00
Children and Young Peoples Services,Head of Childrens Social Care,085332,Middlestone Moor CU,Supplies and Services,328041,Clothing uniforms and laundry E328,11-Apr-2020,000007142445874,ARGOS LTD,5310,Clothing uniforms and laundry,11.00,0.00,11.00
Children and Young Peoples Services,Head of Childrens Social Care,085332,Middlestone Moor CU,Supplies and Services,328041,Clothing uniforms and laundry E328,11-Apr-2020,000007142445880,ARGOS LTD,5310,Clothing uniforms and laundry,39.95,0.00,39.95
Children and Young Peoples Services,Head of Early Help Inclusion & Vulnerable Children.,088109,Spennymoor & Shildon 0-19 Community Family Hub,Supplies and Services,364301,Grants to Voluntary Organisations,11-Apr-2020,000007142446326,ASDA GEORGE COM LEEDS,5411,Hardship,-51.00,0.00,-51.00
Children and Young Peoples Services,Head of Childrens Social Care,085333,Coxhoe Satelite Home,Supplies and Services,348037,Subsistence E348,11-Apr-2020,000007142446460,Just Eat,5814,Subsistence,12.00,0.00,12.00
Children and Young Peoples Services,Head of Childrens Social Care,085333,Coxhoe Satelite Home,Supplies and Services,324117,Provisions E324,11-Apr-2020,000007142446490,CO-OP GROUP 310016,5411,Catering costs - provisions,20.90,0.00,20.90
Children and Young Peoples Services,Head of Early Help Inclusion & Vulnerable Children.,085965,Barnard,Supplies and Services,304649,Equipment and Materials,11-Apr-2020,000007142446864,AMZNMKTPLACE AMAZON.CO,5999,Toys,9.45,0.00,9.45
Resources BK0010,Business Support,052986,CYPS - Locality and Operational Support,Supplies and Services,328041,Clothing uniforms and laundry E328,11-Apr-2020,000007142446886,ARGOS LTD,5310,Clothing uniforms and laundry,-14.00,0.00,-14.00
Children and Young Peoples Services,Head of Childrens Social Care,085332,Middlestone Moor CU,Supplies and Services,324117,Provisions E324,11-Apr-2020,000007142447044,KEN WARNE LTD (O5),5411,Catering costs - provisions,7.19,0.00,7.19
Children and Young Peoples Services,Head of Childrens Social Care,085332,Middlestone Moor CU,Supplies and Services,324117,Provisions E324,11-Apr-2020,000007142447054,ICELAND,5411,Catering costs - provisions,63.50,0.00,63.50
Children and Young Peoples Services,Head of Childrens Social Care,085332,Middlestone Moor CU,Supplies and Services,328041,Clothing uniforms and laundry E328,11-Apr-2020,000007142447068,ARGOS LTD,5310,Clothing uniforms and laundry,18.95,0.00,18.95
Resources BK0010,COVID19 - Resources,091007,COVID19 - Resources,Supplies and Services,344033,Telephones,12-Apr-2020,000007142445212,AMZNMktplace,5999,Telephones general-all costs,260.71,0.00,260.71
Children and Young Peoples Services,Head of Early Help Inclusion & Vulnerable Children.,088105,BA/BC/Crook 0-19 Community Family Hub,Supplies and Services,304259,Equipment and Materials,12-Apr-2020,000007142445478,AMZNMktplace,5999,Equipment-purchase and rental,12.99,2.17,10.82
Children and Young Peoples Services,Head of Early Help Inclusion & Vulnerable Children.,088105,BA/BC/Crook 0-19 Community Family Hub,Supplies and Services,304259,Equipment and Materials,12-Apr-2020,000007142445484,AMZNMktplace,5999,Equipment-purchase and rental,6.40,1.07,5.33
Children and Young Peoples Services,Head of Childrens Social Care,085332,Middlestone Moor CU,Supplies and Services,344033,Telephones,12-Apr-2020,000007142445536,giffgaff,4814,Telephones general-all costs,20.00,0.00,20.00
Children and Young Peoples Services,Head of Childrens Social Care,085332,Middlestone Moor CU,Transport,215995,Running Costs of Vehicles,12-Apr-2020,000007142445884,SHELL DURHAM,5541,Vehicle running expenses,2.20,0.00,2.20
Children and Young Peoples Services,Head of Childrens Social Care,085333,Coxhoe Satelite Home,Supplies and Services,324117,Provisions E324,12-Apr-2020,000007142446464,SAINSBURYS LOC4630,5411,Catering costs - provisions,41.60,0.00,41.60
Children and Young Peoples Services,Head of Childrens Social Care,085342,16 Hickstead Rise (previously 9 Cedar Ave),Supplies and Services,384999,Miscellaneous Expenses,12-Apr-2020,000007142446562,Amazon.co.uk JS2PM21H5,5969,Other expenses,73.64,0.00,73.64
Children and Young Peoples Services,Head of Childrens Social Care,085332,Middlestone Moor CU,Supplies and Services,304403,Equipment and Materials,12-Apr-2020,000007142447060,AMZNMKTPLACE AMAZON.CO,5999,Other consumables,7.99,1.33,6.66
Children and Young Peoples Services,Head of Early Help Inclusion & Vulnerable Children.,088107,Ferryhill & Newton Aycliffe 0-19 Community Family Hub,Supplies and Services,304403,Equipment and Materials,12-Apr-2020,000007142447110,AMZNMktplace,5999,Other consumables,10.00,1.70,8.30
"Regeneration, Economy and Growth",Business Durham CL0850,030689,Inward Investment and Aftercare,Supplies and Services,304999,Equipment and Materials,13-Apr-2020,000007142445120,MOZ INC,5817,Misc equipment tools and materials,143.74,0.00,143.74
Resources BK0010,Digital and Customer Services,065432,Web Development Group,Supplies and Services,342053,Computers and Communications,13-Apr-2020,000007142445218,BLS POWERMAPPER,5734,Computer software,238.80,0.00,238.80
Resources BK0010,COVID19 - Resources,091007,COVID19 - Resources,Supplies and Services,344033,Telephones,13-Apr-2020,000007142445226,AMZNMktplace,5999,Telephones general-all costs,231.42,38.57,192.85
Resources BK0010,COVID19 - Resources,091007,COVID19 - Resources,Supplies and Services,344033,Telephones,13-Apr-2020,000007142445226 - 1,AMZNMktplace,5999,Telephones general-all costs,0.29,,0.29
Resources BK0010,COVID19 - Resources,091007,COVID19 - Resources,Supplies and Services,344033,Telephones,13-Apr-2020,000007142445234,AMZNMktplace,5999,Telephones general-all costs,7.98,1.33,6.65
Resources BK0010,COVID19 - Resources,091007,COVID19 - Resources,Supplies and Services,342506,Provisions E324,13-Apr-2020,000007142445234 - 1,AMZNMktplace,5999,Shopping Provision COVID19,9.00,,9.00
Children and Young Peoples Services,Head of Childrens Social Care,085342,16 Hickstead Rise (previously 9 Cedar Ave),Supplies and Services,304259,Equipment and Materials,13-Apr-2020,000007142445362,JD SPORTS INTERNET,5941,Equipment-purchase and rental,18.99,0.00,18.99
Children and Young Peoples Services,Head of Childrens Social Care,085352,Tow Law CU,Supplies and Services,324117,Provisions E324,13-Apr-2020,000007142445468,CO-OP GROUP 010989,5411,Catering costs - provisions,6.74,0.00,6.74
Children and Young Peoples Services,Head of Childrens Social Care,085511,Emergency Duty Team,Supplies and Services,324117,Provisions E324,13-Apr-2020,000007142445614,SAINSBURYS LOC (4320),5411,Catering costs - provisions,3.55,0.00,3.55
Children and Young Peoples Services,Head of Childrens Social Care,085352,Tow Law CU,Supplies and Services,304403,Equipment and Materials,13-Apr-2020,000007142445738,AMZNMktplace,5999,Other consumables,29.49,4.92,24.57
Children and Young Peoples Services,Head of Childrens Social Care,085352,Tow Law CU,Supplies and Services,304403,Equipment and Materials,13-Apr-2020,000007142445748,AMZNMktplace,5999,Other consumables,59.96,10.00,49.96
Children and Young Peoples Services,Head of Childrens Social Care,085352,Tow Law CU,Supplies and Services,304999,Equipment and Materials,13-Apr-2020,000007142445762,COSTCO WHOLESALE UK,7278,Misc equipment tools and materials,97.54,0.00,97.54
Children and Young Peoples Services,Head of Childrens Social Care,085332,Middlestone Moor CU,Supplies and Services,324117,Provisions E324,13-Apr-2020,000007142445890,PPOINT_ CAMPBELLS,5411,Catering costs - provisions,2.89,0.00,2.89
Adult and Health Services,Head of Adults,055643,Hawthorn House LD Respite Unit,Supplies and Services,324117,Provisions E324,13-Apr-2020,000007142446424,SAINSBURYS SACAT 0776,5411,Catering costs - provisions,30.00,0.00,30.00
Children and Young Peoples Services,Head of Childrens Social Care,085333,Coxhoe Satelite Home,Supplies and Services,304403,Equipment and Materials,13-Apr-2020,000007142446472,AMZNMktplace,5999,Other consumables,8.99,1.50,7.49
Children and Young Peoples Services,Head of Early Help Inclusion & Vulnerable Children.,088103,Consett & Stanley 0-19 Community Family Hub,Supplies and Services,384999,Miscellaneous Expenses,13-Apr-2020,000007142446690,Amazon.co.uk HI0FJ0U85,5969,Other expenses,4.99,0.00,4.99
Children and Young Peoples Services,Head of Early Help Inclusion & Vulnerable Children.,088103,Consett & Stanley 0-19 Community Family Hub,Supplies and Services,384999,Miscellaneous Expenses,13-Apr-2020,000007142446706,Amazon.co.uk IJ5EF7L55,5969,Other expenses,13.99,0.00,13.99
Children and Young Peoples Services,Head of Early Help Inclusion & Vulnerable Children.,088103,Consett & Stanley 0-19 Community Family Hub,Supplies and Services,384999,Miscellaneous Expenses,13-Apr-2020,000007142446712,Amazon.co.uk 148VQ0SS5,5969,Other expenses,23.99,0.00,23.99
Children and Young Peoples Services,Head of Early Help Inclusion & Vulnerable Children.,085962,Aycliffe Secure - Durham,Supplies and Services,304649,Equipment and Materials,13-Apr-2020,000007142446868,AMZNMktplace,5999,Toys,51.78,8.63,43.15
Children and Young Peoples Services,Head of Early Help Inclusion & Vulnerable Children.,085962,Aycliffe Secure - Durham,Supplies and Services,304649,Equipment and Materials,13-Apr-2020,000007142446868 - 1,AMZNMktplace,5999,Toys,20.95,,20.95
"Regeneration, Economy and Growth",Development and Housing,031576,B& B - Temp Accom,Supplies and Services,364320,Grants to Voluntary Organisations,13-Apr-2020,000007142446914,HI NEWCASTLE WASHI,7011,Accommodation assistance,85.00,0.00,85.00
Children and Young Peoples Services,Head of Education and Skills,071802,Louisa Cent Nursery,Supplies and Services,324117,Provisions E324,13-Apr-2020,000007142446956,ALDI 11 774,5411,Catering costs - provisions,12.79,2.13,10.66
Resources BK0010,Business Support,052986,CYPS - Locality and Operational Support,Supplies and Services,328041,Clothing uniforms and laundry E328,13-Apr-2020,000007142446988,ARGOS LTD,5310,Clothing uniforms and laundry,-107.50,0.00,-107.50
Children and Young Peoples Services,Head of Early Help Inclusion & Vulnerable Children.,088107,Ferryhill & Newton Aycliffe 0-19 Community Family Hub,Supplies and Services,304403,Equipment and Materials,13-Apr-2020,000007142447114,AMZNMktplace,5999,Other consumables,41.64,6.94,34.70
Children and Young Peoples Services,Head of Early Help Inclusion & Vulnerable Children.,088107,Ferryhill & Newton Aycliffe 0-19 Community Family Hub,Supplies and Services,304403,Equipment and Materials,13-Apr-2020,000007142447114 - 1,AMZNMktplace,5999,Other consumables,0.04,,0.04
Children and Young Peoples Services,Head of Early Help Inclusion & Vulnerable Children.,088107,Ferryhill & Newton Aycliffe 0-19 Community Family Hub,Supplies and Services,304403,Equipment and Materials,13-Apr-2020,000007142447122,AMZNMktplace,5999,Other consumables,124.32,20.72,103.60
Children and Young Peoples Services,Head of Early Help Inclusion & Vulnerable Children.,088107,Ferryhill & Newton Aycliffe 0-19 Community Family Hub,Supplies and Services,304403,Equipment and Materials,13-Apr-2020,000007142447122 - 1,AMZNMktplace,5999,Other consumables,0.06,,0.06
Children and Young Peoples Services,Head of Childrens Social Care,085333,Coxhoe Satelite Home,Supplies and Services,348037,Subsistence E348,13-Apr-2020,000007143913598,WWW.JUST EAT.CO.UK,5812,Subsistence,27.00,0.00,27.00
Adult and Health Services,Head of Adults,055643,Hawthorn House LD Respite Unit,Supplies and Services,324117,Provisions E324,13-Apr-2020,000007143913620,BATLEYS PERTH,5300,Catering costs - provisions,16.32,2.72,13.60
Adult and Health Services,Head of Adults,055643,Hawthorn House LD Respite Unit,Supplies and Services,324117,Provisions E324,13-Apr-2020,000007143913620 - 1,BATLEYS PERTH,5300,Catering costs - provisions,2.76,,2.76
Children and Young Peoples Services,Head of Childrens Social Care,085342,16 Hickstead Rise (previously 9 Cedar Ave),Supplies and Services,328041,Clothing uniforms and laundry E328,13-Apr-2020,000007145765586,NEW LOOK INTERNET,5621,Clothing uniforms and laundry,44.58,0.00,44.58
Children and Young Peoples Services,Head of Childrens Social Care,085342,16 Hickstead Rise (previously 9 Cedar Ave),Supplies and Services,328041,Clothing uniforms and laundry E328,13-Apr-2020,000007145765590,NEW LOOK INTERNET,5621,Clothing uniforms and laundry,56.66,0.00,56.66
"Regeneration, Economy and Growth",Business Durham CL0850,030689,Inward Investment and Aftercare,Supplies and Services,304999,Equipment and Materials,14-Apr-2020,000007142445126,MAILCHIMP MONTHLY,5968,Misc equipment tools and materials,2.27,0.00,2.27
"Regeneration, Economy and Growth",Business Durham CL0850,030689,Inward Investment and Aftercare,Supplies and Services,304999,Equipment and Materials,14-Apr-2020,000007142445128,MOZ INC,5817,Misc equipment tools and materials,3.95,0.00,3.95
"Regeneration, Economy and Growth",Development and Housing,031576,B& B - Temp Accom,Supplies and Services,364320,Grants to Voluntary Organisations,14-Apr-2020,000007143913146,GRAINGER HOTEL,7011,Accommodation assistance,70.00,0.00,70.00
"Regeneration, Economy and Growth",Development and Housing,031576,B& B - Temp Accom,Supplies and Services,364320,Grants to Voluntary Organisations,14-Apr-2020,000007143913150,GRAINGER HOTEL,7011,Accommodation assistance,70.00,0.00,70.00
Children and Young Peoples Services,Head of Education and Skills,075021,Youth Employment Initiative,Supplies and Services,364301,Grants to Voluntary Organisations,14-Apr-2020,000007143913162,WWW.DURHAM.GOV.UK,9399,Hardship,11.00,0.00,11.00
Children and Young Peoples Services,Head of Childrens Social Care,085332,Middlestone Moor CU,Supplies and Services,324117,Provisions E324,14-Apr-2020,000007143913166,ASDA SUPERSTORE 4987,5411,Catering costs - provisions,93.97,0.00,93.97
Children and Young Peoples Services,Head of Childrens Social Care,085332,Middlestone Moor CU,Supplies and Services,324117,Provisions E324,14-Apr-2020,000007143913172,ALDI 74 774,5411,Catering costs - provisions,8.14,0.00,8.14
Children and Young Peoples Services,Head of Early Help Inclusion & Vulnerable Children.,085957,Secure Management,Supplies and Services,304403,Equipment and Materials,14-Apr-2020,000007143913200,AMZNMktplace,5999,Other consumables,33.30,5.55,27.75
Children and Young Peoples Services,Head of Early Help Inclusion & Vulnerable Children.,085957,Secure Management,Supplies and Services,304403,Equipment and Materials,14-Apr-2020,000007143913200 - 1,AMZNMktplace,5999,Other consumables,0.04,,0.04
"Regeneration, Economy and Growth",Development and Housing,031576,B& B - Temp Accom,Supplies and Services,352001,Conference Expenses,14-Apr-2020,000007143913230,GRAINGER HOTEL,7011,Conferencesseminars fees etc,70.00,0.00,70.00
Children and Young Peoples Services,Head of Childrens Social Care,085352,Tow Law CU,Supplies and Services,324117,Provisions E324,14-Apr-2020,000007143913246,SAINSBURYS 0776,5411,Catering costs - provisions,109.56,0.00,109.56
Neighbourhoods and Climate Change,Environmental Services,010900,Fleet - Meadowfield Fleet,Transport,215013,Running Costs of Vehicles,14-Apr-2020,000007143913252,DVLA VEHICLE TAX,9311,Vehicle Excise Duty (VED),352.50,0.00,352.50
Neighbourhoods and Climate Change,Environmental Services,010900,Fleet - Meadowfield Fleet,Transport,215013,Running Costs of Vehicles,14-Apr-2020,000007143913260,DVLA VEHICLE TAX,9311,Vehicle Excise Duty (VED),167.50,0.00,167.50
Neighbourhoods and Climate Change,Environmental Services,010561,Fleet - Morrison Busty Fleet,Transport,215013,Running Costs of Vehicles,14-Apr-2020,000007143913264,DVLA VEHICLE TAX,9311,Vehicle Excise Duty (VED),167.50,0.00,167.50
Neighbourhoods and Climate Change,Environmental Services,010900,Fleet - Meadowfield Fleet,Transport,215013,Running Costs of Vehicles,14-Apr-2020,000007143913268,DVLA VEHICLE TAX,9311,Vehicle Excise Duty (VED),152.50,0.00,152.50
Neighbourhoods and Climate Change,Environmental Services,010900,Fleet - Meadowfield Fleet,Transport,215013,Running Costs of Vehicles,14-Apr-2020,000007143913272,DVLA VEHICLE TAX,9311,Vehicle Excise Duty (VED),267.50,0.00,267.50
Neighbourhoods and Climate Change,Environmental Services,010561,Fleet - Morrison Busty Fleet,Transport,215013,Running Costs of Vehicles,14-Apr-2020,000007143913278,DVLA VEHICLE TAX,9311,Vehicle Excise Duty (VED),167.50,0.00,167.50
Neighbourhoods and Climate Change,Environmental Services,010561,Fleet - Morrison Busty Fleet,Transport,215013,Running Costs of Vehicles,14-Apr-2020,000007143913280,DVLA VEHICLE TAX,9311,Vehicle Excise Duty (VED),152.50,0.00,152.50
Neighbourhoods and Climate Change,Environmental Services,010551,Fleet - Chilton Fleet,Transport,215013,Running Costs of Vehicles,14-Apr-2020,000007143913284,DVLA VEHICLE TAX,9311,Vehicle Excise Duty (VED),167.50,0.00,167.50
Neighbourhoods and Climate Change,Environmental Services,010900,Fleet - Meadowfield Fleet,Transport,215013,Running Costs of Vehicles,14-Apr-2020,000007143913288,DVLA VEHICLE TAX,9311,Vehicle Excise Duty (VED),167.50,0.00,167.50
Neighbourhoods and Climate Change,Environmental Services,010551,Fleet - Chilton Fleet,Transport,215013,Running Costs of Vehicles,14-Apr-2020,000007143913292,DVLA VEHICLE TAX,9311,Vehicle Excise Duty (VED),152.50,0.00,152.50
Neighbourhoods and Climate Change,Environmental Services,010864,Fleet - Hackworth Road Fleet,Transport,215013,Running Costs of Vehicles,14-Apr-2020,000007143913296,DVLA VEHICLE TAX,9311,Vehicle Excise Duty (VED),152.50,0.00,152.50
Neighbourhoods and Climate Change,Environmental Services,010551,Fleet - Chilton Fleet,Transport,215013,Running Costs of Vehicles,14-Apr-2020,000007143913300,DVLA VEHICLE TAX,9311,Vehicle Excise Duty (VED),267.50,0.00,267.50
Neighbourhoods and Climate Change,Environmental Services,010900,Fleet - Meadowfield Fleet,Transport,215013,Running Costs of Vehicles,14-Apr-2020,000007143913302,DVLA VEHICLE TAX,9311,Vehicle Excise Duty (VED),167.50,0.00,167.50
Neighbourhoods and Climate Change,Environmental Services,010864,Fleet - Hackworth Road Fleet,Transport,215013,Running Costs of Vehicles,14-Apr-2020,000007143913306,DVLA VEHICLE TAX,9311,Vehicle Excise Duty (VED),352.50,0.00,352.50
Neighbourhoods and Climate Change,Environmental Services,010864,Fleet - Hackworth Road Fleet,Transport,215013,Running Costs of Vehicles,14-Apr-2020,000007143913308,DVLA VEHICLE TAX,9311,Vehicle Excise Duty (VED),167.50,0.00,167.50
Neighbourhoods and Climate Change,Environmental Services,010551,Fleet - Chilton Fleet,Transport,215013,Running Costs of Vehicles,14-Apr-2020,000007143913310,DVLA VEHICLE TAX,9311,Vehicle Excise Duty (VED),267.50,0.00,267.50
Neighbourhoods and Climate Change,Environmental Services,010900,Fleet - Meadowfield Fleet,Transport,215013,Running Costs of Vehicles,14-Apr-2020,000007143913314,DVLA VEHICLE TAX,9311,Vehicle Excise Duty (VED),617.50,0.00,617.50
Neighbourhoods and Climate Change,Environmental Services,010900,Fleet - Meadowfield Fleet,Transport,215013,Running Costs of Vehicles,14-Apr-2020,000007143913318,DVLA VEHICLE TAX,9311,Vehicle Excise Duty (VED),167.50,0.00,167.50
Neighbourhoods and Climate Change,Environmental Services,010551,Fleet - Chilton Fleet,Transport,215013,Running Costs of Vehicles,14-Apr-2020,000007143913320,DVLA VEHICLE TAX,9311,Vehicle Excise Duty (VED),167.50,0.00,167.50
Neighbourhoods and Climate Change,Environmental Services,010900,Fleet - Meadowfield Fleet,Transport,215013,Running Costs of Vehicles,14-Apr-2020,000007143913322,DVLA VEHICLE TAX,9311,Vehicle Excise Duty (VED),167.50,0.00,167.50
Neighbourhoods and Climate Change,Environmental Services,010551,Fleet - Chilton Fleet,Transport,215013,Running Costs of Vehicles,14-Apr-2020,000007143913326,DVLA VEHICLE TAX,9311,Vehicle Excise Duty (VED),167.50,0.00,167.50
Neighbourhoods and Climate Change,Environmental Services,010900,Fleet - Meadowfield Fleet,Transport,215013,Running Costs of Vehicles,14-Apr-2020,000007143913330,DVLA VEHICLE TAX,9311,Vehicle Excise Duty (VED),167.50,0.00,167.50
Neighbourhoods and Climate Change,Environmental Services,010900,Fleet - Meadowfield Fleet,Transport,215013,Running Costs of Vehicles,14-Apr-2020,000007143913334,DVLA VEHICLE TAX,9311,Vehicle Excise Duty (VED),267.50,0.00,267.50
Neighbourhoods and Climate Change,Environmental Services,010551,Fleet - Chilton Fleet,Transport,215013,Running Costs of Vehicles,14-Apr-2020,000007143913338,DVLA VEHICLE TAX,9311,Vehicle Excise Duty (VED),167.50,0.00,167.50
Neighbourhoods and Climate Change,Environmental Services,010551,Fleet - Chilton Fleet,Transport,215013,Running Costs of Vehicles,14-Apr-2020,000007143913344,DVLA VEHICLE TAX,9311,Vehicle Excise Duty (VED),167.50,0.00,167.50
Neighbourhoods and Climate Change,Environmental Services,010864,Fleet - Hackworth Road Fleet,Transport,215013,Running Costs of Vehicles,14-Apr-2020,000007143913362,DVLA VEHICLE TAX,9311,Vehicle Excise Duty (VED),267.50,0.00,267.50
Neighbourhoods and Climate Change,Environmental Services,010900,Fleet - Meadowfield Fleet,Transport,215013,Running Costs of Vehicles,14-Apr-2020,000007143913370,DVLA VEHICLE TAX,9311,Vehicle Excise Duty (VED),167.50,0.00,167.50
Neighbourhoods and Climate Change,Environmental Services,010864,Fleet - Hackworth Road Fleet,Transport,215013,Running Costs of Vehicles,14-Apr-2020,000007143913374,DVLA VEHICLE TAX,9311,Vehicle Excise Duty (VED),167.50,0.00,167.50
Neighbourhoods and Climate Change,Environmental Services,010864,Fleet - Hackworth Road Fleet,Transport,215013,Running Costs of Vehicles,14-Apr-2020,000007143913380,DVLA VEHICLE TAX,9311,Vehicle Excise Duty (VED),167.50,0.00,167.50
Neighbourhoods and Climate Change,Environmental Services,010900,Fleet - Meadowfield Fleet,Transport,215013,Running Costs of Vehicles,14-Apr-2020,000007143913384,DVLA VEHICLE TAX,9311,Vehicle Excise Duty (VED),617.50,0.00,617.50
Neighbourhoods and Climate Change,Environmental Services,010864,Fleet - Hackworth Road Fleet,Transport,215013,Running Costs of Vehicles,14-Apr-2020,000007143913386,DVLA VEHICLE TAX,9311,Vehicle Excise Duty (VED),167.50,0.00,167.50
Neighbourhoods and Climate Change,Environmental Services,010864,Fleet - Hackworth Road Fleet,Transport,215013,Running Costs of Vehicles,14-Apr-2020,000007143913392,DVLA VEHICLE TAX,9311,Vehicle Excise Duty (VED),722.50,0.00,722.50
Neighbourhoods and Climate Change,Environmental Services,010551,Fleet - Chilton Fleet,Transport,215013,Running Costs of Vehicles,14-Apr-2020,000007143913394,DVLA VEHICLE TAX,9311,Vehicle Excise Duty (VED),617.50,0.00,617.50
Neighbourhoods and Climate Change,Environmental Services,010551,Fleet - Chilton Fleet,Transport,215013,Running Costs of Vehicles,14-Apr-2020,000007143913398,DVLA VEHICLE TAX,9311,Vehicle Excise Duty (VED),167.50,0.00,167.50
Neighbourhoods and Climate Change,Environmental Services,010900,Fleet - Meadowfield Fleet,Transport,215013,Running Costs of Vehicles,14-Apr-2020,000007143913400,DVLA VEHICLE TAX,9311,Vehicle Excise Duty (VED),617.50,0.00,617.50
Neighbourhoods and Climate Change,Environmental Services,010551,Fleet - Chilton Fleet,Transport,215013,Running Costs of Vehicles,14-Apr-2020,000007143913404,DVLA VEHICLE TAX,9311,Vehicle Excise Duty (VED),617.50,0.00,617.50
Neighbourhoods and Climate Change,Environmental Services,010900,Fleet - Meadowfield Fleet,Transport,215013,Running Costs of Vehicles,14-Apr-2020,000007143913408,DVLA VEHICLE TAX,9311,Vehicle Excise Duty (VED),267.50,0.00,267.50
Neighbourhoods and Climate Change,Environmental Services,010900,Fleet - Meadowfield Fleet,Transport,215013,Running Costs of Vehicles,14-Apr-2020,000007143913412,DVLA VEHICLE TAX,9311,Vehicle Excise Duty (VED),267.50,0.00,267.50
Neighbourhoods and Climate Change,Environmental Services,010900,Fleet - Meadowfield Fleet,Transport,215013,Running Costs of Vehicles,14-Apr-2020,000007143913416,DVLA VEHICLE TAX,9311,Vehicle Excise Duty (VED),267.50,0.00,267.50
Neighbourhoods and Climate Change,Environmental Services,010864,Fleet - Hackworth Road Fleet,Transport,215013,Running Costs of Vehicles,14-Apr-2020,000007143913418,DVLA VEHICLE TAX,9311,Vehicle Excise Duty (VED),267.50,0.00,267.50
Neighbourhoods and Climate Change,Environmental Services,010551,Fleet - Chilton Fleet,Transport,215013,Running Costs of Vehicles,14-Apr-2020,000007143913424,DVLA VEHICLE TAX,9311,Vehicle Excise Duty (VED),722.50,0.00,722.50
Neighbourhoods and Climate Change,Environmental Services,010864,Fleet - Hackworth Road Fleet,Transport,215013,Running Costs of Vehicles,14-Apr-2020,000007143913426,DVLA VEHICLE TAX,9311,Vehicle Excise Duty (VED),617.50,0.00,617.50
Children and Young Peoples Services,Head of Childrens Social Care,085334,West Rainton Satelite Home,Supplies and Services,324117,Provisions E324,14-Apr-2020,000007143913440,SPAR,5411,Catering costs - provisions,2.10,0.35,1.75
Children and Young Peoples Services,Head of Childrens Social Care,085334,West Rainton Satelite Home,Supplies and Services,324117,Provisions E324,14-Apr-2020,000007143913440 - 1,SPAR,5411,Catering costs - provisions,27.75,,27.75
"Regeneration, Economy and Growth",Development and Housing,031500,Housing Solutions - Core Team,Supplies and Services,352001,Conference Expenses,14-Apr-2020,000007143913460,GRAINGER HOTEL,7011,Conferencesseminars fees etc,70.00,0.00,70.00
"Regeneration, Economy and Growth",Development and Housing,031500,Housing Solutions - Core Team,Supplies and Services,352001,Conference Expenses,14-Apr-2020,000007143913464,GRAINGER HOTEL,7011,Conferencesseminars fees etc,70.00,0.00,70.00
"Regeneration, Economy and Growth",Development and Housing,031500,Housing Solutions - Core Team,Supplies and Services,352001,Conference Expenses,14-Apr-2020,000007143913466,GRAINGER HOTEL,7011,Conferencesseminars fees etc,70.00,0.00,70.00
"Regeneration, Economy and Growth",Culture Sport and Tourism,054815,Gala Theatre Stage School,Supplies and Services,304259,Equipment and Materials,14-Apr-2020,000007143913512,APPLE.COM/BILL,5735,Equipment-purchase and rental,0.79,0.00,0.79
"Regeneration, Economy and Growth",Development and Housing,031500,Housing Solutions - Core Team,Supplies and Services,352001,Conference Expenses,14-Apr-2020,000007143913516,GRAINGER HOTEL,7011,Conferencesseminars fees etc,70.00,0.00,70.00
"Regeneration, Economy and Growth",Development and Housing,031576,B& B - Temp Accom,Supplies and Services,364320,Grants to Voluntary Organisations,14-Apr-2020,000007143913538,GRAINGER HOTEL,7011,Accommodation assistance,70.00,0.00,70.00
"Regeneration, Economy and Growth",Development and Housing,031576,B& B - Temp Accom,Supplies and Services,364320,Grants to Voluntary Organisations,14-Apr-2020,000007143913540,BUDGET H EXPRESS HOTEL,7011,Accommodation assistance,89.00,14.83,74.17
Children and Young Peoples Services,Head of Early Help Inclusion & Vulnerable Children.,088108,Spennymoor & Shildon 0-19 Targeted Family Support,Supplies and Services,304259,Equipment and Materials,14-Apr-2020,000007143913560,WILKO RETAIL LIMITED,5399,Equipment-purchase and rental,34.70,0.00,34.70
"Regeneration, Economy and Growth",Development and Housing,031576,B& B - Temp Accom,Supplies and Services,364320,Grants to Voluntary Organisations,14-Apr-2020,000007143913574,GRAINGER HOTEL,7011,Accommodation assistance,70.00,11.67,58.33
"Regeneration, Economy and Growth",Development and Housing,031576,B& B - Temp Accom,Supplies and Services,364320,Grants to Voluntary Organisations,14-Apr-2020,000007143913580,HI NEWCASTLE WASHI,7011,Accommodation assistance,65.00,10.83,54.17
"Regeneration, Economy and Growth",Development and Housing,031576,B& B - Temp Accom,Supplies and Services,364320,Grants to Voluntary Organisations,14-Apr-2020,000007143913582,HI NEWCASTLE WASHI,7011,Accommodation assistance,10.00,1.67,8.33
Neighbourhoods and Climate Change,Environmental Services,010367,C&G - South Grounds Maintenance,Supplies and Services,304221,Equipment and Materials,14-Apr-2020,000007143913586,VALE ENGINEERING (YORK,7394,Direct materials,109.51,18.25,91.26
Children and Young Peoples Services,Head of Education and Skills,071802,Louisa Cent Nursery,Supplies and Services,304999,Equipment and Materials,14-Apr-2020,000007143913590,HOME BARGAINS,5251,Misc equipment tools and materials,1.78,0.00,1.78
Children and Young Peoples Services,Head of Education and Skills,071802,Louisa Cent Nursery,Supplies and Services,304999,Equipment and Materials,14-Apr-2020,000007143913592,HOME BARGAINS,5251,Misc equipment tools and materials,6.47,1.08,5.39
Children and Young Peoples Services,Head of Childrens Social Care,085333,Coxhoe Satelite Home,Supplies and Services,344033,Telephones,14-Apr-2020,000007143913594,giffgaff,4814,Telephones general-all costs,10.00,0.00,10.00
Children and Young Peoples Services,Head of Childrens Social Care,085342,16 Hickstead Rise (previously 9 Cedar Ave),Supplies and Services,348037,Subsistence E348,14-Apr-2020,000007143913606,THE OLIVE GARDEN,5812,Subsistence,24.80,0.00,24.80
Adult and Health Services,Head of Adults,055643,Hawthorn House LD Respite Unit,Supplies and Services,324117,Provisions E324,14-Apr-2020,000007143913622,FREEMAN CATERING BUTCH,5422,Catering costs - provisions,28.61,0.00,28.61
Adult and Health Services,Head of Adults,055643,Hawthorn House LD Respite Unit,Supplies and Services,324117,Provisions E324,14-Apr-2020,000007143913624,JR HOLLAND FOODSERVICE,5499,Catering costs - provisions,2.06,0.00,2.06
Adult and Health Services,Head of Adults,055643,Hawthorn House LD Respite Unit,Supplies and Services,324117,Provisions E324,14-Apr-2020,000007143913628,JR HOLLAND FOODSERVICE,5499,Catering costs - provisions,3.20,0.00,3.20
Adult and Health Services,Head of Adults,055643,Hawthorn House LD Respite Unit,Supplies and Services,324117,Provisions E324,14-Apr-2020,000007143913630,JR HOLLAND FOODSERVICE,5499,Catering costs - provisions,19.37,0.00,19.37
Adult and Health Services,Head of Adults,055643,Hawthorn House LD Respite Unit,Supplies and Services,324117,Provisions E324,14-Apr-2020,000007143913634,JR HOLLAND FOODSERVICE,5499,Catering costs - provisions,39.40,0.00,39.40
Children and Young Peoples Services,Head of Childrens Social Care,085334,West Rainton Satelite Home,Supplies and Services,324117,Provisions E324,14-Apr-2020,000007143913636,The Apple Orchard,5411,Catering costs - provisions,70.54,0.00,70.54
Children and Young Peoples Services,Head of Childrens Social Care,085342,16 Hickstead Rise (previously 9 Cedar Ave),Supplies and Services,304259,Equipment and Materials,14-Apr-2020,000007143913640,AMZN Digital,5735,Equipment-purchase and rental,20.00,0.00,20.00
Children and Young Peoples Services,Head of Early Help Inclusion & Vulnerable Children.,085965,Barnard,Supplies and Services,304403,Equipment and Materials,14-Apr-2020,000007143913644,AMZNMktplace,5999,Other consumables,23.28,0.00,23.28
Children and Young Peoples Services,Head of Early Help Inclusion & Vulnerable Children.,085965,Barnard,Supplies and Services,384999,Miscellaneous Expenses,14-Apr-2020,000007143913650,AMZNMktplace,5999,Other expenses,21.98,3.66,18.32
Children and Young Peoples Services,Head of Early Help Inclusion & Vulnerable Children.,085956,Lumley,Supplies and Services,304649,Equipment and Materials,14-Apr-2020,000007143913652,AMZNMktplace,5999,Toys,6.43,0.00,6.43
Children and Young Peoples Services,Head of Early Help Inclusion & Vulnerable Children.,085965,Barnard,Supplies and Services,304649,Equipment and Materials,14-Apr-2020,000007143913654,AMZNMktplace,5999,Toys,39.99,0.00,39.99
Resources BK0010,Business Support,069010,Administration 069010,Supplies and Services,340001,Postages E340,14-Apr-2020,000007143913658,WWW.NEOPOST.CO.UK,5111,Postages,500.00,0.00,500.00
Children and Young Peoples Services,Head of Childrens Social Care,085332,Middlestone Moor CU,Supplies and Services,312009,Newspapers books and periodicals E312,14-Apr-2020,000007143913672,MIDDLESTONE MOOR NEWSA,5994,Newspapers books and periodicals,40.00,6.67,33.33
Children and Young Peoples Services,Head of Early Help Inclusion & Vulnerable Children.,088107,Ferryhill & Newton Aycliffe 0-19 Community Family Hub,Supplies and Services,304403,Equipment and Materials,14-Apr-2020,000007143913700,AMZNMktplace,5999,Other consumables,9.49,1.58,7.91
Children and Young Peoples Services,Head of Early Help Inclusion & Vulnerable Children.,088107,Ferryhill & Newton Aycliffe 0-19 Community Family Hub,Supplies and Services,304403,Equipment and Materials,14-Apr-2020,000007143913704,AMZNMktplace,5999,Other consumables,6.98,1.16,5.82
"Regeneration, Economy and Growth",Development and Housing,031500,Housing Solutions - Core Team,Supplies and Services,352001,Conference Expenses,14-Apr-2020,000007143913708,GRAINGER HOTEL,7011,Conferencesseminars fees etc,70.00,0.00,70.00
"Regeneration, Economy and Growth",Development and Housing,031500,Housing Solutions - Core Team,Supplies and Services,352001,Conference Expenses,14-Apr-2020,000007143913712,HI NEWCASTLE WASHI,7011,Conferencesseminars fees etc,130.00,0.00,130.00
"Regeneration, Economy and Growth",Development and Housing,031500,Housing Solutions - Core Team,Supplies and Services,352001,Conference Expenses,14-Apr-2020,000007143913714,HI NEWCASTLE WASHI,7011,Conferencesseminars fees etc,65.00,0.00,65.00
"Regeneration, Economy and Growth",Development and Housing,031500,Housing Solutions - Core Team,Supplies and Services,352001,Conference Expenses,14-Apr-2020,000007143913716,HI NEWCASTLE WASHI,7011,Conferencesseminars fees etc,65.00,0.00,65.00
"Regeneration, Economy and Growth",Development and Housing,031500,Housing Solutions - Core Team,Supplies and Services,352001,Conference Expenses,14-Apr-2020,000007143913720,HI NEWCASTLE WASHI,7011,Conferencesseminars fees etc,65.00,0.00,65.00
"Regeneration, Economy and Growth",Development and Housing,031500,Housing Solutions - Core Team,Supplies and Services,352001,Conference Expenses,14-Apr-2020,000007143913722,HI NEWCASTLE WASHI,7011,Conferencesseminars fees etc,65.00,0.00,65.00
"Regeneration, Economy and Growth",Development and Housing,031500,Housing Solutions - Core Team,Supplies and Services,352001,Conference Expenses,14-Apr-2020,000007143913726,HI NEWCASTLE WASHI,7011,Conferencesseminars fees etc,75.00,0.00,75.00
"Regeneration, Economy and Growth",Development and Housing,031500,Housing Solutions - Core Team,Supplies and Services,352001,Conference Expenses,14-Apr-2020,000007143913728,HI NEWCASTLE WASHI,7011,Conferencesseminars fees etc,65.00,0.00,65.00
Children and Young Peoples Services,Head of Childrens Social Care,085341,High Etherley Satelite Home,Supplies and Services,304999,Equipment and Materials,14-Apr-2020,000007143913740,SAVERS HEALTH & BEAUTY,5912,Misc equipment tools and materials,7.98,0.00,7.98
"Regeneration, Economy and Growth",Development and Housing,031500,Housing Solutions - Core Team,Supplies and Services,328041,Clothing uniforms and laundry E328,14-Apr-2020,000007145765802,ARGOS LTD,5310,Clothing uniforms and laundry,-19.98,0.00,-19.98
"Regeneration, Economy and Growth",Development and Housing,031500,Housing Solutions - Core Team,Supplies and Services,352001,Conference Expenses,14-Apr-2020,000007147617104,AYCLIFFE BIZ,7011,Conferencesseminars fees etc,38.00,6.33,31.67
"Regeneration, Economy and Growth",Development and Housing,031500,Housing Solutions - Core Team,Supplies and Services,352001,Conference Expenses,14-Apr-2020,000007147617380,AYCLIFFE BIZ,7011,Conferencesseminars fees etc,38.00,0.00,38.00
"Regeneration, Economy and Growth",Development and Housing,031500,Housing Solutions - Core Team,Supplies and Services,352001,Conference Expenses,14-Apr-2020,000007147617384,AYCLIFFE BIZ,7011,Conferencesseminars fees etc,38.00,0.00,38.00
Children and Young Peoples Services,Head of Education and Skills,071801,Selby Cottage Childcare Centre,Supplies and Services,324117,Provisions E324,15-Apr-2020,000007145765510,ASDA GROCERIES ONLINE,5411,Catering costs - provisions,5.00,0.00,5.00
Children and Young Peoples Services,Head of Education and Skills,071801,Selby Cottage Childcare Centre,Supplies and Services,324117,Provisions E324,15-Apr-2020,000007145765512,ONE STOP 3026,5411,Catering costs - provisions,2.05,0.00,2.05
Adult and Health Services,Commissioning inc Supporting People,052100,Supporting the Provider Market,Supplies and Services,338057,Services,15-Apr-2020,000007145765520,AMZNMktplace,5999,Medical fees 338057,159.90,0.00,159.90
Adult and Health Services,Commissioning inc Supporting People,052100,Supporting the Provider Market,Supplies and Services,338057,Services,15-Apr-2020,000007145765524,PAYPAL WESSEX MED,5047,Medical fees 338057,"1,260.00",210.00,1050.00
Adult and Health Services,Commissioning inc Supporting People,052100,Supporting the Provider Market,Supplies and Services,338057,Services,15-Apr-2020,000007145765526,PAYPAL WESSEX MED,5047,Medical fees 338057,780.00,130.00,650.00
"Regeneration, Economy and Growth",Development and Housing,031576,B& B - Temp Accom,Supplies and Services,364320,Grants to Voluntary Organisations,15-Apr-2020,000007145765536,GRAINGER HOTEL,7011,Accommodation assistance,70.00,0.00,70.00
Children and Young Peoples Services,Head of Childrens Social Care,085342,16 Hickstead Rise (previously 9 Cedar Ave),Supplies and Services,324117,Provisions E324,15-Apr-2020,000007145765592,TESCO STORES 2916,5411,Catering costs - provisions,77.49,0.00,77.49
Children and Young Peoples Services,Head of Childrens Social Care,085342,16 Hickstead Rise (previously 9 Cedar Ave),Supplies and Services,324117,Provisions E324,15-Apr-2020,000007145765598,TESCO STORES 2916,5411,Catering costs - provisions,8.80,0.00,8.80
Children and Young Peoples Services,Head of Childrens Social Care,085352,Tow Law CU,Supplies and Services,324117,Provisions E324,15-Apr-2020,000007145765606,TESCO STORES 2371,5411,Catering costs - provisions,12.00,0.00,12.00
Children and Young Peoples Services,Head of Childrens Social Care,085624,Families First Crook,Supplies and Services,364301,Grants to Voluntary Organisations,15-Apr-2020,000007145765668,BOOTS/0557,5912,Hardship,37.12,0.00,37.12
Children and Young Peoples Services,Head of Early Help Inclusion & Vulnerable Children.,088104,BA/BC/Crook 0-19 Targeted Family Support,Supplies and Services,384999,Miscellaneous Expenses,15-Apr-2020,000007145765670,ALDI 15 774,5411,Other expenses,51.33,0.00,51.33
"Regeneration, Economy and Growth",Development and Housing,031576,B& B - Temp Accom,Supplies and Services,352001,Conference Expenses,15-Apr-2020,000007145765676,BUDGET H EXPRESS HOTEL,7011,Conferencesseminars fees etc,128.00,21.33,106.67
Children and Young Peoples Services,Head of Early Help Inclusion & Vulnerable Children.,085957,Secure Management,Supplies and Services,304403,Equipment and Materials,15-Apr-2020,000007145765678,AMZNMKTPLACE AMAZON.CO,5999,Other consumables,9.99,1.67,8.32
"Regeneration, Economy and Growth",Development and Housing,031576,B& B - Temp Accom,Supplies and Services,352001,Conference Expenses,15-Apr-2020,000007145765698,GRAINGER HOTEL,7011,Conferencesseminars fees etc,70.00,0.00,70.00
Children and Young Peoples Services,Head of Childrens Social Care,085334,West Rainton Satelite Home,Supplies and Services,304403,Equipment and Materials,15-Apr-2020,000007145765716,AMZNMktplace,5999,Other consumables,49.82,0.00,49.82
Children and Young Peoples Services,Head of Childrens Social Care,085332,Middlestone Moor CU,Supplies and Services,324117,Provisions E324,15-Apr-2020,000007145765724,PPOINT_ Shergill Store,5411,Catering costs - provisions,7.10,0.00,7.10
"Regeneration, Economy and Growth",Development and Housing,030771,Durham Advance Flexible Fund,Supplies and Services,384700,Miscellaneous Expenses,15-Apr-2020,000007145765740,DISCLOSURE & BARRING,9399,Miscellaneous grants,13.00,0.00,13.00
"Regeneration, Economy and Growth",Development and Housing,030771,Durham Advance Flexible Fund,Supplies and Services,304259,Equipment and Materials,15-Apr-2020,000007145765744,GEN REGISTER OFFICE,9399,Equipment-purchase and rental,11.00,0.00,11.00
"Regeneration, Economy and Growth",Development and Housing,031576,B& B - Temp Accom,Supplies and Services,364320,Grants to Voluntary Organisations,15-Apr-2020,000007145765808,GRAINGER HOTEL,7011,Accommodation assistance,70.00,0.00,70.00
Children and Young Peoples Services,Head of Childrens Social Care,085352,Tow Law CU,Supplies and Services,304221,Equipment and Materials,15-Apr-2020,000007145765814,SCREWFIX DIRECT,5200,Direct materials,5.37,0.00,5.37
Children and Young Peoples Services,Head of Childrens Social Care,085352,Tow Law CU,Supplies and Services,304999,Equipment and Materials,15-Apr-2020,000007145765816,Amazon Prime WH0X15JV5,5968,Misc equipment tools and materials,7.99,0.00,7.99
Adult and Health Services,Head of Adults,055643,Hawthorn House LD Respite Unit,Supplies and Services,340001,Postages E340,15-Apr-2020,000007145765820,POST OFFICE COUNTER,9402,Postages,45.60,0.00,45.60
Children and Young Peoples Services,Head of Childrens Social Care,085342,16 Hickstead Rise (previously 9 Cedar Ave),Supplies and Services,344033,Telephones,15-Apr-2020,000007145765830,WWW.VOXI.CO.UK,4814,Telephones general-all costs,10.00,0.00,10.00
Children and Young Peoples Services,Head of Childrens Social Care,085342,16 Hickstead Rise (previously 9 Cedar Ave),Supplies and Services,324117,Provisions E324,15-Apr-2020,000007145765834,TESCO STORES 2916,5411,Catering costs - provisions,16.00,0.00,16.00
Adult and Health Services,Head of Adults,055643,Hawthorn House LD Respite Unit,Supplies and Services,324117,Provisions E324,15-Apr-2020,000007145765846,HOPWELLS LTD,5811,Catering costs - provisions,77.29,0.00,77.29
Adult and Health Services,Head of Adults,055643,Hawthorn House LD Respite Unit,Supplies and Services,324117,Provisions E324,15-Apr-2020,000007145765850,HOPWELLS LTD,5811,Catering costs - provisions,2.22,0.37,1.85
Adult and Health Services,Head of Adults,055643,Hawthorn House LD Respite Unit,Supplies and Services,324117,Provisions E324,15-Apr-2020,000007145765850 - 1,HOPWELLS LTD,5811,Catering costs - provisions,47.26,,47.26
Adult and Health Services,Head of Adults,055643,Hawthorn House LD Respite Unit,Supplies and Services,324117,Provisions E324,15-Apr-2020,000007145765856,JR HOLLAND FOODSERVICE,5499,Catering costs - provisions,7.40,0.00,7.40
Adult and Health Services,Head of Adults,055643,Hawthorn House LD Respite Unit,Supplies and Services,324117,Provisions E324,15-Apr-2020,000007145765862,JR HOLLAND FOODSERVICE,5499,Catering costs - provisions,6.00,0.00,6.00
Adult and Health Services,Head of Adults,055643,Hawthorn House LD Respite Unit,Supplies and Services,324117,Provisions E324,15-Apr-2020,000007145765866,JR HOLLAND FOODSERVICE,5499,Catering costs - provisions,19.45,0.00,19.45
Children and Young Peoples Services,Head of Early Help Inclusion & Vulnerable Children.,088103,Consett & Stanley 0-19 Community Family Hub,Supplies and Services,312009,Newspapers books and periodicals E312,15-Apr-2020,000007145765878,BOOKDEPOSITORY.COM,5942,Newspapers books and periodicals,67.32,0.00,67.32
Children and Young Peoples Services,Head of Early Help Inclusion & Vulnerable Children.,088102,Consett & Stanley 0-19 Targeted Family Support,Supplies and Services,304403,Equipment and Materials,15-Apr-2020,000007145765884,POUNDSTRETCHER 354,5331,Other consumables,0.90,0.00,0.90
Children and Young Peoples Services,Head of Early Help Inclusion & Vulnerable Children.,085962,Aycliffe Secure - Durham,Supplies and Services,304649,Equipment and Materials,15-Apr-2020,000007145765896,AMZNMktplace,5999,Toys,39.23,0.00,39.23
Children and Young Peoples Services,Head of Early Help Inclusion & Vulnerable Children.,085957,Secure Management,Supplies and Services,304403,Equipment and Materials,15-Apr-2020,000007145765902,AMZNMktplace,5999,Other consumables,44.99,0.00,44.99
Children and Young Peoples Services,Head of Early Help Inclusion & Vulnerable Children.,085965,Barnard,Supplies and Services,304649,Equipment and Materials,15-Apr-2020,000007145765904,Amazon.co.uk Z66P435U5,5969,Toys,10.82,0.00,10.82
Children and Young Peoples Services,Head of Early Help Inclusion & Vulnerable Children.,085962,Aycliffe Secure - Durham,Supplies and Services,304649,Equipment and Materials,15-Apr-2020,000007145765910,Amazon.co.uk 6E27G9DY5,5969,Toys,10.82,0.00,10.82
Children and Young Peoples Services,Head of Early Help Inclusion & Vulnerable Children.,085962,Aycliffe Secure - Durham,Supplies and Services,384999,Miscellaneous Expenses,15-Apr-2020,000007145765914,Amazon.co.uk 9Q9QX7SD5,5969,Other expenses,15.98,2.66,13.32
"Regeneration, Economy and Growth",Transport and Contracted Services,032375,School & Workplace Travel Plans Revenue,Supplies and Services,372009,Subscriptions E372,15-Apr-2020,000007145765922,WWW.CTC.ORG.UK,8699,Subscriptions 372009,80.00,0.00,80.00
Children and Young Peoples Services,Head of Childrens Social Care,085333,Coxhoe Satelite Home,Supplies and Services,324117,Provisions E324,15-Apr-2020,000007145765936,Coates Butchers,5422,Catering costs - provisions,71.34,0.00,71.34
Children and Young Peoples Services,Head of Childrens Social Care,085333,Coxhoe Satelite Home,Supplies and Services,324117,Provisions E324,15-Apr-2020,000007145765940,ASDA STORES LTD,5411,Catering costs - provisions,8.55,0.00,8.55
Children and Young Peoples Services,Head of Childrens Social Care,085333,Coxhoe Satelite Home,Supplies and Services,324117,Provisions E324,15-Apr-2020,000007145765946,CO-OP GROUP 310016,5411,Catering costs - provisions,15.29,0.00,15.29
"Regeneration, Economy and Growth",Development and Housing,031576,B& B - Temp Accom,Supplies and Services,364320,Grants to Voluntary Organisations,15-Apr-2020,000007145765960,HI NEWCASTLE WASHI,7011,Accommodation assistance,65.00,0.00,65.00
"Regeneration, Economy and Growth",Development and Housing,031576,B& B - Temp Accom,Supplies and Services,364320,Grants to Voluntary Organisations,15-Apr-2020,000007145765964,HI NEWCASTLE WASHI,7011,Accommodation assistance,130.00,0.00,130.00
"Regeneration, Economy and Growth",Culture Sport and Tourism,011263,Louisa Centre 011263,Supplies and Services,304221,Equipment and Materials,15-Apr-2020,000007145765992,SCREWFIX DIRECT,5200,Direct materials,24.99,4.17,20.82
"Regeneration, Economy and Growth",Development and Housing,031500,Housing Solutions - Core Team,Supplies and Services,304999,Equipment and Materials,15-Apr-2020,000007145766002,DUNCAN BELTON TA K,6513,Misc equipment tools and materials,150.00,0.00,150.00
"Regeneration, Economy and Growth",Development and Housing,031500,Housing Solutions - Core Team,Supplies and Services,304999,Equipment and Materials,15-Apr-2020,000007145766006,DUNCAN BELTON TA K,6513,Misc equipment tools and materials,350.00,0.00,350.00
"Regeneration, Economy and Growth",Development and Housing,031500,Housing Solutions - Core Team,Supplies and Services,304999,Equipment and Materials,15-Apr-2020,000007145766010,DUNCAN BELTON TA K,6513,Misc equipment tools and materials,350.00,0.00,350.00
"Regeneration, Economy and Growth",Development and Housing,031500,Housing Solutions - Core Team,Supplies and Services,352001,Conference Expenses,15-Apr-2020,000007145766012,HI NEWCASTLE WASHI,7011,Conferencesseminars fees etc,63.50,0.00,63.50
"Regeneration, Economy and Growth",Development and Housing,031500,Housing Solutions - Core Team,Supplies and Services,352001,Conference Expenses,15-Apr-2020,000007145766018,HI NEWCASTLE WASHI,7011,Conferencesseminars fees etc,65.00,0.00,65.00
"Regeneration, Economy and Growth",Development and Housing,031500,Housing Solutions - Core Team,Supplies and Services,352001,Conference Expenses,15-Apr-2020,000007145766022,HI NEWCASTLE WASHI,7011,Conferencesseminars fees etc,375.00,0.00,375.00
"Regeneration, Economy and Growth",Development and Housing,031500,Housing Solutions - Core Team,Supplies and Services,352001,Conference Expenses,15-Apr-2020,000007145766024,HI NEWCASTLE WASHI,7011,Conferencesseminars fees etc,65.00,0.00,65.00
Children and Young Peoples Services,Head of Childrens Social Care,085341,High Etherley Satelite Home,Supplies and Services,324117,Provisions E324,15-Apr-2020,000007145766040,WILKO RETAIL LIMITED,5399,Catering costs - provisions,8.75,0.00,8.75
Resources BK0010,Business Support,052986,CYPS - Locality and Operational Support,Supplies and Services,328041,Clothing uniforms and laundry E328,15-Apr-2020,000007145766056,ARGOS LTD,5310,Clothing uniforms and laundry,59.93,9.99,49.94
Children and Young Peoples Services,Head of Childrens Social Care,085332,Middlestone Moor CU,Supplies and Services,304999,Equipment and Materials,15-Apr-2020,000007147617340,SUPERDRUG STORES PLC,5912,Misc equipment tools and materials,15.49,2.58,12.91
Children and Young Peoples Services,Head of Childrens Social Care,085332,Middlestone Moor CU,Supplies and Services,304999,Equipment and Materials,15-Apr-2020,000007151460944,SUPERDRUG STORES PLC,5912,Misc equipment tools and materials,18.63,3.11,15.52
Children and Young Peoples Services,Head of Childrens Social Care,085332,Middlestone Moor CU,Supplies and Services,304403,Equipment and Materials,16-Apr-2020,000007145765928,AMZNMktplace,5999,Other consumables,15.99,2.67,13.32
Dedicated Schools Grant BG0015,DSG High Needs Block,077099,Special General,Supplies and Services,328041,Clothing uniforms and laundry E328,16-Apr-2020,000007147617056,ARGOS LTD,5310,Clothing uniforms and laundry,269.99,0.00,269.99
Dedicated Schools Grant BG0015,DSG High Needs Block,077099,Special General,Supplies and Services,328041,Clothing uniforms and laundry E328,16-Apr-2020,000007147617058,ARGOS LTD,5310,Clothing uniforms and laundry,269.99,0.00,269.99
Children and Young Peoples Services,Head of Childrens Social Care,085501,Child Care Cases Legal Expenses,Supplies and Services,304403,Equipment and Materials,16-Apr-2020,000007147617062,CITY OF NEWCASTLE INTE,9399,Other consumables,22.00,0.00,22.00
Children and Young Peoples Services,Head of Early Help Inclusion & Vulnerable Children.,085957,Secure Management,Supplies and Services,328041,Clothing uniforms and laundry E328,16-Apr-2020,000007147617080,SP ISAWITFIRST.COM,5691,Clothing uniforms and laundry,14.49,0.00,14.49
Children and Young Peoples Services,Head of Childrens Social Care,085334,West Rainton Satelite Home,Supplies and Services,304999,Equipment and Materials,16-Apr-2020,000007147617086,WWW.TOOLSTATION.COM,5251,Misc equipment tools and materials,9.98,0.00,9.98
"Regeneration, Economy and Growth",Development and Housing,031500,Housing Solutions - Core Team,Supplies and Services,352001,Conference Expenses,16-Apr-2020,000007147617110,AYCLIFFE BIZ,7011,Conferencesseminars fees etc,76.00,0.00,76.00
"Regeneration, Economy and Growth",Development and Housing,031500,Housing Solutions - Core Team,Supplies and Services,352001,Conference Expenses,16-Apr-2020,000007147617116,GRAINGER HOTEL,7011,Conferencesseminars fees etc,380.00,0.00,380.00
"Regeneration, Economy and Growth",Development and Housing,031500,Housing Solutions - Core Team,Supplies and Services,352001,Conference Expenses,16-Apr-2020,000007147617120,GRAINGER HOTEL,7011,Conferencesseminars fees etc,380.00,0.00,380.00
"Regeneration, Economy and Growth",Development and Housing,031500,Housing Solutions - Core Team,Supplies and Services,352001,Conference Expenses,16-Apr-2020,000007147617126,GRAINGER HOTEL,7011,Conferencesseminars fees etc,380.00,0.00,380.00
"Regeneration, Economy and Growth",Development and Housing,031500,Housing Solutions - Core Team,Supplies and Services,352001,Conference Expenses,16-Apr-2020,000007147617138,HI NEWCASTLE WASHI,7011,Conferencesseminars fees etc,65.00,0.00,65.00
"Regeneration, Economy and Growth",Development and Housing,031500,Housing Solutions - Core Team,Supplies and Services,352001,Conference Expenses,16-Apr-2020,000007147617142,HI NEWCASTLE WASHI,7011,Conferencesseminars fees etc,65.00,0.00,65.00
"Regeneration, Economy and Growth",Development and Housing,031500,Housing Solutions - Core Team,Supplies and Services,352001,Conference Expenses,16-Apr-2020,000007147617146,HI NEWCASTLE WASHI,7011,Conferencesseminars fees etc,65.00,0.00,65.00
"Regeneration, Economy and Growth",Development and Housing,031500,Housing Solutions - Core Team,Supplies and Services,304259,Equipment and Materials,16-Apr-2020,000007147617150,WWW.DURHAM.GOV.UK,9399,Equipment-purchase and rental,20.00,0.00,20.00
"Regeneration, Economy and Growth",Development and Housing,031576,B& B - Temp Accom,Supplies and Services,364320,Grants to Voluntary Organisations,16-Apr-2020,000007147617202,GRAINGER HOTEL,7011,Accommodation assistance,310.00,0.00,310.00
"Regeneration, Economy and Growth",Development and Housing,031576,B& B - Temp Accom,Supplies and Services,364320,Grants to Voluntary Organisations,16-Apr-2020,000007147617210,BUDGET H EXPRESS HOTEL,7011,Accommodation assistance,178.00,29.67,148.33
Children and Young Peoples Services,Head of Early Help Inclusion & Vulnerable Children.,088109,Spennymoor & Shildon 0-19 Community Family Hub,Supplies and Services,364301,Grants to Voluntary Organisations,16-Apr-2020,000007147617226,ASDA GEORGE COM LEEDS,5411,Hardship,45.00,0.00,45.00
Children and Young Peoples Services,Head of Early Help Inclusion & Vulnerable Children.,088108,Spennymoor & Shildon 0-19 Targeted Family Support,Supplies and Services,364301,Grants to Voluntary Organisations,16-Apr-2020,000007147617232,ARGOS LTD,5310,Hardship,17.95,0.00,17.95
"Regeneration, Economy and Growth",Development and Housing,031576,B& B - Temp Accom,Supplies and Services,364320,Grants to Voluntary Organisations,16-Apr-2020,000007147617238,BUDGET H EXPRESS HOTEL,7011,Accommodation assistance,89.00,14.83,74.17
Neighbourhoods and Climate Change,Environmental Services,010367,C&G - South Grounds Maintenance,Supplies and Services,304999,Equipment and Materials,16-Apr-2020,000007147617256,RICKERBY,5251,Misc equipment tools and materials,244.42,40.74,203.68
Children and Young Peoples Services,Head of Early Help Inclusion & Vulnerable Children.,085355,12 Brough Close Aycliffe,Supplies and Services,328041,Clothing uniforms and laundry E328,16-Apr-2020,000007147617264,SuperDry,5691,Clothing uniforms and laundry,50.00,0.00,50.00
Children and Young Peoples Services,Head of Early Help Inclusion & Vulnerable Children.,085355,12 Brough Close Aycliffe,Supplies and Services,348037,Subsistence E348,16-Apr-2020,000007147617272,CHEF ONLINE,5812,Subsistence,43.10,0.00,43.10
Children and Young Peoples Services,Head of Childrens Social Care,085333,Coxhoe Satelite Home,Supplies and Services,384999,Miscellaneous Expenses,16-Apr-2020,000007147617284,Amazon.co.uk 2T3XI35I5,5969,Other expenses,13.98,2.34,11.64
Children and Young Peoples Services,Head of Childrens Social Care,085333,Coxhoe Satelite Home,Supplies and Services,304403,Equipment and Materials,16-Apr-2020,000007147617288,AMZNMktplace,5999,Other consumables,7.99,1.33,6.66
Children and Young Peoples Services,Head of Childrens Social Care,085342,16 Hickstead Rise (previously 9 Cedar Ave),Supplies and Services,304259,Equipment and Materials,16-Apr-2020,000007147617292,PAYPAL VIPERLEAD EBAY,5732,Equipment-purchase and rental,5.99,0.00,5.99
Neighbourhoods and Climate Change,Environmental Services,010367,C&G - South Grounds Maintenance,Supplies and Services,304221,Equipment and Materials,16-Apr-2020,000007147617296,MACHINE MART WEB,7394,Direct materials,48.15,0.00,48.15
Children and Young Peoples Services,Head of Childrens Social Care,085342,16 Hickstead Rise (previously 9 Cedar Ave),Supplies and Services,384999,Miscellaneous Expenses,16-Apr-2020,000007147617300,Amazon.co.uk Y078H0RD5,5969,Other expenses,5.28,0.00,5.28
"Regeneration, Economy and Growth",Development and Housing,031576,B& B - Temp Accom,Supplies and Services,364320,Grants to Voluntary Organisations,16-Apr-2020,000007147617308,AYCLIFFE BIZ,7011,Accommodation assistance,228.00,0.00,228.00
"Regeneration, Economy and Growth",Development and Housing,031576,B& B - Temp Accom,Supplies and Services,364320,Grants to Voluntary Organisations,16-Apr-2020,000007147617312,AYCLIFFE BIZ,7011,Accommodation assistance,228.00,0.00,228.00
Children and Young Peoples Services,Head of Early Help Inclusion & Vulnerable Children.,085965,Barnard,Supplies and Services,304403,Equipment and Materials,16-Apr-2020,000007147617328,AMZNMKTPLACE AMAZON.CO,5999,Other consumables,41.49,6.92,34.57
Children and Young Peoples Services,Head of Early Help Inclusion & Vulnerable Children.,085956,Lumley,Supplies and Services,328041,Clothing uniforms and laundry E328,16-Apr-2020,000007147617330,JD SPORTS INTERNET,5941,Clothing uniforms and laundry,95.00,0.00,95.00
Children and Young Peoples Services,Head of Early Help Inclusion & Vulnerable Children.,085956,Lumley,Supplies and Services,328041,Clothing uniforms and laundry E328,16-Apr-2020,000007147617334,SPORTSDIRECT.COM,5941,Clothing uniforms and laundry,24.99,0.00,24.99
Children and Young Peoples Services,Head of Childrens Social Care,085332,Middlestone Moor CU,Supplies and Services,324117,Provisions E324,16-Apr-2020,000007147617336,WILKO RETAIL LIMITED,5399,Catering costs - provisions,32.10,5.35,26.75
Adult and Health Services,Head of Adults,055301,Stanley Pathways,Supplies and Services,324117,Provisions E324,16-Apr-2020,000007147617344,MARKS&SPENCER PLC SACA,5411,Catering costs - provisions,2.60,0.00,2.60
"Regeneration, Economy and Growth",Development and Housing,031576,B& B - Temp Accom,Supplies and Services,364320,Grants to Voluntary Organisations,16-Apr-2020,000007147617358,BUDGET H EXPRESS HOTEL,7011,Accommodation assistance,300.00,0.00,300.00
"Regeneration, Economy and Growth",Development and Housing,031576,B& B - Temp Accom,Supplies and Services,364320,Grants to Voluntary Organisations,16-Apr-2020,000007147617362,HI NEWCASTLE WASHI,7011,Accommodation assistance,85.00,0.00,85.00
Children and Young Peoples Services,Head of Education and Skills,071802,Louisa Cent Nursery,Supplies and Services,324117,Provisions E324,16-Apr-2020,000007147617368,ALDI STORES,5411,Catering costs - provisions,22.35,3.73,18.62
Children and Young Peoples Services,Head of Childrens Social Care,085332,Middlestone Moor CU,Supplies and Services,328041,Clothing uniforms and laundry E328,16-Apr-2020,000007147617374,FOOTASYLUM PLC,5691,Clothing uniforms and laundry,21.94,0.00,21.94
"Regeneration, Economy and Growth",Development and Housing,031500,Housing Solutions - Core Team,Supplies and Services,352001,Conference Expenses,16-Apr-2020,000007147617388,GRAINGER HOTEL,7011,Conferencesseminars fees etc,310.00,0.00,310.00
"Regeneration, Economy and Growth",Development and Housing,031500,Housing Solutions - Core Team,Supplies and Services,304999,Equipment and Materials,16-Apr-2020,000007147617392,DUNCAN BELTON TA K,6513,Misc equipment tools and materials,350.00,0.00,350.00
"Regeneration, Economy and Growth",Development and Housing,031500,Housing Solutions - Core Team,Supplies and Services,352001,Conference Expenses,16-Apr-2020,000007147617396,HI NEWCASTLE WASHI,7011,Conferencesseminars fees etc,260.00,0.00,260.00
"Regeneration, Economy and Growth",Development and Housing,031500,Housing Solutions - Core Team,Supplies and Services,352001,Conference Expenses,16-Apr-2020,000007147617398,HI NEWCASTLE WASHI,7011,Conferencesseminars fees etc,260.00,0.00,260.00
Resources BK0010,Digital and Customer Services,065432,Web Development Group,Supplies and Services,342033,Computers and Communications,16-Apr-2020,000007147617402,STK Shutterstock,7333,Computer hardware,59.00,0.00,59.00
Neighbourhoods and Climate Change,Environmental Services,010301,C&G - North Grounds Maintenance,Supplies and Services,304221,Equipment and Materials,16-Apr-2020,000007151460578,AZTEC CHEMICALS LTD,5169,Direct materials,86.40,14.40,72.00
Neighbourhoods and Climate Change,Environmental Services,010301,C&G - North Grounds Maintenance,Supplies and Services,304221,Equipment and Materials,16-Apr-2020,000007151460582,AZTEC CHEMICALS LTD,5169,Direct materials,247.50,41.25,206.25
"Regeneration, Economy and Growth",Development and Housing,031576,B& B - Temp Accom,Supplies and Services,364320,Grants to Voluntary Organisations,16-Apr-2020,000007151460768,AYCLIFFE BIZ,7011,Accommodation assistance,38.00,0.00,38.00
Children and Young Peoples Services,Head of Childrens Social Care,085342,16 Hickstead Rise (previously 9 Cedar Ave),Supplies and Services,304999,Equipment and Materials,16-Apr-2020,000007151460852,SUPERDRUG STORES PLC,5912,Misc equipment tools and materials,46.98,0.00,46.98
Children and Young Peoples Services,Head of Early Help Inclusion & Vulnerable Children.,085965,Barnard,Supplies and Services,304403,Equipment and Materials,16-Apr-2020,000007151460920,AMZNMKTPLACE AMAZON.CO,5999,Other consumables,20.99,0.00,20.99
Children and Young Peoples Services,Head of Early Help Inclusion & Vulnerable Children.,085965,Barnard,Supplies and Services,304403,Equipment and Materials,16-Apr-2020,000007151460924,AMZNMKTPLACE AMAZON.CO,5999,Other consumables,23.94,3.99,19.95
Children and Young Peoples Services,Head of Early Help Inclusion & Vulnerable Children.,085965,Barnard,Supplies and Services,384999,Miscellaneous Expenses,16-Apr-2020,000007151460924 - 1,AMZNMKTPLACE AMAZON.CO,5999,Other expenses,27.98,,27.98
Children and Young Peoples Services,Head of Childrens Social Care,085334,West Rainton Satelite Home,Supplies and Services,328041,Clothing uniforms and laundry E328,16-Apr-2020,000007154416936,ZARA INTERNET UK,5651,Clothing uniforms and laundry,115.96,0.00,115.96
Resources BK0010,Digital and Customer Services,065432,Web Development Group,Supplies and Services,342053,Computers and Communications,17-Apr-2020,000007151460378,BROWSERSTACK.COM,7372,Computer software,200.68,0.00,200.68
Resources BK0010,Digital and Customer Services,065481,Technical Services 065481,Supplies and Services,304259,Equipment and Materials,17-Apr-2020,000007151460382,Amazon.co.uk 0O7UT3AX5,5969,Equipment-purchase and rental,75.00,0.00,75.00
Children and Young Peoples Services,Head of Childrens Social Care,085332,Middlestone Moor CU,Supplies and Services,324117,Provisions E324,17-Apr-2020,000007151460398,TESCO STORES 2371,5411,Catering costs - provisions,150.73,0.00,150.73
Children and Young Peoples Services,Head of Childrens Social Care,085352,Tow Law CU,Supplies and Services,324117,Provisions E324,17-Apr-2020,000007151460440,NISA LOCAL,5411,Catering costs - provisions,1.30,0.00,1.30
Children and Young Peoples Services,Head of Childrens Social Care,085352,Tow Law CU,Supplies and Services,324117,Provisions E324,17-Apr-2020,000007151460442,CO-OP GROUP 010989,5411,Catering costs - provisions,9.10,0.00,9.10
Children and Young Peoples Services,Head of Early Help Inclusion & Vulnerable Children.,085957,Secure Management,Supplies and Services,304259,Equipment and Materials,17-Apr-2020,000007151460450,M and M Direct Ltd,5941,Equipment-purchase and rental,12.99,0.00,12.99
Children and Young Peoples Services,Head of Early Help Inclusion & Vulnerable Children.,085957,Secure Management,Supplies and Services,328041,Clothing uniforms and laundry E328,17-Apr-2020,000007151460452,PRETTYLITTLETHING.COM,5691,Clothing uniforms and laundry,61.99,0.00,61.99
Children and Young Peoples Services,Head of Early Help Inclusion & Vulnerable Children.,085957,Secure Management,Supplies and Services,304259,Equipment and Materials,17-Apr-2020,000007151460454,JD SPORTS INTERNET,5941,Equipment-purchase and rental,140.00,0.00,140.00
Children and Young Peoples Services,Head of Childrens Social Care,085334,West Rainton Satelite Home,Supplies and Services,324117,Provisions E324,17-Apr-2020,000007151460506,SAINSBURYS 0776,5411,Catering costs - provisions,131.30,0.00,131.30
Children and Young Peoples Services,Head of Childrens Social Care,085334,West Rainton Satelite Home,Supplies and Services,324117,Provisions E324,17-Apr-2020,000007151460510,SAINSBURYS 0776,5411,Catering costs - provisions,35.00,0.00,35.00
"Regeneration, Economy and Growth",Development and Housing,031500,Housing Solutions - Core Team,Supplies and Services,352001,Conference Expenses,17-Apr-2020,000007151460586,HI NEWCASTLE WASHI,7011,Conferencesseminars fees etc,195.00,0.00,195.00
"Regeneration, Economy and Growth",Development and Housing,031500,Housing Solutions - Core Team,Supplies and Services,352001,Conference Expenses,17-Apr-2020,000007151460590,HI NEWCASTLE WASHI,7011,Conferencesseminars fees etc,65.00,0.00,65.00
Children and Young Peoples Services,Head of Early Help Inclusion & Vulnerable Children.,088106,Ferryhill & N.Aycliffe 0-19 Targeted Family Support,Supplies and Services,304403,Equipment and Materials,17-Apr-2020,000007151460600,ARGOS LTD,5310,Other consumables,25.95,0.00,25.95
"Regeneration, Economy and Growth",Development and Housing,031576,B& B - Temp Accom,Supplies and Services,364320,Grants to Voluntary Organisations,17-Apr-2020,000007151460758,BUDGET H EXPRESS HOTEL,7011,Accommodation assistance,267.00,44.50,222.50
"Regeneration, Economy and Growth",Development and Housing,031576,B& B - Temp Accom,Supplies and Services,364320,Grants to Voluntary Organisations,17-Apr-2020,000007151460762,HI NEWCASTLE WASHI,7011,Accommodation assistance,195.00,0.00,195.00
"Regeneration, Economy and Growth",Development and Housing,031576,B& B - Temp Accom,Supplies and Services,364320,Grants to Voluntary Organisations,17-Apr-2020,000007151460764,HI NEWCASTLE WASHI,7011,Accommodation assistance,30.00,0.00,30.00
Children and Young Peoples Services,Head of Early Help Inclusion & Vulnerable Children.,088116,South Area - Teenage Parent Programme,Supplies and Services,304259,Equipment and Materials,17-Apr-2020,000007151460786,AMZNMktplace,5999,Equipment-purchase and rental,17.40,2.90,14.50
Adult and Health Services,Head of Adults,055643,Hawthorn House LD Respite Unit,Supplies and Services,304403,Equipment and Materials,17-Apr-2020,000007151460806,AMZNMKTPLACE AMAZON.CO,5999,Other consumables,24.97,0.00,24.97
"Regeneration, Economy and Growth",Business Durham CL0850,030717,Business Services,Supplies and Services,342033,Computers and Communications,17-Apr-2020,000007151460822,SurveyMonkey,7372,Computer hardware,750.00,0.00,750.00
Children and Young Peoples Services,Head of Childrens Social Care,085333,Coxhoe Satelite Home,Supplies and Services,324117,Provisions E324,17-Apr-2020,000007151460828,MARKS&SPENCER PLC,5411,Catering costs - provisions,23.00,0.00,23.00
Children and Young Peoples Services,Head of Childrens Social Care,085333,Coxhoe Satelite Home,Supplies and Services,384999,Miscellaneous Expenses,17-Apr-2020,000007151460832,Amazon.co.uk GI2QS1U55,5969,Other expenses,14.18,2.36,11.82
Children and Young Peoples Services,Head of Childrens Social Care,085342,16 Hickstead Rise (previously 9 Cedar Ave),Supplies and Services,328041,Clothing uniforms and laundry E328,17-Apr-2020,000007151460838,PAYPAL PREXIC LTD EBA,5137,Clothing uniforms and laundry,2.97,0.00,2.97
Children and Young Peoples Services,Head of Childrens Social Care,085342,16 Hickstead Rise (previously 9 Cedar Ave),Supplies and Services,328041,Clothing uniforms and laundry E328,17-Apr-2020,000007151460840,PAYPAL SUSANTOMLIN EB,5651,Clothing uniforms and laundry,3.70,0.00,3.70
Children and Young Peoples Services,Head of Childrens Social Care,085342,16 Hickstead Rise (previously 9 Cedar Ave),Supplies and Services,328041,Clothing uniforms and laundry E328,17-Apr-2020,000007151460844,PAYPAL ROGERMARSH EBA,5661,Clothing uniforms and laundry,2.99,0.00,2.99
Children and Young Peoples Services,Head of Childrens Social Care,085342,16 Hickstead Rise (previously 9 Cedar Ave),Supplies and Services,324117,Provisions E324,17-Apr-2020,000007151460860,TESCO STORES 2916,5411,Catering costs - provisions,147.02,0.00,147.02
Children and Young Peoples Services,Head of Childrens Social Care,085342,16 Hickstead Rise (previously 9 Cedar Ave),Supplies and Services,324117,Provisions E324,17-Apr-2020,000007151460864,TESCO STORES 2916,5411,Catering costs - provisions,11.87,0.00,11.87
"Regeneration, Economy and Growth",Development and Housing,031576,B& B - Temp Accom,Supplies and Services,364320,Grants to Voluntary Organisations,17-Apr-2020,000007151460872,GRAINGER APARTMENTS NE,7011,Accommodation assistance,305.00,0.00,305.00
"Regeneration, Economy and Growth",Development and Housing,031576,B& B - Temp Accom,Supplies and Services,364320,Grants to Voluntary Organisations,17-Apr-2020,000007151460878,BUDGET H EXPRESS HOTEL,7011,Accommodation assistance,267.00,0.00,267.00
Adult and Health Services,Head of Adults,055643,Hawthorn House LD Respite Unit,Supplies and Services,324117,Provisions E324,17-Apr-2020,000007151460884,JR HOLLAND FOODSERVICE,5499,Catering costs - provisions,16.29,0.00,16.29
Adult and Health Services,Head of Adults,055643,Hawthorn House LD Respite Unit,Supplies and Services,324117,Provisions E324,17-Apr-2020,000007151460890,JR HOLLAND FOODSERVICE,5499,Catering costs - provisions,19.38,0.00,19.38
Children and Young Peoples Services,Head of Education and Skills,078100,Curric and Professional Development 078100,Supplies and Services,304403,Equipment and Materials,17-Apr-2020,000007151460892,AMZNMktplace,5999,Other consumables,4.98,0.00,4.98
Children and Young Peoples Services,Head of Early Help Inclusion & Vulnerable Children.,088103,Consett & Stanley 0-19 Community Family Hub,Supplies and Services,324117,Provisions E324,17-Apr-2020,000007151460906,BESTWAY WHOLESALE,5451,Catering costs - provisions,39.66,6.61,33.05
Children and Young Peoples Services,Head of Early Help Inclusion & Vulnerable Children.,088103,Consett & Stanley 0-19 Community Family Hub,Supplies and Services,324117,Provisions E324,17-Apr-2020,000007151460906 - 1,BESTWAY WHOLESALE,5451,Catering costs - provisions,153.44,,153.44
Children and Young Peoples Services,Head of Childrens Social Care,085342,16 Hickstead Rise (previously 9 Cedar Ave),Supplies and Services,348037,Subsistence E348,17-Apr-2020,000007151460908,THE OLIVE GARDEN,5814,Subsistence,30.30,0.00,30.30
